Workbook

Sheet Title Page
F2: Data Quality Review Routine Supervision Checklist (DQR-RSC)
F5: ~Checklist to Assess HMIS Data Quality~
G11: Version: January, 2020

Sheet Dropdown lists (hidden)
B1: Indicator_Type | C1: HMIS | D1: Maternal_Health | E1: Immunization | F1: HIV_AIDS | G1: TB | H1: Malaria | I1: Other_specify | J1: Select_Type | M1: Margin of Error | P1: Cross Check data sources | Q1: DS_HMIS | R1: DS_Maternal_Health | S1: DS_Immunization | T1: DS_HIV_AIDS | U1: DS_TB | V1: DS_Malaria | W1: DS_Other_specify | X1: DS_Select_type | Y1: data element completeness data sources | Z1: DE_HMIS | AA1: DE_Maternal_Health | AB1: DE_Immunization | AC1: DE_HIV_AIDE | AD1: DE_TB | AE1: DE_Malaria | AF1: DE_Other_specify | AG1: DE_Select_type
B2: Select_type | C2: Select indicator | D2: Select indicator | E2: Select indicator | F2: Select indicator | G2: Select indicator | H2: Select indicator | I2: Select indicator | J2: Select Indicator | M2: 0 | P2: DS_Select_type | Q2: Enter source document | R2: Enter source document | S2: Enter source document | T2: Enter source document | U2: Enter source document | V2: Enter source document | W2: Enter source document | X2: Select_source_document | Y2: DE_Select_type | Z2: Enter data element | AA2: Enter data element | AB2: Enter data element | AC2: Enter data element | AD2: Enter data element | AE2: Enter data element | AF2: Enter data element | AG2: Select_data_element
B3: HMIS | C3: Outpatient visits | D3: ANC 1st Visit | E3: 1st dose DPT-containing vaccine | F3: Number of HIV+ persons currently on ART | G3: Number of Notified TB cases (all forms of TB) | H3: Number of confirmed malaria cases reported | I3: Other_specify | J3: Other_specify | M3: 0.05 | P3: DS_HMIS | Q3: Client encounter form | R3: Client held card/booklet | S3: Client held record | T3: ART patient card | U3: TB patient card | V3: Client held record | W3: Other_specify | X3: Other_specify | Y3: DE_HMIS | Z3: Unique ID | AA3: Unique ID | AB3: Unique ID | AC3: ART Initiation date | AD3: Year of registration | AE3: Unique ID | AF3: Other_specify | AG3: Other_specify
B4: Maternal_Health | C4: ANC1 | D4: ANC 4th Visit | E4: 2nd dose DPT-containing vaccine | F4: Number counselled and tested for HIV | G4: Number of TB cases successfully treated (all forms of TB) | H4: Confirmed (or total) malaria cases receiving treatment | M4: 0.1 | P4: DS_Maternal_Health | Q4: OPD register | R4: ANC register | S4: Immunization register | T4: ART register | U4: TB register | V4: Malaria case register | Y4: DE_Maternal_Health | Z4: Visit date | AA4: Visit date | AB4: Registration date | AC4: Sex | AD4: Sex | AE4: Visit date
B5: Immunization | C5: ANC4 | D5: ANC Revisits | E5: 3rd dose DPT-containing vaccine | F5: Number of HIV+ pregnant women on prophylaxis | G5: Number of TB cases tested for HIV | H5: Presumed malaria cases | M5: 0.15 | P5: DS_Immunization | Q5: Monthly report | R5: Monthly report | S5: Tally sheets | T5: Monthly report | U5: Laboratory register | V5: Monthly report | Y5: DE_Immunization | Z5: Client name | AA5: Visit number | AB5: Child name | AC5: Age | AD5: Age | AE5: Client name
B6: HIV_AIDS | C6: DTP1 | D6: Institutional Deliveries | E6: 1st dose measles-containing vaccine | F6: Number of HIV+ persons initiated on ART | G6: Number of HIV+ TB patients initiated on ART | H6: Suspected malaria cases tested | M6: 0.2 | P6: DS_HIV_AIDS | Q6: Laboratory register | R6: Post Natal Care register | S6: Monthly report | T6: Laboratory register | U6: Pharmacy dispensation register | V6: Laboratory register | Y6: DE_HIV_AIDS | Z6: Age | AA6: Mother's name | AB6: Sex | AC6: ART Regimen | AD6: Disease classification/ Anatomical site | AE6: Age
B7: TB | C7: DTP3 | D7: Tetanous Toxoid 1st Dose | E7: 1st dose PCV | F7: Number of HIV+ persons still on ART after 12 months (retention) | G7: Number of MDR-TB cases detected | H7: Malaria cases (suspected and confirmed) receiving treatment | M7: 0.25 | P7: DS_TB | Q7: Pharmacy dispensing log | R7: Labor & delivery register | S7: Vaccine stock registry | T7: Pharmacy dispensation register | U7: TB drugs stock management logs | V7: Pharmacy dispensation log | Y7: DE_TB | Z7: Diagnosis (any type) | AA7: Age | AB7: Birthdate (age) | AC7: TB Testing | AD7: Type of patient | AE7: Diagnosis (any type)
B8: Malaria | C8: Institutional deliveries | D8: Post-Natal 1st Visit | E8: 2nd dose PCV | F8: Number of pregnant women counseled and tested for HIV in ANC | G8: Number of MDR-TB cases successfully treated | H8: Suspected malaria cases tested by microscopy | M8: 0.3 | P8: DS_Malaria | Q8: Vaccine stock management log | R8: Tetanus toxoid stock log | S8: Refrigerator temp. log | T8: ART stock management logs | U8: Other_specify | V8: ACT stock management log | Y8: DE_Malaria | Z8: Treatment given | AA8: Estimated delivery date (EDD) | AB8: Name and address of parent (caretaker) | AC8: Prophylaxis for OIs | AD8: Type of patient | AE8: Treatment with ACT
B9: Other_specify | C9: Live births | D9: Postpartum care coverage | E9: 3rd dose PCV | F9: Number of pregnant women testing HIV+ in ANC | G9: HIV test results for registered new and relapse TB patients | H9: Suspected malaria cases tested by microscopy that test positive | M9: Other_specify | P9: DS_Other_specify | Q9: ANC Register | R9: IPTp-SP stock log | S9: Child heath cards | T9: Other_specify | V9: Malaria surveillance reports | Y9: DE_Other_specify | Z9: Other_specify | AA9: Iron supplement | AB9: BCG | AC9: Other_specify | AD9: Other_specify | AE9: Other_specify
C10: Postnatal consultations | D10: IPT 1st Dose | E10: OPV1 | F10: HIV Coverage | G10: Proportion of HIV-positive new and relapse TB patients on antiretroviral therapy (ART) during TB treatment | H10: Number of suspected malaria cases tested by RDT | Q10: Family planning commodities stock management log | R10: Mebendazole stock log | S10: Defaulter register | V10: Bed nets stock management log | AA10: Folic acid supplement | AB10: DTP1
C11: Family planning 1st time users | D11: Other_specify | E11: OPV2 | F11: Number of HIV+ persons in palliative care | G11: Other_specify | H11: Number of suspected malaria cases tested by RDT that test positive | Q11: Other_specify | R11: Other_specify | S11: Other_specify | V11: Other_specify | AA11: IpT1 | AB11: OPV1
C12: Other_specify | E12: OPV3 | F12: Viral suppression | H12: Pregnant women receiving IPTp1 in ANC | AA12: Other_specify | AB12: DPT3
E13: Other_specify | F13: Other_specify | H13: IPTp3 | AB13: MR1
H14: Other_specify | AB14: MR2
AB15: Other_specify

Sheet Instructions
A1: HMIS Data Quality Supervisory Checklist ~ Instructions ~
A3: A comprehensive approach to data quality assurance should include three complimentary approaches using standardized methods and tools. These are: • routine and regular (i.e. monthly) reviews of data quality built into a system of checks of the HMIS or other programme reporting systems as part of a feedback cycle that identifies errors in near real-time so they can be corrected as they occur; • an annual independent assessment of a core set of tracer indicators in order to identify gaps and errors in reporting and the plausibility of trends in health-facility data reported during the previous year; and • periodic in-depth programme-specific reviews of data quality that focus on a single disease/programme area and are timed to meet the planning needs of the specific programmes (e.g. prior to programme reviews). This tool aims to standardize and facilitate the routine review of HMIS data quality at health facilities, by the district M&E teams that support them via routine supervision to health facilities. Important notes for the use of this spreadsheet: In order to use the Routine HMIS Data Quality Assessment tool you will need to ensure that your 'macro security' is set to something less than 'high'. With the spreadsheet open, go to the 'Tools' pull-down menu and select 'Macro', then 'Security'. Select 'medium'. Close Excel and re-open the file. When you open the file the next time you will have to select 'Enable Macros' for the application to work as designed. For Excel 2016, go to File menu, select "Options", then "Trust Center" on the left side bar. Then click the box for "Trust Center Settings". Once there, select "Disable all macros with notication". Then the next time you open Excel you will be prompted to allow macros, in which case select "yes".
A11: HMIS or user-defined content of the tool While the checklist is for "HMIS" (i.e. "cross-cutting", or "integrated") data quality checks, elements of the checklist can be made program-specific. Each indicator, data element, and source document is capable of being user defined. That is, you can select any program area, any indicator, and any data elements and source documents for review. There are lists of indicators, data elements and source documents imbedded into the tool, and the selection of program area results in program-specific lists of indicators, etc. Please determine the scope of the data quality checks prior to visiting health facilities and configure the tool accordingly.
A12: Standardized checklists to improve data quality The checklist assesses HMIS and program data in five different ways: I. Evaluation of timeliness and completeness – the completeness of data elements and also data sources is assessed and quantified. In all, three levels of completeness and one aspect of timeliness are evaluated: A. Completeness of the monthly report – Completeness of the monthly report sent by the health facility to the next level of reporting is calculated by first determining the number of cells expected to be complete and the number of cells actually complete (that is, filled in). Expected cells are calculated by counting the number of cells (data elements) on the report and subtracting those that the health facility is not bound to fill. For example, if a given service is not offered by the facility then the facility would not be expected to report on the service and would leave the cells blank on the report. The number of completed cells divided by the number of cells expected to be complete gives the percentage of completeness for the monthly report.
A18: B. Timeliness of submission of the monthly report - review the last three monthly reports (based on the date of supervision). Were the reports submitted by the deadline of reporting? A check may need to made against the district level database to verify the dates of submission of the facility monthly reports. The percentage of reports submitted by the deadline is then calculated and posted to the dashboard.
A19: C. Data Element Completeness – for each data element in the list review the source document for the period in question and count the number of entries for which the data element is missing (that is, incomplete). For a register, start on the page representing the first day of the period (and 1st entry for the period) and count down through the entries until the last day of the reporting period (and final entry) noting the number of missing elements for each element on the list. Divide by the total number of entries for the period to derive the percent complete for each data element. Calculate the number of entries with complete information (for the priority fields) by counting all entries with at least one field missing data and dividing by the total number of entries. Subtract this percentage from 100% to calculate the percent complete for the register. The list of data elements is suggestive – the elements can be substituted as needed depending on the needs of the program. However, some data elements should remain consistent so as to evaluate the data element completeness over time.
A24: D. Source Document Completeness— The Checklists provide a pre-determined list of potential source documents to evaluate for completeness. The complete list of available source documents may be different for a given health facility. The list should be updated to reflect the available source documents for each facility. For each source document on the list determine whether the source is : i. Available— the data source is available if it is present at the facility on the day of the visit and the supervisor can locate and review it. ii. Up-to-date— the data source is up-to-date if there are entries up until the present day. iii. Standard– the data source is standard if it is the tool designed and distributed by the HMIS or health program. It is the source that is intended to be used for the purpose of data collection and reporting and not an improvised tool.
A30: II. Reporting accuracy assessment – Section II of the checklist is a standard reporting accuracy check whereby a validated value for selected indicators and reporting period is compared to the value reported by the site for the identified reporting period. The validated value of the indicator is determined by recounting the indicator using the appropriate source document and data aggregation protocol. The recounted (that is, validated) value is divided by the reported value (from the monthly report) to derive the “verification factor”, or VF. If there are discrepancies between the validated and the reported values determine the cause and record the appropriate code on the form. The recounted value is also compared to the value found for the period in the HMIS. Two VFs are calculated from the three monthly values for recounted and reported from two data sources. Verification factor (VF) = ____Validated (re-counted) value____ X 100% Reported value Values of the VF less than 0.9 (90%) or greater than 1.1 (110%) are indicative of data quality problems and should be investigated. Values should be tracked over time to determine the trend in reporting accuracy for the different indicators. If discrepancies are found, please note the cause accordingly to the list provided. If the cause is not listed, please include the cause under "other reason". Knowing the cause of discrepancies is important for determining what action to take to correct the problem so it is important to accurately identify and record the reasons for discrepancies.
A36: III. Cross-checks – data sources are compared to determine the level of consistency and reliability between data sources with the same/similar information. Cross checks are techniques to corroborate results found in one data source with data from a different data source. There are several general types of cross checks used in the checklists; A. Comparison of data elements between a client service delivery register and another register for a service delivery support unit, such as the pharmacy or laboratory. For this comparison the rationale is to ensure that information in the support unit registers is being updated correctly in the primary service delivery register for the program area/indicator, and that the information is the same between the two data sources. Select priority data elements to compare, such as those pertaining to diagnosis and treatment (e.g. test dates and results, regimens prescribed and filled dates, etc.). Demographic characteristics (age and gender) can also be compared, as well as unique identifiers. Decide ahead of time the standard for matching – do all data elements need to match exactly in order to judge the comparison acceptable?
A41: B. Comparison of data elements between different client service delivery data sources, such as a register and a medical record or client-held card. For many treatment programs (for example, HIV/AIDS and TB) the primary source document is the patient card (or treatment card), usually a component of a larger medical record for the patient. A summary of the information in the patient card is kept as a register to facilitate the aggregation of data for reporting purposes. The rationale of the cross check is to ensure that data are accurately transcribed from the primary source document to the secondary source. Typically a small sample of records will be selected to conduct the cross check since it would be impractical to compare all records for all patients. The number of records should be a manageable amount (say 10-20) since the goal is to determine if problems exist and not to precisely quantify the extent of the problem, for which a larger sample would likely be needed . (See the accompanying guidance document for an explanation of systematic random sampling of patient records.) After sampling the records, the two data sources should be compared according to a pre-determined criteria. We want to calculate the percentage of the sample that has, 1) a matching record in the secondary data source, and 2) matching information for priority data fields. The number of matching data fields, and the data elements to compare, are decisions to be taken by supervision team (or health facility staff) prior to conducting the cross check. Ideally, a standard should be established by the HMIS or health program management. The resulting statistic is the number of matching records over the number of records compared (i.e. sampled), a percentage. Values of 90% or better can be considered acceptable data quality.
A52: C. Comparison of service delivery volume between the service delivery information system (HMIS or health programs) and the commodities tracking information system for indicators that utilize commodities, such as drugs or test kits (for example, logistics management information system). This comparison requires the following inputs: a. Number of doses in stock at the site at the beginning of the reporting period (initial in stock) b. Number of doses received by the site during the reporting period c. Number of doses in stock at the site at the end of the reporting period (closing in stock) d. Number of doses given to pregnant women by the site during the reporting period A “verification ratio” is calculated by dividing the value of service delivery reported through the HMIS or program reporting system by the value derived from the stock management system. For example, Number of people treated with ACT Number of ACT doses used
A59: Where “number of ACT doses used” is derived by adding the number of doses received by the site during the reporting period (B) to the number of doses initially in stock (A) and subtracting the number of doses in stock at the site at the end of the reporting period (C). Commodities tracking information can be obtained from stock system bin cards for the different commodities, and from program-specific daily activity logs. The resulting statistic is a ratio for which values greater than 1.0 indicate possible over-counting of service delivery, while values less than 1.0 indicate possible under-counting. Caution should be used in the interpretation of results since for certain commodities there is an expected level of wastage (e.g. vaccination) and thus, service delivery and commodities consumption may not correspond one-to-one. For each facility supervised, 2-3 cross checks are recommended. While each cross check need not be completed each visit, some cross checks should be attempted. Other cross checks can be substituted or added as needed depending on program or data specific concerns.
A65: IV. Consistency of reported data over time Data are compared from different time periods to evaluate the plausibility of current results as compared to historical precedents. A. Comparison of the indicator value from the current month to the same month one year ago. Barring large demographic changes in facility catchment area these values should be similar. A difference of greater than 20% (that is, a ratio of greater 1.2 or less than 0.8) would indicate a potential data quality problem and should be investigated. Changes in service delivery patterns, such as intensification campaigns, or stock outs of commodities can also produce such results so attention should be paid to the causes of discrepant values before concluding that a data quality problem exists. B. Comparison of the current month to the average of the three preceding months. Month-to-month the value of the indicator should remain fairly consistent. Again, a difference of 20% between the current month value and the average of the three preceding months would be indicative of a potential problem.
A71: V. System assessment – A checklist of best practices for producing good quality data is included to remind data managers what to check on a periodic basis to ensure data quality. The checklist prompts the supervisor (or data manager) to note “yes”, or “no” as to whether the specific practice is in evidence at the facility. The list of practices is program specific so it is not sufficient to complete the check list for just one program area. Each program area should be assessed with the system assessment. The responses should be recorded and archived for comparison over time.
A90: Facility Information Tab - Enter information about the facilities to be visited in this round of supervision. Include: Facility Name, Facility Type, Town/Village, District, Region, the Date of Supervision, and Name and Contact Information for the supervisory team leader. Once the data are entered into the Facility Information Tab the details by site will auto-populate the facility-specific tabs and dashboard. Select the number of facilities to be included in this round of supervision (and to be summarized in this instance of the tool, by using the combo box located in cell D7 of the Facility Information Tab. Once the selection is made the appropriate number of facility tabs will appear, as well as rows in the Facility Information Tab. This selection also configures the graphics in the dashboard for the appropriate number of facilities.
A99: Indicators Tab - enter the indicator type and inditator name for up to five indicators using the drop-down lists provided. Use the combo box to select the number of indicators (1-5) and the rest of the workbook will automatically update to reflect the choice. If a specific indicator is not on the drop-down list, select "other_specify" and enter the type and name of the indicator in the spaces provided. Once entered the information on the indicators tab will auto-populate the facility-specific tabs and the dashboard. Also select data sources for up to three cross checks using the drop-down lists provided. Cross-checks 1 and 2 are best suited to verify patient level data from one source to another (e.g. a client register to a laborotory register). Cross check 3 is intended to verify patient data (e.g. in a register) against a commodities tracking system, such as the inventory control system for medicines or vaccines in a facility. Again, if the data source is not on the drop-down list, select "Other_specify" from the list and enter the name of the data source in the space provided. The completeness checks for data elements and data sources also have spaces to specify what to look for while conducting supervision in the facility. Select data elements and source documents on the Indicators tab and the selections will auto-populate the health facility tabs.
A117: Dashboard Tab - The dashboard presents summary information for the collection of facilities reviewed for a particular round of supervision (up to 24 sites). The aggregate results are presented, as well as facility-specific results for completeness and timeliness, accuracy of reporting, cross checks, and the system assessment. The dashboard is formatted to print over 4-5 pages.
A165: Action planning for system strengthening Each health facility tab has a facility-specific section for recording findings and recommendations to improve data quality. Use the spaces provided for each facility to record the data quality problems found, a feasible solution to resolve the problem, a responsible staff or unit, and a timeline for implementing the solution. District health management teams (DHMT) should track the recommendations and ensure they are implemented by the next round of supervison. DHMTs can also help look for resources and technical expertise required, if and where appropriate. The action plans from all facility tabs are pulled together for ease of review in the Summary of Action Plans tab. Draft an over-arching action plan to deal with systematic problems that occur in the majority of facilities.
A171: Summary of comments tab The last visible tab of the workbook contains a listing by data element of all the comments noted by facility throughout the tool. Each data element is listed followed by the comments made for each facility so that patterns can easily be recognized across facilities. Use this tab to appreciate systematic occurrances of data quality problems (i.e. across faciilities).
A177: Data Export Tab A hidden tab called "Data Export" lists all data elements from the health facility tabs on the same worksheet (one row per facility). This table can be extracted from the workbook (cut and paste the data or "export" the tab to another master Excel file or other data management software. Extracting the data in this way allows results from different workbooks to be combined in a larger dataset. Ideally, the results of data quality checks during supervision are monitored by higher levels of the health system so planning can occur to remediate data quality problems.
A183: Navigation - The tool has hyperlinks built in to facilitate navigation of the tool. In the top, right-hand corner of each page should appear hyperlinks to other frequently used tabs in the tool. For example, for each facility-specific page, there are links to jump to the Facility Information Tab and the Dashboard Tab. On the Facility information Tab each facility name in the list of facilities is hyper-linked to the tab with information specific to that facility.

Sheet Facility Information
O1: Go to Dashboard
O2: Go to Dashboard
O3: Go to Dashboard
O4: Go to Dashboard
O5: Go to Dashboard
O6: Go to Indicators | S6: 0
C7: Enter details for health facilities selected for review. Select the number of facilities using the drop-down combo box below. (Click on the facility number to jump to the health facility page) | S7: 1
S8: 2
S9: 3
S10: 4
S11: 5
C12: Number of Health Facilities to be Supervised: | E12: Location | H12: Facility | J12: Supervision | L12: Contact Information | S12: 6
C13: No. | D13: Health facility name | E13: Town/village | F13: District | G13: Region | H13: Facility type | I13: Facility code | J13: Date of supervision (dd/mm/yyyy) | K13: Supervision team lead | L13: Phone | M13: Email | S13: 7
C14: 1. | D14: Lake Shore | E14: Windsor | F14: Essex | G14: Ontario | H14: Health Center | I14: ON-LS | J14: 01/05/2025 | K14: Shurajit | L14: 6477653160 | M14: shurajit@dhis2.org | S14: 8
C15: 2. | D15: Essex | E15: Windsor | F15: Essex | G15: Ontario | H15: Health Center | I15: ON-E | J15: 01/05/2025 | K15: Shurajit | L15: 6477653160 | M15: shurajit@dhis2.org | S15: 9
C16: 3. | D16: Hotel Dieu | E16: Windsor | F16: Essex | G16: Ontario | H16: Hospital | I16: ON-HD | J16: 01/05/2025 | K16: Shurajit | L16: 6477653160 | M16: shurajit@dhis2.org | S16: 10
C17: 4. | S17: 11
C18: 5. | S18: 12
C19: 6. | S19: 13
C20: 7. | S20: 14
C21: 8. | S21: 15
C22: 9. | S22: 16
C23: 10. | S23: 17
C24: 11. | S24: 18
C25: 12. | S25: 19
C26: 13. | S26: 20
C27: 14. | S27: 21
C28: 15. | S28: 22
C29: 16. | S29: 23
C30: 17. | S30: 24
C31: 18. | S31: 4
C32: 19.
C33: 20.
C34: 21.
C35: 22.
C36: 23.
C37: 24.

Sheet Indicators
L1: Go to Dashboard
L2: Go to Dashboard
L3: Go to Dashboard
L4: Go to Dashboard
L5: Go to Dashboard
L6: Go to facility information tab | R6: 1
R7: 2
B8: Enter the indicator type, and indicators for up to five indicators. Select "Other_specify" to enter user-defined types and indicators. | R8: 3
R9: 4
R10: 5
I11: How many indicators? | R11: 5
A12: Indicators | E12: Indicator Type: | H12: Indicator: | L12: Acceptable margin of error- accuracy
D13: Indicator 1: | E13: Maternal_Health | H13: ANC 1st Visit | L13: MOE | M13: 0.1 | R13: =IF(E13="Other_specify",E14,E13) -> Maternal_Health | S13: =IF(H13="Other_specify",H14,H13) -> ANC 1st Visit | V13: =IF(M13="Other_specify",N13,M13) -> 0.1
D14: Specify: | G14: Specify:
D16: Indicator 2: | E16: HMIS | H16: Outpatient visits | L16: MOE | M16: 0.1 | R16: =IF(E16="Other_specify",E17,E16) -> HMIS | S16: =IF(H16="Other_specify",H17,H16) -> Outpatient visits | V16: =IF(M16="Other_specify",N16,M16) -> 0.1
D17: Specify: | G17: Specify:
D19: Indicator 3: | E19: Malaria | H19: Number of confirmed malaria cases reported | L19: MOE | M19: 0.15 | R19: =IF(E19="Other_specify",E20,E19) -> Malaria | S19: =IF(H19="Other_specify",H20,H19) -> Number of confirmed malaria cases reported | V19: =IF(M19="Other_specify",N19,M19) -> 0.15
D20: Specify: | G20: Specify:
D22: Indicator 4: | E22: Immunization | H22: 3rd dose DPT-containing vaccine | L22: MOE | M22: 0.2 | R22: =IF(E22="Other_specify",E23,E22) -> Immunization | S22: =IF(H22="Other_specify",H23,H22) -> 3rd dose DPT-containing vaccine | V22: =IF(M22="Other_specify",N22,M22) -> 0.2
D23: Specify: | G23: Specify:
D25: Indicator 5: | E25: HMIS | H25: Live births | L25: MOE | M25: 0.25 | R25: =IF(E25="Other_specify",E26,E25) -> HMIS | S25: =IF(H25="Other_specify",H26,H25) -> Live births | V25: =IF(M25="Other_specify",N25,M25) -> 0.25
D26: Specify: | G26: Specify:
A29: Cross checks | E29: Cross checks performed:
B30: Program Area: | E30: Primary data source: | H30: Secondary data source: | L30: Acceptable margin of error - CC 1&2
A31: Cross check 1: | B31: DS_Malaria | E31: Malaria case register | G31: to: | H31: Laboratory register | L31: MOE | M31: 0.1 | R31: =IF(E31="Other_specify",E32,E31) -> Malaria case register | S31: =IF(H31="Other_specify",H32,H31) -> Laboratory register | V31: =IF(M31="Other_specify",N31,M31) -> 0.1
A32: Specify: | D32: Specify: | G32: Specify:
A34: Cross check 2: | B34: DS_Immunization | E34: Immunization register | G34: to: | H34: Vaccine stock registry | L34: MOE | M34: 0.1 | R34: =IF(E34="Other_specify",E35,E34) -> Immunization register | S34: =IF(H34="Other_specify",H35,H34) -> Vaccine stock registry | V34: =IF(M34="Other_specify",N34,M34) -> 0.1
A35: Specify: | D35: Specify: | G35: Specify:
L36: Acceptable margin of error - CC 3
A37: Cross check 3: | B37: DS_HMIS | E37: ANC Register | G37: to: | H37: Vaccine stock management log | L37: MOE | M37: 0.1 | R37: =IF(E37="Other_specify",E38,E37) -> ANC Register | S37: =IF(H37="Other_specify",H38,H37) -> Vaccine stock management log
A38: Specify: | D38: Specify: | G38: Specify: | V38: =IF(M37="Other_specify",N37,M37) -> 0.1
A40: Consistency over time: (select one indicator to review for all sites)
B41: Program Area: | E41: Indicator | L41: Acceptable margin of error - Consistency
B42: Malaria | E42: Number of confirmed malaria cases reported | L42: MOE | M42: 0.2 | R42: =IF(B42="Other_specify",B43,B42) -> Malaria | S42: =IF(E42="Other_specify",E43,E42) -> Number of confirmed malaria cases reported | V42: =IF(M42="Other_specify",N42,M42) -> 0.2
A43: Specify: | D43: Specify:
A45: Data elements & Source Documents
D46: Data element completeness: | H46: Source document completeness: | L46: Acceptable margin of error- Completeness
E47: Program Area: | F47: DE_HMIS | H47: Program Area: | J47: DS_HMIS | M47: 0.1 | R47: =IF(F47="Other_specify",F48,F47) -> DE_HMIS | S47: =IF(J47="Other_specify",J48,J47) -> DS_HMIS | V47: =IF(M47="Other_specify",N47,M47) -> 0.1
E48: Specify: | I48: Specify:
E49: Data Element 1: | F49: Unique ID | I49: Source document 1: | J49: OPD register | R49: =IF(F49="Other_specify",F50,F49) -> Unique ID | S49: =IF(J49="Other_specify",J50,J49) -> OPD register
E50: Specify: | I50: Specify:
E51: Data Element 2: | F51: Visit date | I51: Source document 2: | J51: OPD register | R51: =IF(F51="Other_specify",F52,F51) -> Visit date | S51: =IF(J51="Other_specify",J52,J51) -> OPD register
E52: Specify: | I52: Specify:
E53: Data Element 3: | F53: Client name | I53: Source document 3: | J53: OPD register | R53: =IF(F53="Other_specify",F54,F53) -> Client name | S53: =IF(J53="Other_specify",J54,J53) -> OPD register
E54: Specify: | I54: Specify:
E55: Data Element 4: | F55: Age | I55: Source document 4: | J55: OPD register | R55: =IF(F55="Other_specify",F56,F55) -> Age | S55: =IF(J55="Other_specify",J56,J55) -> OPD register
E56: Specify: | I56: Specify:
E57: Data Element 5: | F57: Diagnosis (any type) | I57: Source document 5: | J57: OPD register | R57: =IF(F57="Other_specify",F58,F57) -> Diagnosis (any type) | S57: =IF(J57="Other_specify",J58,J57) -> OPD register
E58: Specify: | I58: Specify:
E59: Data Element 6: | F59: Treatment given | I59: Source document 6: | J59: OPD register | R59: =IF(F59="Other_specify",F60,F59) -> Treatment given | S59: =IF(J59="Other_specify",J60,J59) -> OPD register
E60: Specify: | I60: Specify:
I61: Source document 7: | J61: OPD register | R61: =IF(F61="Other_specify",F62,F61) -> 0 | S61: =IF(J61="Other_specify",J62,J61) -> OPD register
I62: Specify:

Sheet Health Facility 1
A1: National Health Management Information System (HMIS) | H1: WHO - 2020 | M1: Go back to facility information tab
A2: Routine Supervision Data Quality Checklist | M2: Go to Dashboard
A3: Routine Supervision Data Quality Checklist | M3: Go to Dashboard
A4: Routine Supervision Data Quality Checklist | M4: Go to Dashboard
A5: Routine Supervision Data Quality Checklist | M5: Go to Dashboard
A6: Routine Supervision Data Quality Checklist | M6: Go to Dashboard
A7: Health facility name: | D7: =IF('Facility Information'!D14=0,"-",'Facility Information'!D14) -> Lake Shore | G7: Date of Supervision: | J7: =IF('Facility Information'!J14=0,"-",'Facility Information'!J14) -> 01/05/2025 | M7: Go to indicators
A8: Facility type: | D8: =IF('Facility Information'!H14=0,"-",'Facility Information'!H14) -> Health Center | G8: Reporting period(s) verified (months): | J8: 3
A9: Town/Village: | D9: =IF('Facility Information'!E14=0,"-",'Facility Information'!E14) -> Windsor | G9: Supervison team lead: | J9: =IF('Facility Information'!K14=0,"-",'Facility Information'!K14) -> Shurajit | AO9: Reporting performance & Readiness to provide quality data | AZ9: ="Reasons for discrepancy, by indicator" -> Reasons for discrepancy, by indicator
A10: Region: | D10: =IF('Facility Information'!G14=0,"-",'Facility Information'!G14) -> Ontario | G10: Contact phone: | J10: =IF('Facility Information'!L14=0,"-",'Facility Information'!L14) -> 6477653160 | AN10: Results | AR10: Source documents | AZ10: by comparison | BH10: by indicator
A11: District: | D11: =IF('Facility Information'!F14=0,"-",'Facility Information'!F14) -> Essex | G11: Contact email: | J11: =IF('Facility Information'!M14=0,"-",'Facility Information'!M14) -> shurajit@dhis2.org | AO11: Completeness of Monthly report | AP11: % Cases with missing data | AQ11: Timeliness of reporting | AR11: =AR10&" available" -> Source documents available | AS11: =AR10&" Up-to-date" -> Source documents Up-to-date | AT11: =AR10&" standard issue" -> Source documents standard issue | AU11: System Assessment (% readiness) | BA11: A | BB11: B | BC11: C | BD11: D | BE11: E | BF11: F | BI11: No discrepancy | BJ11: Arithematic errors | BK11: Transcription errors | BL11: Some documents were missing when the report was prepared | BM11: Some documents are now missing | BN11: Other
A12: I. Completeness & Timeliness | K12: Please provide a comment on the results | AO12: =J15 -> 0.92 | AP12: =E26 -> 0.1791044776 | AQ12: =J17 -> 0 | AR12: =H27 -> 1 | AS12: =I27 -> No | AT12: =J27 -> 1 | AU12: =COUNTIF(J112:J123,"Yes")/COUNTA(J112:J123) -> 0.5 | AZ12: 1.1 | BA12: =IF(ISERROR(IF(SEARCH("A",$G$39)>0,1,0))," ",IF(SEARCH("A",$G$39)>0,1,0)) ->  | BB12: =IF(ISERROR(IF(SEARCH("B",$G$39)>0,1,0))," ",IF(SEARCH("B",$G$39)>0,1,0)) -> 1 | BC12: =IF(ISERROR(IF(SEARCH("C",$G$39)>0,1,0))," ",IF(SEARCH("C",$G$39)>0,1,0)) ->  | BD12: =IF(ISERROR(IF(SEARCH("D",$G$39)>0,1,0))," ",IF(SEARCH("D",$G$39)>0,1,0)) ->  | BE12: =IF(ISERROR(IF(SEARCH("E",$G$39)>0,1,0))," ",IF(SEARCH("E",$G$39)>0,1,0)) ->  | BF12: =IF(ISERROR(IF(SEARCH("F",$G$39)>0,1,0))," ",IF(SEARCH("F",$G$39)>0,1,0)) ->  | BH12: =AO14 -> ANC 1st Visit | BI12: =SUM(BA12:BA14) -> 0 | BJ12: 3 | BK12: 0 | BL12: 0 | BM12: 0 | BN12: 0
A13: A. Completeness of HMIS Monthly Report | H13: Expected Cells | I13: Completed Cells | J13: Percent Complete | AN13: Verification factors | AP13: VF Monthly report | AQ13: VF HMIS | AZ13: 1.2 | BA13: =IF(ISERROR(IF(SEARCH("A",$H$39)>0,1,0))," ",IF(SEARCH("A",$H$39)>0,1,0)) ->  | BB13: =IF(ISERROR(IF(SEARCH("B",$H$39)>0,1,0))," ",IF(SEARCH("B",$H$39)>0,1,0)) -> 1 | BC13: =IF(ISERROR(IF(SEARCH("C",$H$39)>0,1,0))," ",IF(SEARCH("C",$H$39)>0,1,0)) ->  | BD13: =IF(ISERROR(IF(SEARCH("D",$H$39)>0,1,0))," ",IF(SEARCH("D",$H$39)>0,1,0)) ->  | BE13: =IF(ISERROR(IF(SEARCH("E",$H$39)>0,1,0))," ",IF(SEARCH("E",$H$39)>0,1,0)) ->  | BF13: =IF(ISERROR(IF(SEARCH("F",$H$39)>0,1,0))," ",IF(SEARCH("F",$H$39)>0,1,0)) ->  | BH13: =AO15 -> Outpatient visits | BI13: =SUM(BA15:BA17) -> 0 | BJ13: =SUM(BB15:BB17) -> 3 | BK13: 0 | BL13: 0 | BM13: 0 | BN13: 0
A14: Select the most recent completed and submitted monthly HMIS facility report. Calculate the number of cells expected to be complete on the monthly report (exclude cells for services not offered by the facility). Count the number of cells that are complete (blank, not zero) and calculate the percentage completeness for the monthly report. | AN14: indicator | AO14: =D33 -> ANC 1st Visit | AP14: =J37 -> 1.03968254 | AQ14: =J38 -> 1.03968254 | AZ14: 1.3 | BA14: =IF(ISERROR(IF(SEARCH("A",$I$39)>0,1,0))," ",IF(SEARCH("A",$I$39)>0,1,0)) ->  | BB14: =IF(ISERROR(IF(SEARCH("B",$I$39)>0,1,0))," ",IF(SEARCH("B",$I$39)>0,1,0)) -> 1 | BC14: =IF(ISERROR(IF(SEARCH("C",$I$39)>0,1,0))," ",IF(SEARCH("C",$I$39)>0,1,0)) ->  | BD14: =IF(ISERROR(IF(SEARCH("D",$I$39)>0,1,0))," ",IF(SEARCH("D",$I$39)>0,1,0)) ->  | BE14: =IF(ISERROR(IF(SEARCH("E",$I$39)>0,1,0))," ",IF(SEARCH("E",$I$39)>0,1,0)) ->  | BF14: =IF(ISERROR(IF(SEARCH("F",$I$39)>0,1,0))," ",IF(SEARCH("F",$I$39)>0,1,0)) ->  | BH14: =AO16 -> Number of confirmed malaria cases reported | BI14: =SUM(BA18:BA20) -> 0 | BJ14: 0 | BK14: 3 | BL14: 0 | BM14: 0 | BN14: 0
H15: 100 | I15: 92 | J15: =IF(ISERROR(I15/H15),"-",I15/H15) -> 0.92 | AO15: =D42 -> Outpatient visits | AP15: =J46 -> 1.096273292 | AQ15: =J47 -> 1.164079823 | AZ15: 2.1 | BA15: =IF(ISERROR(IF(SEARCH("A",$G$48)>0,1,0))," ",IF(SEARCH("A",$G$48)>0,1,0)) ->  | BB15: =IF(ISERROR(IF(SEARCH("B",$G$48)>0,1,0))," ",IF(SEARCH("B",$G$48)>0,1,0)) -> 1 | BC15: =IF(ISERROR(IF(SEARCH("C",$G$48)>0,1,0))," ",IF(SEARCH("C",$G$48)>0,1,0)) ->  | BD15: =IF(ISERROR(IF(SEARCH("D",$G$48)>0,1,0))," ",IF(SEARCH("D",$G$48)>0,1,0)) ->  | BE15: =IF(ISERROR(IF(SEARCH("E",$G$48)>0,1,0))," ",IF(SEARCH("E",$G$48)>0,1,0)) ->  | BF15: =IF(ISERROR(IF(SEARCH("F",$G$48)>0,1,0))," ",IF(SEARCH("F",$G$48)>0,1,0)) ->  | BH15: =AO17 -> 3rd dose DPT-containing vaccine | BI15: =SUM(BA21:BA23) -> 3 | BJ15: 0 | BK15: 0 | BL15: 0 | BM15: 0 | BN15: 0
A16: B. Timeliness of Submission of Monthly Report | F16: Monthly report: | G16: Jan | H16: Feb | I16: March | AO16: =D51 -> Number of confirmed malaria cases reported | AP16: =J55 -> 1.344444444 | AQ16: =J56 -> 1.344444444 | AZ16: 2.2 | BA16: =IF(ISERROR(IF(SEARCH("A",$H$48)>0,1,0))," ",IF(SEARCH("A",$H$48)>0,1,0)) ->  | BB16: =IF(ISERROR(IF(SEARCH("B",$H$48)>0,1,0))," ",IF(SEARCH("B",$H$48)>0,1,0)) -> 1 | BC16: =IF(ISERROR(IF(SEARCH("C",$H$48)>0,1,0))," ",IF(SEARCH("C",$H$48)>0,1,0)) ->  | BD16: =IF(ISERROR(IF(SEARCH("D",$H$48)>0,1,0))," ",IF(SEARCH("D",$H$48)>0,1,0)) ->  | BE16: =IF(ISERROR(IF(SEARCH("E",$H$48)>0,1,0))," ",IF(SEARCH("E",$H$48)>0,1,0)) ->  | BF16: =IF(ISERROR(IF(SEARCH("F",$H$48)>0,1,0))," ",IF(SEARCH("F",$H$48)>0,1,0)) ->  | BH16: =AO18 -> Live births | BI16: =SUM(BA24:BA26) -> 0 | BJ16: 2 | BK16: 1 | BL16: 0 | BM16: 0 | BN16: 0
A17: Review the monthly reports from the past three months at the facility and in the HMIS database. Determine if the reports were submitted by the deadline of reporting | F17: Submitted by the deadline? (Y/N) | J17: =COUNTIF(G17:I17,"Yes")/3 -> 0 | AO17: =D60 -> 3rd dose DPT-containing vaccine | AP17: =J64 -> 0.9317946911 | AQ17: =J65 -> 0.872301881 | AZ17: 2.3 | BA17: =IF(ISERROR(IF(SEARCH("A",$I$48)>0,1,0))," ",IF(SEARCH("A",$I$48)>0,1,0)) ->  | BB17: =IF(ISERROR(IF(SEARCH("B",$I$48)>0,1,0))," ",IF(SEARCH("B",$I$48)>0,1,0)) -> 1 | BC17: =IF(ISERROR(IF(SEARCH("C",$I$48)>0,1,0))," ",IF(SEARCH("C",$I$48)>0,1,0)) ->  | BD17: =IF(ISERROR(IF(SEARCH("D",$I$48)>0,1,0))," ",IF(SEARCH("D",$I$48)>0,1,0)) ->  | BE17: =IF(ISERROR(IF(SEARCH("E",$I$48)>0,1,0))," ",IF(SEARCH("E",$I$48)>0,1,0)) ->  | BF17: =IF(ISERROR(IF(SEARCH("F",$I$48)>0,1,0))," ",IF(SEARCH("F",$I$48)>0,1,0)) ->  | BI17: =SUM(BI12:BI16) -> 3 | BJ17: 8 | BK17: 4 | BL17: 0 | BM17: 0 | BN17: 0
A18: C. Data Element Completeness: Missing data: ask to see the Outpatient Department (OPD) register. Count the number of clients in the quarter (month 1 to month 3) with missing information for each of the following columns in the unit malaria case register. | F18: D. Source Document Completeness: Review the following data sources and determine if they are available, up-to-date (values up to the current day/period) and standard (the form prepared and distributed by the program). (Y/N) | AO18: =D69 -> Live births | AP18: =J73 -> 0.9166237666 | AQ18: =J74 -> 0.8460863698 | AZ18: 3.1 | BA18: =IF(ISERROR(IF(SEARCH("A",$G$57)>0,1,0))," ",IF(SEARCH("A",$G$57)>0,1,0)) ->  | BB18: =IF(ISERROR(IF(SEARCH("B",$G$57)>0,1,0))," ",IF(SEARCH("B",$G$57)>0,1,0)) ->  | BC18: =IF(ISERROR(IF(SEARCH("C",$G$57)>0,1,0))," ",IF(SEARCH("C",$G$57)>0,1,0)) -> 1 | BD18: =IF(ISERROR(IF(SEARCH("D",$G$57)>0,1,0))," ",IF(SEARCH("D",$G$57)>0,1,0)) ->  | BE18: =IF(ISERROR(IF(SEARCH("E",$G$57)>0,1,0))," ",IF(SEARCH("E",$G$57)>0,1,0)) ->  | BF18: =IF(ISERROR(IF(SEARCH("F",$G$57)>0,1,0))," ",IF(SEARCH("F",$G$57)>0,1,0)) -> 
A19: =Indicators!R47&" Data elements" -> DE_HMIS Data elements | D19: Number of cases (rows) with missing data | % | F19: =Indicators!S47&" Source Documents:" -> DS_HMIS Source Documents: | H19: Available | I19: Up-to-date | J19: Standard form | K19: Comments | AZ19: 3.2 | BA19: =IF(ISERROR(IF(SEARCH("A",$H$57)>0,1,0))," ",IF(SEARCH("A",$H$57)>0,1,0)) ->  | BB19: =IF(ISERROR(IF(SEARCH("B",$H$57)>0,1,0))," ",IF(SEARCH("B",$H$57)>0,1,0)) ->  | BC19: =IF(ISERROR(IF(SEARCH("C",$H$57)>0,1,0))," ",IF(SEARCH("C",$H$57)>0,1,0)) -> 1 | BD19: =IF(ISERROR(IF(SEARCH("D",$H$57)>0,1,0))," ",IF(SEARCH("D",$H$57)>0,1,0)) ->  | BE19: =IF(ISERROR(IF(SEARCH("E",$H$57)>0,1,0))," ",IF(SEARCH("E",$H$57)>0,1,0)) ->  | BF19: =IF(ISERROR(IF(SEARCH("F",$H$57)>0,1,0))," ",IF(SEARCH("F",$H$57)>0,1,0)) -> 
A20: 1. | B20: =Indicators!R49 -> Unique ID | D20: 7 | E20: =IF(D20="","-",IF(ISERROR(D20/$D$27),"-",D20/$D$27)) -> 0.1044776119 | F20: =Indicators!S49 -> OPD register | H20: Yes | I20: No | J20: Yes | AN20: Cross checks | AZ20: 3.3 | BA20: =IF(ISERROR(IF(SEARCH("A",$I$57)>0,1,0))," ",IF(SEARCH("A",$I$57)>0,1,0)) ->  | BB20: =IF(ISERROR(IF(SEARCH("B",$I$57)>0,1,0))," ",IF(SEARCH("B",$I$57)>0,1,0)) ->  | BC20: =IF(ISERROR(IF(SEARCH("C",$I$57)>0,1,0))," ",IF(SEARCH("C",$I$57)>0,1,0)) -> 1 | BD20: =IF(ISERROR(IF(SEARCH("D",$I$57)>0,1,0))," ",IF(SEARCH("D",$I$57)>0,1,0)) ->  | BE20: =IF(ISERROR(IF(SEARCH("E",$I$57)>0,1,0))," ",IF(SEARCH("E",$I$57)>0,1,0)) ->  | BF20: =IF(ISERROR(IF(SEARCH("F",$I$57)>0,1,0))," ",IF(SEARCH("F",$I$57)>0,1,0)) -> 
A21: 2. | B21: =Indicators!R51 -> Visit date | D21: 6 | E21: 0.08955223881 | F21: =Indicators!S51 -> OPD register | H21: Yes | I21: No | J21: Yes | AO21: =A80 -> A — Malaria case register : Laboratory register (quality target = 90%) | AP21: =J84 -> 0.8 | AR21: =AN20&" 1 & 2" -> Cross checks 1 & 2 | AZ21: 4.1 | BA21: =IF(ISERROR(IF(SEARCH("A",$G$66)>0,1,0))," ",IF(SEARCH("A",$G$66)>0,1,0)) -> 1 | BB21: =IF(ISERROR(IF(SEARCH("B",$G$66)>0,1,0))," ",IF(SEARCH("B",$G$66)>0,1,0)) ->  | BC21: =IF(ISERROR(IF(SEARCH("C",$G$66)>0,1,0))," ",IF(SEARCH("C",$G$66)>0,1,0)) ->  | BD21: =IF(ISERROR(IF(SEARCH("D",$G$66)>0,1,0))," ",IF(SEARCH("D",$G$66)>0,1,0)) ->  | BE21: =IF(ISERROR(IF(SEARCH("E",$G$66)>0,1,0))," ",IF(SEARCH("E",$G$66)>0,1,0)) ->  | BF21: =IF(ISERROR(IF(SEARCH("F",$G$66)>0,1,0))," ",IF(SEARCH("F",$G$66)>0,1,0)) -> 
A22: 3. | B22: =Indicators!R53 -> Client name | D22: 4 | E22: 0.05970149254 | F22: =Indicators!S53 -> OPD register | H22: Yes | I22: No | J22: Yes | AO22: =A85 -> B — Immunization register : Vaccine stock registry (quality target = 90%) | AP22: =J89 -> 0.9 | AZ22: 4.2 | BA22: =IF(ISERROR(IF(SEARCH("A",$H$66)>0,1,0))," ",IF(SEARCH("A",$H$66)>0,1,0)) -> 1 | BB22: =IF(ISERROR(IF(SEARCH("B",$H$66)>0,1,0))," ",IF(SEARCH("B",$H$66)>0,1,0)) ->  | BC22: =IF(ISERROR(IF(SEARCH("C",$H$66)>0,1,0))," ",IF(SEARCH("C",$H$66)>0,1,0)) ->  | BD22: =IF(ISERROR(IF(SEARCH("D",$H$66)>0,1,0))," ",IF(SEARCH("D",$H$66)>0,1,0)) ->  | BE22: =IF(ISERROR(IF(SEARCH("E",$H$66)>0,1,0))," ",IF(SEARCH("E",$H$66)>0,1,0)) ->  | BF22: =IF(ISERROR(IF(SEARCH("F",$H$66)>0,1,0))," ",IF(SEARCH("F",$H$66)>0,1,0)) -> 
A23: 4. | B23: =Indicators!R55 -> Age | D23: 4 | E23: 0.05970149254 | F23: =Indicators!S55 -> OPD register | H23: Yes | I23: No | J23: Yes | AO23: =A90 -> C — ANC Register : Vaccine stock management log (quality target: >=90%, <=110%) | AP23: =J95 -> 1 | AR23: ="Cross check 3" -> Cross check 3 | AZ23: 4.3 | BA23: =IF(ISERROR(IF(SEARCH("A",$I$66)>0,1,0))," ",IF(SEARCH("A",$I$66)>0,1,0)) -> 1 | BB23: =IF(ISERROR(IF(SEARCH("B",$I$66)>0,1,0))," ",IF(SEARCH("B",$I$66)>0,1,0)) ->  | BC23: =IF(ISERROR(IF(SEARCH("C",$I$66)>0,1,0))," ",IF(SEARCH("C",$I$66)>0,1,0)) ->  | BD23: =IF(ISERROR(IF(SEARCH("D",$I$66)>0,1,0))," ",IF(SEARCH("D",$I$66)>0,1,0)) ->  | BE23: =IF(ISERROR(IF(SEARCH("E",$I$66)>0,1,0))," ",IF(SEARCH("E",$I$66)>0,1,0)) ->  | BF23: =IF(ISERROR(IF(SEARCH("F",$I$66)>0,1,0))," ",IF(SEARCH("F",$I$66)>0,1,0)) -> 
A24: 5. | B24: =Indicators!R57 -> Diagnosis (any type) | D24: 5 | E24: 0.07462686567 | F24: =Indicators!S57 -> OPD register | H24: Yes | I24: No | J24: Yes | AZ24: 5.1 | BA24: =IF(ISERROR(IF(SEARCH("A",$G$75)>0,1,0))," ",IF(SEARCH("A",$G$75)>0,1,0)) ->  | BB24: =IF(ISERROR(IF(SEARCH("B",$G$75)>0,1,0))," ",IF(SEARCH("B",$G$75)>0,1,0)) -> 1 | BC24: =IF(ISERROR(IF(SEARCH("C",$G$75)>0,1,0))," ",IF(SEARCH("C",$G$75)>0,1,0)) ->  | BD24: =IF(ISERROR(IF(SEARCH("D",$G$75)>0,1,0))," ",IF(SEARCH("D",$G$75)>0,1,0)) ->  | BE24: =IF(ISERROR(IF(SEARCH("E",$G$75)>0,1,0))," ",IF(SEARCH("E",$G$75)>0,1,0)) ->  | BF24: =IF(ISERROR(IF(SEARCH("F",$G$75)>0,1,0))," ",IF(SEARCH("F",$G$75)>0,1,0)) -> 
A25: 6. | B25: =Indicators!R59 -> Treatment given | D25: 9 | E25: 0.1343283582 | F25: =Indicators!S59 -> OPD register | H25: Yes | I25: No | J25: Yes | AN25: ="Consistency over time: "&H99&": "&H100 -> Consistency over time: Malaria: Number of confirmed malaria cases reported | AZ25: 5.2 | BA25: =IF(ISERROR(IF(SEARCH("A",$H$75)>0,1,0))," ",IF(SEARCH("A",$H$75)>0,1,0)) ->  | BB25: =IF(ISERROR(IF(SEARCH("B",$H$75)>0,1,0))," ",IF(SEARCH("B",$H$75)>0,1,0)) ->  | BC25: =IF(ISERROR(IF(SEARCH("C",$H$75)>0,1,0))," ",IF(SEARCH("C",$H$75)>0,1,0)) -> 1 | BD25: =IF(ISERROR(IF(SEARCH("D",$H$75)>0,1,0))," ",IF(SEARCH("D",$H$75)>0,1,0)) ->  | BE25: =IF(ISERROR(IF(SEARCH("E",$H$75)>0,1,0))," ",IF(SEARCH("E",$H$75)>0,1,0)) ->  | BF25: =IF(ISERROR(IF(SEARCH("F",$H$75)>0,1,0))," ",IF(SEARCH("F",$H$75)>0,1,0)) -> 
A26: 7. | B26: Number of entries missing data in at least 1 of the 6 columns listed above | D26: 12 | E26: 0.1791044776 | F26: =Indicators!S61 -> OPD register | H26: Yes | I26: No | J26: Yes | AN26: =F106 -> Jan | AO26: Feb | AP26: March | AQ26: April | AZ26: 5.3 | BA26: =IF(ISERROR(IF(SEARCH("A",$I$75)>0,1,0))," ",IF(SEARCH("A",$I$75)>0,1,0)) ->  | BB26: =IF(ISERROR(IF(SEARCH("B",$I$75)>0,1,0))," ",IF(SEARCH("B",$I$75)>0,1,0)) -> 1 | BC26: =IF(ISERROR(IF(SEARCH("C",$I$75)>0,1,0))," ",IF(SEARCH("C",$I$75)>0,1,0)) ->  | BD26: =IF(ISERROR(IF(SEARCH("D",$I$75)>0,1,0))," ",IF(SEARCH("D",$I$75)>0,1,0)) ->  | BE26: =IF(ISERROR(IF(SEARCH("E",$I$75)>0,1,0))," ",IF(SEARCH("E",$I$75)>0,1,0)) ->  | BF26: =IF(ISERROR(IF(SEARCH("F",$I$75)>0,1,0))," ",IF(SEARCH("F",$I$75)>0,1,0)) -> 
A27: 8. | B27: Total number of entries for the period | D27: 67 | E27: 1 | F27: % Complete | H27: =IF(ISERROR(COUNTIF(H20:H26,"Yes")/COUNTA(H20:H26)),"-",COUNTIF(H20:H26,"Yes")/COUNTA(H20:H26)) -> 1 | I27: No | J27: =IF(ISERROR(COUNTIF(J20:J26,"Yes")/COUNTA(J20:J26)),"-",COUNTIF(J20:J26,"Yes")/COUNTA(J20:J26)) -> 1 | AN27: 12 | AO27: 17 | AP27: 18 | AQ27: 20 | BA27: =SUM(BA12:BA26) -> 3 | BB27: 8 | BC27: 4 | BD27: 0 | BE27: 0 | BF27: 0
A28: II. Data Accuracy
A29: Recount value of indicators from the malaria case register and compare the value to the one reported by the facility for the selected months
B30: ="Indicators" -> Indicators | G30: Month 1 | H30: Month 2 | I30: Month 3 | J30: 3-month total
G31: Jan | H31: Feb | I31: March
A32: 1. | B32: Select indicator type: | D32: =IF(Indicators!$R$13=0,"-",Indicators!$R$13) -> Maternal_Health
B33: Select indicator: | D33: =IF(Indicators!$S$13=0,"-",Indicators!$S$13) -> ANC 1st Visit | G33: ="quality target: >="&TEXT(100%-Indicators!$V$13,"0%")&", <="&TEXT(100%+Indicators!$V$13,"0%") -> quality target: >=90%, <=110%
B34: Source document re-count | G34: 5 | H34: 7 | I34: 9 | J34: =IF(ISERROR(SUM(G34:I34)),"-",SUM(G34:I34)) -> 21
B35: HMIS monthly report value | G35: 4 | H35: 12 | I35: 7 | J35: =IF(ISERROR(SUM(G35:I35)),"-",SUM(G35:I35)) -> 23
B36: DHIS2 monthly value | G36: 4 | H36: 12 | I36: 7 | J36: =IF(ISERROR(SUM(G36:I36)),"-",SUM(G36:I36)) -> 23
B37: Monthly Report Verification factor(VF): | G37: =IF(ISERROR(G34/G35),"-",G34/G35) -> 1.25 | H37: =IF(ISERROR(H34/H35),"-",H34/H35) -> 0.5833333333 | I37: =IF(ISERROR(I34/I35),"-",I34/I35) -> 1.285714286 | J37: =IF(ISERROR(AVERAGE(G37:I37)),"-",AVERAGE(G37:I37)) -> 1.03968254
B38: DHIS 2 Verification factor(VF): | G38: =IF(ISERROR(G34/G36),"-",G34/G36) -> 1.25 | H38: =IF(ISERROR(H34/H36),"-",H34/H36) -> 0.5833333333 | I38: =IF(ISERROR(I34/I36),"-",I34/I36) -> 1.285714286 | J38: =IF(ISERROR(AVERAGE(G38:I38)),"-",AVERAGE(G38:I38)) -> 1.03968254
B39: Reasons for discrepancy (use code below - mark all that apply) | G39: B | H39: B | I39: B
B40: Other reason (specify)
A41: 2. | B41: Select indicator type: | D41: =IF(Indicators!$R$16=0,"-",Indicators!$R$16) -> HMIS
B42: Select indicator: | D42: =IF(Indicators!$S$16=0,"-",Indicators!$S$16) -> Outpatient visits | G42: ="quality target: >="&TEXT(100%-Indicators!$V$16,"0%")&", <="&TEXT(100%+Indicators!$V$16,"0%") -> quality target: >=90%, <=110%
B43: Source document re-count | G43: 100 | H43: 120 | I43: 130 | J43: =IF(ISERROR(SUM(G43:I43)),"-",SUM(G43:I43)) -> 350
B44: HMIS monthly report value | G44: 92 | H44: 112 | I44: 115 | J44: =IF(ISERROR(SUM(G44:I44)),"-",SUM(G44:I44)) -> 319
B45: DHIS2 monthly value | G45: 82 | H45: 110 | I45: 110 | J45: =IF(ISERROR(SUM(G45:I45)),"-",SUM(G45:I45)) -> 302
B46: Monthly Report Verification factor(VF): | G46: =IF(ISERROR(G43/G44),"-",G43/G44) -> 1.086956522 | H46: =IF(ISERROR(H43/H44),"-",H43/H44) -> 1.071428571 | I46: =IF(ISERROR(I43/I44),"-",I43/I44) -> 1.130434783 | J46: =IF(ISERROR(AVERAGE(G46:I46)),"-",AVERAGE(G46:I46)) -> 1.096273292
B47: DHIS 2 Verification factor(VF): | G47: =IF(ISERROR(G43/G45),"-",G43/G45) -> 1.219512195 | H47: =IF(ISERROR(H43/H45),"-",H43/H45) -> 1.090909091 | I47: =IF(ISERROR(I43/I45),"-",I43/I45) -> 1.181818182 | J47: =IF(ISERROR(AVERAGE(G47:I47)),"-",AVERAGE(G47:I47)) -> 1.164079823
B48: Reasons for discrepancy (use code below - mark all that apply) | G48: B | H48: B | I48: B
B49: Other reason (specify)
A50: 3. | B50: Select indicator type: | D50: =IF(Indicators!$R$19=0,"-",Indicators!$R$19) -> Malaria
B51: Select indicator: | D51: =IF(Indicators!$S$19=0,"-",Indicators!$S$19) -> Number of confirmed malaria cases reported | G51: ="quality target: >="&TEXT(100%-Indicators!$V$19,"0%")&", <="&TEXT(100%+Indicators!$V$19,"0%") -> quality target: >=85%, <=115%
B52: Source document re-count | G52: 12 | H52: 17 | I52: 18 | J52: =IF(ISERROR(SUM(G52:I52)),"-",SUM(G52:I52)) -> 47
B53: HMIS monthly report value | G53: 9 | H53: 10 | I53: 18 | J53: =IF(ISERROR(SUM(G53:I53)),"-",SUM(G53:I53)) -> 37
B54: DHIS2 monthly value | G54: 9 | H54: 10 | I54: 18 | J54: =IF(ISERROR(SUM(G54:I54)),"-",SUM(G54:I54)) -> 37
B55: Monthly Report Verification factor(VF): | G55: =IF(ISERROR(G52/G53),"-",G52/G53) -> 1.333333333 | H55: =IF(ISERROR(H52/H53),"-",H52/H53) -> 1.7 | I55: =IF(ISERROR(I52/I53),"-",I52/I53) -> 1 | J55: =IF(ISERROR(AVERAGE(G55:I55)),"-",AVERAGE(G55:I55)) -> 1.344444444
B56: DHIS 2 Verification factor(VF): | G56: =IF(ISERROR(G52/G54),"-",G52/G54) -> 1.333333333 | H56: =IF(ISERROR(H52/H54),"-",H52/H54) -> 1.7 | I56: =IF(ISERROR(I52/I54),"-",I52/I54) -> 1 | J56: =IF(ISERROR(AVERAGE(G56:I56)),"-",AVERAGE(G56:I56)) -> 1.344444444
B57: Reasons for discrepancy (use code below - mark all that apply) | G57: C | H57: C | I57: C
B58: Other reason (specify)
A59: 4. | B59: Select indicator type: | D59: =IF(Indicators!$R$22=0,"-",Indicators!$R$22) -> Immunization
B60: Select indicator: | D60: =IF(Indicators!$S$22=0,"-",Indicators!$S$22) -> 3rd dose DPT-containing vaccine | G60: ="quality target: >="&TEXT(100%-Indicators!$V$22,"0%")&", <="&TEXT(100%+Indicators!$V$22,"0%") -> quality target: >=80%, <=120%
B61: Source document re-count | G61: 40 | H61: 41 | I61: 42 | J61: =IF(ISERROR(SUM(G61:I61)),"-",SUM(G61:I61)) -> 123
B62: HMIS monthly report value | G62: 43 | H62: 44 | I62: 45 | J62: =IF(ISERROR(SUM(G62:I62)),"-",SUM(G62:I62)) -> 132
B63: DHIS2 monthly value | G63: 46 | H63: 47 | I63: 48 | J63: =IF(ISERROR(SUM(G63:I63)),"-",SUM(G63:I63)) -> 141
B64: Monthly Report Verification factor(VF): | G64: =IF(ISERROR(G61/G62),"-",G61/G62) -> 0.9302325581 | H64: =IF(ISERROR(H61/H62),"-",H61/H62) -> 0.9318181818 | I64: =IF(ISERROR(I61/I62),"-",I61/I62) -> 0.9333333333 | J64: =IF(ISERROR(AVERAGE(G64:I64)),"-",AVERAGE(G64:I64)) -> 0.9317946911
B65: DHIS 2 Verification factor(VF): | G65: =IF(ISERROR(G61/G63),"-",G61/G63) -> 0.8695652174 | H65: =IF(ISERROR(H61/H63),"-",H61/H63) -> 0.8723404255 | I65: =IF(ISERROR(I61/I63),"-",I61/I63) -> 0.875 | J65: =IF(ISERROR(AVERAGE(G65:I65)),"-",AVERAGE(G65:I65)) -> 0.872301881
B66: Reasons for discrepancy (use code below - mark all that apply) | G66: A | H66: A | I66: A
B67: Other reason (specify)
A68: 5. | B68: Select indicator type: | D68: =IF(Indicators!$R$25=0,"-",Indicators!$R$25) -> HMIS
B69: Select indicator: | D69: =IF(Indicators!$S$25=0,"-",Indicators!$S$25) -> Live births | G69: ="quality target: >="&TEXT(100%-Indicators!$V$25,"0%")&", <="&TEXT(100%+Indicators!$V$25,"0%") -> quality target: >=75%, <=125%
B70: Source document re-count | G70: 32 | H70: 33 | I70: 34 | J70: =IF(ISERROR(SUM(G70:I70)),"-",SUM(G70:I70)) -> 99
B71: HMIS monthly report value | G71: 35 | H71: 36 | I71: 37 | J71: =IF(ISERROR(SUM(G71:I71)),"-",SUM(G71:I71)) -> 108
B72: DHIS2 monthly value | G72: 38 | H72: 39 | I72: 40 | J72: =IF(ISERROR(SUM(G72:I72)),"-",SUM(G72:I72)) -> 117
B73: Monthly Report Verification factor(VF): | G73: =IF(ISERROR(G70/G71),"-",G70/G71) -> 0.9142857143 | H73: =IF(ISERROR(H70/H71),"-",H70/H71) -> 0.9166666667 | I73: =IF(ISERROR(I70/I71),"-",I70/I71) -> 0.9189189189 | J73: =IF(ISERROR(AVERAGE(G73:I73)),"-",AVERAGE(G73:I73)) -> 0.9166237666
B74: DHIS 2 Verification factor(VF): | G74: =IF(ISERROR(G70/G72),"-",G70/G72) -> 0.8421052632 | H74: =IF(ISERROR(H70/H72),"-",H70/H72) -> 0.8461538462 | I74: =IF(ISERROR(I70/I72),"-",I70/I72) -> 0.85 | J74: =IF(ISERROR(AVERAGE(G74:I74)),"-",AVERAGE(G74:I74)) -> 0.8460863698
B75: Reasons for discrepancy (use code below - mark all that apply) | G75: B | H75: C | I75: B
B76: Other reason (specify)
A77: Reasons for discrepancy:
A78: a) no discrepancy, b) arithmetic errors, c) transcription errors, d) some documents were missing when the report was prepared, e) some documents are now missing, f) other (specify)
A79: III. Cross Checks | K79: Comments
A80: ="A — "&Indicators!R31&" : "&Indicators!S31&" (quality target = "&TEXT(100%-Indicators!$V$31,"0%")&")" -> A — Malaria case register : Laboratory register (quality target = 90%)
A81: ="Randomly select 10 patients who have been treated in the period at the facility from the "&Indicators!R31&"." -> Randomly select 10 patients who have been treated in the period at the facility from the Malaria case register.
A82: ="1. Number of cases sampled from the "&Indicators!R31&"." -> 1. Number of cases sampled from the Malaria case register. | J82: 10
A83: ="2. How many of the patients selected had a corresponding entry with matching information for the patients in the "&Indicators!S31&"?" -> 2. How many of the patients selected had a corresponding entry with matching information for the patients in the Laboratory register? | J83: 8
A84: =Indicators!S31&" reliability rate:" -> Laboratory register reliability rate: | J84: =IF(ISERROR(J83/J82),"-",J83/J82) -> 0.8
A85: ="B — "&Indicators!R34&" : "&Indicators!S34&" (quality target = "&TEXT(100%-Indicators!$V$34,"0%")&")" -> B — Immunization register : Vaccine stock registry (quality target = 90%)
A86: ="Randomly select 10 cases who have been treated in the period at the facility from the "&Indicators!R34&"." -> Randomly select 10 cases who have been treated in the period at the facility from the Immunization register.
A87: ="1. Number of cases sampled from the "&Indicators!R34&"." -> 1. Number of cases sampled from the Immunization register. | J87: 10
A88: ="2. How many of the patients selected had a corresponding entry with matching information for the patients in the "&Indicators!S34&"?" -> 2. How many of the patients selected had a corresponding entry with matching information for the patients in the Vaccine stock registry? | J88: 9
A89: =Indicators!S34&" reliability rate:" -> Vaccine stock registry reliability rate: | J89: =IF(ISERROR(J88/J87),"-",J88/J87) -> 0.9
A90: ="C — "&Indicators!R37&" : "&Indicators!S37&" (quality target: >="&TEXT(100%-Indicators!$V$38,"0%")&", <="&TEXT(100%+Indicators!$V$38,"0%")&")" -> C — ANC Register : Vaccine stock management log (quality target: >=90%, <=110%)
A91: Number of units (e.g. doses of medication/vaccine, other commodities) in stock at the site at the beginning of the reporting period (initial in stock) | I91: a. | J91: 80
A92: Number of units received by the site during the reporting period | G92: b. | I92: b. | J92: 20
A93: Number of units in stock at the site at the end of the reporting period (closing in stock) | G93: c. | I93: c. | J93: 90
A94: Number of units used (e.g. given to patients) by the site during the reporting period | G94: d. | I94: d. | J94: 10
A95: Verification ratio: (d/[a+b-c]): | J95: =IF(ISERROR(J94/(J91+J92-J93)),"-",J94/(J91+J92-J93)) -> 1
A96: Reasons for discrepancy (enter code at right):
A97: a) no discrepancy, b) arithmetic errors, c) transcription errors, d) drugs stock management forms not up to date, e) some documents are missing, f) stock out of treatment drugs, | J97: A
A98: g) other (specify)
A99: ="IV. Consistency Checks - Consistency of data elements over time Quality target = >="&TEXT(100%-Indicators!$V$42,"0%")&", <="&TEXT(100%+Indicators!$V$42,"0%")&")" -> IV. Consistency Checks - Consistency of data elements over time Quality target = >=80%, <=120%) | F99: Program Area -> | H99: =Indicators!$B$42 -> Malaria
A100: IV.a: Annual consistency - select the indicator on the Indicators tab. | F100: Indicator -> | H100: =Indicators!$E$42 -> Number of confirmed malaria cases reported
A101: 1. What is the current month value | J101: 20
A102: 2. What was the value of the indicator for the current month one year ago | J102: 25
A103: Consistency ratio: Divide the value of the current month by the value from the same month last year. If the value is more than 20% different (i.e. <0.8 or >1.2) this could indicate a data quality problem. | J103: =IF(ISERROR(J101/J102),"-",J101/J102) -> 0.8
A104: IV.b Month-to-month consistency:
A105: Enter values for the selected indicator for the current month, and for the three preceding months. Calculate consistency: Current month/average of Month1-Month3. If the value is more than 20% different (i.e. <0.8 or >1.2) this could indicate a data quality problem. | F105: Month 1 | G105: Month 2 | H105: Month 3 | I105: Last month | J105: Consistency
E106: month | F106: Jan | G106: Feb | H106: March | I106: April | J106: ratio
E107: value | F107: 12 | G107: 17 | H107: 18 | I107: 20 | J107: =IF(ISERROR(I107/AVERAGE(F107:H107)),"-",I107/AVERAGE(F107:H107)) -> 1.276595745
A108: Reasons for discrepancy (enter code at right):
A109: a) no discrepancy, b) arithmetic errors, c) transcription errors, d) vaccine stock management forms not up to date, e) some documents are missing, f) vaccine / drugs stock out, | J109: C
A110: g) other (specify)
A111: V. System Assessment - Respond Yes or No for the following questions. | J111: Y/N
A112: V.1 | B112: Is there a designated person to enter data and compile reports? | J112: No
A113: V.2 | B113: Is there a designated person to review the quality of compiled data prior to submission to the next level? | J113: No
A114: V.3 | B114: Does the health facility have written guidelines on data collection and reporting for HMIS? | J114: No
A115: V.4 | B115: Does the health facility have a reserve stock of blank registers or reporting forms? | J115: Yes
A116: V.5 | B116: Has this health facility experienced any stock out of registers or reporting forms (since last visit)? | J116: Yes
A117: V.6 | B117: Is a standardized OPD register being used to record information on patients seeking treatment (not improvised forms)? | J117: Yes
A118: V.7 | B118: Can a patient's diagnosis and treatment history be easily found in the facility records? | J118: No
A119: V.8 | B119: Are data archives properly maintained with historical patient level (registers) and aggregate (monthly report) results? | J119: No
A120: V.9 | B120: Does the facility maintain accurate demographic information for the catchment area (that is, a record current population and the number of births and deaths)? | J120: Yes
A121: V.10 | B121: Does the facility have established targets to monitor progress towards goals and objectives for prevention and treatment? | J121: Yes
A122: V.11 | B122: Does the facility have an up-to-date display (for example, a chart on the wall) of the number of cases diagnosed and treated by reporting period for the year? | J122: No
A123: V.12 | B123: Is there a chart of disease incidence by month displayed at the facility? | J123: Yes
A124: Data Quality Improvement Plan for the Health Facility
A125: Please list the primary gaps or weaknesses in the data management system at the facility. What are the threats , or potential threats, to data quality ? For each item cited, please include action points that the facility can implement to strengthen the data management at the facility. Please be realistic in your recommendations. Also include the responsible staff and the date by which the intervention should be completed.
B126: Identified Weaknesses | E126: Description of Action Point | H126: Responsible(s) | J126: Time Line | K126: Comments
A127: 1
A128: 2
A129: 3
A130: 4
A132: HMIS Health Facility Supervision Data Quality Dashboard

Sheet Health Facility 2
A1: National Health Management Information System (HMIS) | H1: WHO - 2020 | M1: Go back to facility information tab
A2: Routine Supervision Data Quality Checklist | M2: Go to Dashboard
A3: Routine Supervision Data Quality Checklist | M3: Go to Dashboard
A4: Routine Supervision Data Quality Checklist | M4: Go to Dashboard
A5: Routine Supervision Data Quality Checklist | M5: Go to Dashboard
A6: Routine Supervision Data Quality Checklist | M6: Go to Dashboard
A7: Health facility name: | D7: =IF('Facility Information'!D15=0,"-",'Facility Information'!D15) -> Essex | G7: Date of Supervision: | J7: =IF('Facility Information'!J15=0,"-",'Facility Information'!J15) -> 01/05/2025 | M7: Go to indicators
A8: Facility type: | D8: =IF('Facility Information'!H15=0,"-",'Facility Information'!H15) -> Health Center | G8: Reporting period(s) verified (months): | J8: =IF(ISERROR(TEXT(EDATE(J7,-3),"mmm-yy")&", "&TEXT(EDATE(J7,-2),"mmm-yy")&", "&TEXT(EDATE(J7,-1),"mmm-yy")),"-",TEXT(EDATE(J7,-3),"mmm-yy")&", "&TEXT(EDATE(J7,-2),"mmm-yy")&", "&TEXT(EDATE(J7,-1),"mmm-yy")) -> -
A9: Town/Village: | D9: =IF('Facility Information'!E15=0,"-",'Facility Information'!E15) -> Windsor | G9: Supervison team lead: | J9: =IF('Facility Information'!K15=0,"-",'Facility Information'!K15) -> Shurajit | AO9: Reporting performance & Readiness to provide quality data | AZ9: ="Reasons for discrepancy, by indicator" -> Reasons for discrepancy, by indicator
A10: Region: | D10: =IF('Facility Information'!G15=0,"-",'Facility Information'!G15) -> Ontario | G10: Contact phone: | J10: =IF('Facility Information'!L15=0,"-",'Facility Information'!L15) -> 6477653160 | AN10: Results | AR10: Source documents | AZ10: by comparison | BH10: by indicator
A11: District: | D11: =IF('Facility Information'!F15=0,"-",'Facility Information'!F15) -> Essex | G11: Contact email: | J11: =IF('Facility Information'!M15=0,"-",'Facility Information'!M15) -> shurajit@dhis2.org | AO11: Completeness of Monthly report | AP11: % Cases with missing data | AQ11: Timeliness of reporting | AR11: =AR10&" available" -> Source documents available | AS11: =AR10&" Up-to-date" -> Source documents Up-to-date | AT11: =AR10&" standard issue" -> Source documents standard issue | AU11: System Assessment (% readiness) | BA11: A | BB11: B | BC11: C | BD11: D | BE11: E | BF11: F | BI11: No discrepancy | BJ11: Arithematic errors | BK11: Transcription errors | BL11: Some documents were missing when the report was prepared | BM11: Some documents are now missing | BN11: Other
A12: I. Completeness & Timeliness | K12: Please provide a comment on the results | AO12: =J15 -> - | AP12: =E26 -> - | AQ12: =J17 -> 0 | AR12: =H27 -> - | AS12: =I27 -> - | AT12: =J27 -> - | AU12: =COUNTIF(J112:J123,"Yes")/COUNTA(J112:J123) ->  | AZ12: 1.1 | BA12: =IF(ISERROR(IF(SEARCH("A",$G$39)>0,1,0))," ",IF(SEARCH("A",$G$39)>0,1,0)) ->  | BB12: =IF(ISERROR(IF(SEARCH("B",$G$39)>0,1,0))," ",IF(SEARCH("B",$G$39)>0,1,0)) ->  | BC12: =IF(ISERROR(IF(SEARCH("C",$G$39)>0,1,0))," ",IF(SEARCH("C",$G$39)>0,1,0)) ->  | BD12: =IF(ISERROR(IF(SEARCH("D",$G$39)>0,1,0))," ",IF(SEARCH("D",$G$39)>0,1,0)) ->  | BE12: =IF(ISERROR(IF(SEARCH("E",$G$39)>0,1,0))," ",IF(SEARCH("E",$G$39)>0,1,0)) ->  | BF12: =IF(ISERROR(IF(SEARCH("F",$G$39)>0,1,0))," ",IF(SEARCH("F",$G$39)>0,1,0)) ->  | BH12: =AO14 -> ANC 1st Visit | BI12: =SUM(BA12:BA14) -> 0 | BJ12: 0 | BK12: 0 | BL12: 0 | BM12: 0 | BN12: 0
A13: A. Completeness of HMIS Monthly Report | H13: Expected Cells | I13: Completed Cells | J13: Percent Complete | AN13: Verification factors | AP13: VF Monthly report | AQ13: VF HMIS | AZ13: 1.2 | BA13: =IF(ISERROR(IF(SEARCH("A",$H$39)>0,1,0))," ",IF(SEARCH("A",$H$39)>0,1,0)) ->  | BB13: =IF(ISERROR(IF(SEARCH("B",$H$39)>0,1,0))," ",IF(SEARCH("B",$H$39)>0,1,0)) ->  | BC13: =IF(ISERROR(IF(SEARCH("C",$H$39)>0,1,0))," ",IF(SEARCH("C",$H$39)>0,1,0)) ->  | BD13: =IF(ISERROR(IF(SEARCH("D",$H$39)>0,1,0))," ",IF(SEARCH("D",$H$39)>0,1,0)) ->  | BE13: =IF(ISERROR(IF(SEARCH("E",$H$39)>0,1,0))," ",IF(SEARCH("E",$H$39)>0,1,0)) ->  | BF13: =IF(ISERROR(IF(SEARCH("F",$H$39)>0,1,0))," ",IF(SEARCH("F",$H$39)>0,1,0)) ->  | BH13: =AO15 -> Outpatient visits | BI13: =SUM(BA15:BA17) -> 0 | BJ13: =SUM(BB15:BB17) -> 0 | BK13: 0 | BL13: 0 | BM13: 0 | BN13: 0
A14: Select the most recent completed and submitted monthly HMIS facility report. Calculate the number of cells expected to be complete on the monthly report (exclude cells for services not offered by the facility). Count the number of cells that are complete (blank, not zero) and calculate the percentage completeness for the monthly report. | AN14: indicator | AO14: =D33 -> ANC 1st Visit | AP14: =J37 -> - | AQ14: =J38 -> - | AZ14: 1.3 | BA14: =IF(ISERROR(IF(SEARCH("A",$I$39)>0,1,0))," ",IF(SEARCH("A",$I$39)>0,1,0)) ->  | BB14: =IF(ISERROR(IF(SEARCH("B",$I$39)>0,1,0))," ",IF(SEARCH("B",$I$39)>0,1,0)) ->  | BC14: =IF(ISERROR(IF(SEARCH("C",$I$39)>0,1,0))," ",IF(SEARCH("C",$I$39)>0,1,0)) ->  | BD14: =IF(ISERROR(IF(SEARCH("D",$I$39)>0,1,0))," ",IF(SEARCH("D",$I$39)>0,1,0)) ->  | BE14: =IF(ISERROR(IF(SEARCH("E",$I$39)>0,1,0))," ",IF(SEARCH("E",$I$39)>0,1,0)) ->  | BF14: =IF(ISERROR(IF(SEARCH("F",$I$39)>0,1,0))," ",IF(SEARCH("F",$I$39)>0,1,0)) ->  | BH14: =AO16 -> Number of confirmed malaria cases reported | BI14: =SUM(BA18:BA20) -> 0 | BJ14: 0 | BK14: 0 | BL14: 0 | BM14: 0 | BN14: 0
J15: =IF(ISERROR(I15/H15),"-",I15/H15) -> - | AO15: =D42 -> Outpatient visits | AP15: =J46 -> - | AQ15: =J47 -> - | AZ15: 2.1 | BA15: =IF(ISERROR(IF(SEARCH("A",$G$48)>0,1,0))," ",IF(SEARCH("A",$G$48)>0,1,0)) ->  | BB15: =IF(ISERROR(IF(SEARCH("B",$G$48)>0,1,0))," ",IF(SEARCH("B",$G$48)>0,1,0)) ->  | BC15: =IF(ISERROR(IF(SEARCH("C",$G$48)>0,1,0))," ",IF(SEARCH("C",$G$48)>0,1,0)) ->  | BD15: =IF(ISERROR(IF(SEARCH("D",$G$48)>0,1,0))," ",IF(SEARCH("D",$G$48)>0,1,0)) ->  | BE15: =IF(ISERROR(IF(SEARCH("E",$G$48)>0,1,0))," ",IF(SEARCH("E",$G$48)>0,1,0)) ->  | BF15: =IF(ISERROR(IF(SEARCH("F",$G$48)>0,1,0))," ",IF(SEARCH("F",$G$48)>0,1,0)) ->  | BH15: =AO17 -> 3rd dose DPT-containing vaccine | BI15: =SUM(BA21:BA23) -> 1 | BJ15: 0 | BK15: 1 | BL15: 1 | BM15: 0 | BN15: 0
A16: B. Timeliness of Submission of Monthly Report | F16: Monthly report: | G16: =IF(ISERROR(EDATE($J$7,-3)),"-",EDATE($J$7,-3)) -> - | H16: =IF(ISERROR(EDATE($J$7,-3)),"-",EDATE($J$7,-2)) -> - | I16: =IF(ISERROR(EDATE($J$7,-3)),"-",EDATE($J$7,-1)) -> - | AO16: =D51 -> Number of confirmed malaria cases reported | AP16: =J55 -> - | AQ16: =J56 -> - | AZ16: 2.2 | BA16: =IF(ISERROR(IF(SEARCH("A",$H$48)>0,1,0))," ",IF(SEARCH("A",$H$48)>0,1,0)) ->  | BB16: =IF(ISERROR(IF(SEARCH("B",$H$48)>0,1,0))," ",IF(SEARCH("B",$H$48)>0,1,0)) ->  | BC16: =IF(ISERROR(IF(SEARCH("C",$H$48)>0,1,0))," ",IF(SEARCH("C",$H$48)>0,1,0)) ->  | BD16: =IF(ISERROR(IF(SEARCH("D",$H$48)>0,1,0))," ",IF(SEARCH("D",$H$48)>0,1,0)) ->  | BE16: =IF(ISERROR(IF(SEARCH("E",$H$48)>0,1,0))," ",IF(SEARCH("E",$H$48)>0,1,0)) ->  | BF16: =IF(ISERROR(IF(SEARCH("F",$H$48)>0,1,0))," ",IF(SEARCH("F",$H$48)>0,1,0)) ->  | BH16: =AO18 -> Live births | BI16: =SUM(BA24:BA26) -> 0 | BJ16: 0 | BK16: 0 | BL16: 0 | BM16: 3 | BN16: 0
A17: Review the monthly reports from the past three months at the facility and in the HMIS database. Determine if the reports were submitted by the deadline of reporting | F17: Submitted by the deadline? (Y/N) | J17: =COUNTIF(G17:I17,"Yes")/3 -> 0 | AO17: =D60 -> 3rd dose DPT-containing vaccine | AP17: =J64 -> 0.945342312 | AQ17: =J65 -> 0.9719274978 | AZ17: 2.3 | BA17: =IF(ISERROR(IF(SEARCH("A",$I$48)>0,1,0))," ",IF(SEARCH("A",$I$48)>0,1,0)) ->  | BB17: =IF(ISERROR(IF(SEARCH("B",$I$48)>0,1,0))," ",IF(SEARCH("B",$I$48)>0,1,0)) ->  | BC17: =IF(ISERROR(IF(SEARCH("C",$I$48)>0,1,0))," ",IF(SEARCH("C",$I$48)>0,1,0)) ->  | BD17: =IF(ISERROR(IF(SEARCH("D",$I$48)>0,1,0))," ",IF(SEARCH("D",$I$48)>0,1,0)) ->  | BE17: =IF(ISERROR(IF(SEARCH("E",$I$48)>0,1,0))," ",IF(SEARCH("E",$I$48)>0,1,0)) ->  | BF17: =IF(ISERROR(IF(SEARCH("F",$I$48)>0,1,0))," ",IF(SEARCH("F",$I$48)>0,1,0)) ->  | BI17: =SUM(BI12:BI16) -> 1 | BJ17: 0 | BK17: 1 | BL17: 1 | BM17: 3 | BN17: 0
A18: C. Data Element Completeness: Missing data: ask to see the Outpatient Department (OPD) register. Count the number of clients in the quarter (month 1 to month 3) with missing information for each of the following columns in the unit malaria case register. | F18: D. Source Document Completeness: Review the following data sources and determine if they are available, up-to-date (values up to the current day/period) and standard (the form prepared and distributed by the program). (Y/N) | AO18: =D69 -> Live births | AP18: =J73 -> 0.9291167489 | AQ18: =J74 -> 0.9605110337 | AZ18: 3.1 | BA18: =IF(ISERROR(IF(SEARCH("A",$G$57)>0,1,0))," ",IF(SEARCH("A",$G$57)>0,1,0)) ->  | BB18: =IF(ISERROR(IF(SEARCH("B",$G$57)>0,1,0))," ",IF(SEARCH("B",$G$57)>0,1,0)) ->  | BC18: =IF(ISERROR(IF(SEARCH("C",$G$57)>0,1,0))," ",IF(SEARCH("C",$G$57)>0,1,0)) ->  | BD18: =IF(ISERROR(IF(SEARCH("D",$G$57)>0,1,0))," ",IF(SEARCH("D",$G$57)>0,1,0)) ->  | BE18: =IF(ISERROR(IF(SEARCH("E",$G$57)>0,1,0))," ",IF(SEARCH("E",$G$57)>0,1,0)) ->  | BF18: =IF(ISERROR(IF(SEARCH("F",$G$57)>0,1,0))," ",IF(SEARCH("F",$G$57)>0,1,0)) -> 
A19: =Indicators!R47&" Data elements" -> DE_HMIS Data elements | D19: Number of cases (rows) with missing data | % | F19: =Indicators!S47&" Source Documents:" -> DS_HMIS Source Documents: | H19: Available | I19: Up-to-date | J19: Standard form | K19: Comments | AZ19: 3.2 | BA19: =IF(ISERROR(IF(SEARCH("A",$H$57)>0,1,0))," ",IF(SEARCH("A",$H$57)>0,1,0)) ->  | BB19: =IF(ISERROR(IF(SEARCH("B",$H$57)>0,1,0))," ",IF(SEARCH("B",$H$57)>0,1,0)) ->  | BC19: =IF(ISERROR(IF(SEARCH("C",$H$57)>0,1,0))," ",IF(SEARCH("C",$H$57)>0,1,0)) ->  | BD19: =IF(ISERROR(IF(SEARCH("D",$H$57)>0,1,0))," ",IF(SEARCH("D",$H$57)>0,1,0)) ->  | BE19: =IF(ISERROR(IF(SEARCH("E",$H$57)>0,1,0))," ",IF(SEARCH("E",$H$57)>0,1,0)) ->  | BF19: =IF(ISERROR(IF(SEARCH("F",$H$57)>0,1,0))," ",IF(SEARCH("F",$H$57)>0,1,0)) -> 
A20: 1. | B20: =Indicators!R49 -> Unique ID | E20: =IF(D20="","-",IF(ISERROR(D20/$D$27),"-",D20/$D$27)) -> - | F20: =Indicators!S49 -> OPD register | AN20: Cross checks | AZ20: 3.3 | BA20: =IF(ISERROR(IF(SEARCH("A",$I$57)>0,1,0))," ",IF(SEARCH("A",$I$57)>0,1,0)) ->  | BB20: =IF(ISERROR(IF(SEARCH("B",$I$57)>0,1,0))," ",IF(SEARCH("B",$I$57)>0,1,0)) ->  | BC20: =IF(ISERROR(IF(SEARCH("C",$I$57)>0,1,0))," ",IF(SEARCH("C",$I$57)>0,1,0)) ->  | BD20: =IF(ISERROR(IF(SEARCH("D",$I$57)>0,1,0))," ",IF(SEARCH("D",$I$57)>0,1,0)) ->  | BE20: =IF(ISERROR(IF(SEARCH("E",$I$57)>0,1,0))," ",IF(SEARCH("E",$I$57)>0,1,0)) ->  | BF20: =IF(ISERROR(IF(SEARCH("F",$I$57)>0,1,0))," ",IF(SEARCH("F",$I$57)>0,1,0)) -> 
A21: 2. | B21: =Indicators!R51 -> Visit date | E21: - | F21: =Indicators!S51 -> OPD register | AO21: =A80 -> A — Malaria case register : Laboratory register (quality target = 90%) | AP21: =J84 -> - | AR21: =AN20&" 1 & 2" -> Cross checks 1 & 2 | AZ21: 4.1 | BA21: =IF(ISERROR(IF(SEARCH("A",$G$66)>0,1,0))," ",IF(SEARCH("A",$G$66)>0,1,0)) -> 1 | BB21: =IF(ISERROR(IF(SEARCH("B",$G$66)>0,1,0))," ",IF(SEARCH("B",$G$66)>0,1,0)) ->  | BC21: =IF(ISERROR(IF(SEARCH("C",$G$66)>0,1,0))," ",IF(SEARCH("C",$G$66)>0,1,0)) ->  | BD21: =IF(ISERROR(IF(SEARCH("D",$G$66)>0,1,0))," ",IF(SEARCH("D",$G$66)>0,1,0)) ->  | BE21: =IF(ISERROR(IF(SEARCH("E",$G$66)>0,1,0))," ",IF(SEARCH("E",$G$66)>0,1,0)) ->  | BF21: =IF(ISERROR(IF(SEARCH("F",$G$66)>0,1,0))," ",IF(SEARCH("F",$G$66)>0,1,0)) -> 
A22: 3. | B22: =Indicators!R53 -> Client name | E22: - | F22: =Indicators!S53 -> OPD register | AO22: =A85 -> B — Immunization register : Vaccine stock registry (quality target = 90%) | AP22: =J89 -> - | AZ22: 4.2 | BA22: =IF(ISERROR(IF(SEARCH("A",$H$66)>0,1,0))," ",IF(SEARCH("A",$H$66)>0,1,0)) ->  | BB22: =IF(ISERROR(IF(SEARCH("B",$H$66)>0,1,0))," ",IF(SEARCH("B",$H$66)>0,1,0)) ->  | BC22: =IF(ISERROR(IF(SEARCH("C",$H$66)>0,1,0))," ",IF(SEARCH("C",$H$66)>0,1,0)) ->  | BD22: =IF(ISERROR(IF(SEARCH("D",$H$66)>0,1,0))," ",IF(SEARCH("D",$H$66)>0,1,0)) -> 1 | BE22: =IF(ISERROR(IF(SEARCH("E",$H$66)>0,1,0))," ",IF(SEARCH("E",$H$66)>0,1,0)) ->  | BF22: =IF(ISERROR(IF(SEARCH("F",$H$66)>0,1,0))," ",IF(SEARCH("F",$H$66)>0,1,0)) -> 
A23: 4. | B23: =Indicators!R55 -> Age | E23: - | F23: =Indicators!S55 -> OPD register | AO23: =A90 -> C — ANC Register : Vaccine stock management log (quality target: >=90%, <=110%) | AP23: =J95 -> - | AR23: ="Cross check 3" -> Cross check 3 | AZ23: 4.3 | BA23: =IF(ISERROR(IF(SEARCH("A",$I$66)>0,1,0))," ",IF(SEARCH("A",$I$66)>0,1,0)) ->  | BB23: =IF(ISERROR(IF(SEARCH("B",$I$66)>0,1,0))," ",IF(SEARCH("B",$I$66)>0,1,0)) ->  | BC23: =IF(ISERROR(IF(SEARCH("C",$I$66)>0,1,0))," ",IF(SEARCH("C",$I$66)>0,1,0)) -> 1 | BD23: =IF(ISERROR(IF(SEARCH("D",$I$66)>0,1,0))," ",IF(SEARCH("D",$I$66)>0,1,0)) ->  | BE23: =IF(ISERROR(IF(SEARCH("E",$I$66)>0,1,0))," ",IF(SEARCH("E",$I$66)>0,1,0)) ->  | BF23: =IF(ISERROR(IF(SEARCH("F",$I$66)>0,1,0))," ",IF(SEARCH("F",$I$66)>0,1,0)) -> 
A24: 5. | B24: =Indicators!R57 -> Diagnosis (any type) | E24: - | F24: =Indicators!S57 -> OPD register | AZ24: 5.1 | BA24: =IF(ISERROR(IF(SEARCH("A",$G$75)>0,1,0))," ",IF(SEARCH("A",$G$75)>0,1,0)) ->  | BB24: =IF(ISERROR(IF(SEARCH("B",$G$75)>0,1,0))," ",IF(SEARCH("B",$G$75)>0,1,0)) ->  | BC24: =IF(ISERROR(IF(SEARCH("C",$G$75)>0,1,0))," ",IF(SEARCH("C",$G$75)>0,1,0)) ->  | BD24: =IF(ISERROR(IF(SEARCH("D",$G$75)>0,1,0))," ",IF(SEARCH("D",$G$75)>0,1,0)) ->  | BE24: =IF(ISERROR(IF(SEARCH("E",$G$75)>0,1,0))," ",IF(SEARCH("E",$G$75)>0,1,0)) -> 1 | BF24: =IF(ISERROR(IF(SEARCH("F",$G$75)>0,1,0))," ",IF(SEARCH("F",$G$75)>0,1,0)) -> 
A25: 6. | B25: =Indicators!R59 -> Treatment given | E25: - | F25: =Indicators!S59 -> OPD register | AN25: ="Consistency over time: "&H99&": "&H100 -> Consistency over time: Malaria: Number of confirmed malaria cases reported | AZ25: 5.2 | BA25: =IF(ISERROR(IF(SEARCH("A",$H$75)>0,1,0))," ",IF(SEARCH("A",$H$75)>0,1,0)) ->  | BB25: =IF(ISERROR(IF(SEARCH("B",$H$75)>0,1,0))," ",IF(SEARCH("B",$H$75)>0,1,0)) ->  | BC25: =IF(ISERROR(IF(SEARCH("C",$H$75)>0,1,0))," ",IF(SEARCH("C",$H$75)>0,1,0)) ->  | BD25: =IF(ISERROR(IF(SEARCH("D",$H$75)>0,1,0))," ",IF(SEARCH("D",$H$75)>0,1,0)) ->  | BE25: =IF(ISERROR(IF(SEARCH("E",$H$75)>0,1,0))," ",IF(SEARCH("E",$H$75)>0,1,0)) -> 1 | BF25: =IF(ISERROR(IF(SEARCH("F",$H$75)>0,1,0))," ",IF(SEARCH("F",$H$75)>0,1,0)) -> 
A26: 7. | B26: Number of entries missing data in at least 1 of the 6 columns listed above | E26: - | F26: =Indicators!S61 -> OPD register | AN26: =F106 -> - | AO26: - | AP26: - | AQ26: - | AZ26: 5.3 | BA26: =IF(ISERROR(IF(SEARCH("A",$I$75)>0,1,0))," ",IF(SEARCH("A",$I$75)>0,1,0)) ->  | BB26: =IF(ISERROR(IF(SEARCH("B",$I$75)>0,1,0))," ",IF(SEARCH("B",$I$75)>0,1,0)) ->  | BC26: =IF(ISERROR(IF(SEARCH("C",$I$75)>0,1,0))," ",IF(SEARCH("C",$I$75)>0,1,0)) ->  | BD26: =IF(ISERROR(IF(SEARCH("D",$I$75)>0,1,0))," ",IF(SEARCH("D",$I$75)>0,1,0)) ->  | BE26: =IF(ISERROR(IF(SEARCH("E",$I$75)>0,1,0))," ",IF(SEARCH("E",$I$75)>0,1,0)) -> 1 | BF26: =IF(ISERROR(IF(SEARCH("F",$I$75)>0,1,0))," ",IF(SEARCH("F",$I$75)>0,1,0)) -> 
A27: 8. | B27: Total number of entries for the period | F27: % Complete | H27: =IF(ISERROR(COUNTIF(H20:H26,"Yes")/COUNTA(H20:H26)),"-",COUNTIF(H20:H26,"Yes")/COUNTA(H20:H26)) -> - | I27: =IF(ISERROR(COUNTIF(I20:I26,"Yes")/COUNTA(I20:I26)),"-",COUNTIF(I20:I26,"Yes")/COUNTA(I20:I26)) -> - | J27: =IF(ISERROR(COUNTIF(J20:J26,"Yes")/COUNTA(J20:J26)),"-",COUNTIF(J20:J26,"Yes")/COUNTA(J20:J26)) -> - | AN27: 0 | AO27: 0 | AP27: 0 | AQ27: 0 | BA27: =SUM(BA12:BA26) -> 1 | BB27: 0 | BC27: 1 | BD27: 1 | BE27: 3 | BF27: 0
A28: II. Data Accuracy
A29: Recount value of indicators from the malaria case register and compare the value to the one reported by the facility for the selected months
B30: ="Indicators" -> Indicators | G30: Month 1 | H30: Month 2 | I30: Month 3 | J30: 3-month total
G31: =IF(ISERROR(EDATE($J$7,-3)),"-",EDATE($J$7,-3)) -> - | H31: =IF(ISERROR(EDATE($J$7,-3)),"-",EDATE($J$7,-2)) -> - | I31: =IF(ISERROR(EDATE($J$7,-3)),"-",EDATE($J$7,-1)) -> -
A32: 1. | B32: Select indicator type: | D32: =IF(Indicators!$R$13=0,"-",Indicators!$R$13) -> Maternal_Health
B33: Select indicator: | D33: =IF(Indicators!$S$13=0,"-",Indicators!$S$13) -> ANC 1st Visit | G33: ="quality target: >="&TEXT(100%-Indicators!$V$13,"0%")&", <="&TEXT(100%+Indicators!$V$13,"0%") -> quality target: >=90%, <=110%
B34: Source document re-count | J34: =IF(ISERROR(SUM(G34:I34)),"-",SUM(G34:I34)) -> 0
B35: HMIS monthly report value | J35: =IF(ISERROR(SUM(G35:I35)),"-",SUM(G35:I35)) -> 0
B36: DHIS2 monthly value | J36: =IF(ISERROR(SUM(G36:I36)),"-",SUM(G36:I36)) -> 0
B37: Monthly Report Verification factor(VF): | G37: =IF(ISERROR(G34/G35),"-",G34/G35) -> - | H37: =IF(ISERROR(H34/H35),"-",H34/H35) -> - | I37: =IF(ISERROR(I34/I35),"-",I34/I35) -> - | J37: =IF(ISERROR(AVERAGE(G37:I37)),"-",AVERAGE(G37:I37)) -> -
B38: DHIS 2 Verification factor(VF): | G38: =IF(ISERROR(G34/G36),"-",G34/G36) -> - | H38: =IF(ISERROR(H34/H36),"-",H34/H36) -> - | I38: =IF(ISERROR(I34/I36),"-",I34/I36) -> - | J38: =IF(ISERROR(AVERAGE(G38:I38)),"-",AVERAGE(G38:I38)) -> -
B39: Reasons for discrepancy (use code below - mark all that apply)
B40: Other reason (specify)
A41: 2. | B41: Select indicator type: | D41: =IF(Indicators!$R$16=0,"-",Indicators!$R$16) -> HMIS
B42: Select indicator: | D42: =IF(Indicators!$S$16=0,"-",Indicators!$S$16) -> Outpatient visits | G42: ="quality target: >="&TEXT(100%-Indicators!$V$16,"0%")&", <="&TEXT(100%+Indicators!$V$16,"0%") -> quality target: >=90%, <=110%
B43: Source document re-count | J43: =IF(ISERROR(SUM(G43:I43)),"-",SUM(G43:I43)) -> 0
B44: HMIS monthly report value | J44: =IF(ISERROR(SUM(G44:I44)),"-",SUM(G44:I44)) -> 0
B45: DHIS2 monthly value | J45: =IF(ISERROR(SUM(G45:I45)),"-",SUM(G45:I45)) -> 0
B46: Monthly Report Verification factor(VF): | G46: =IF(ISERROR(G43/G44),"-",G43/G44) -> - | H46: =IF(ISERROR(H43/H44),"-",H43/H44) -> - | I46: =IF(ISERROR(I43/I44),"-",I43/I44) -> - | J46: =IF(ISERROR(AVERAGE(G46:I46)),"-",AVERAGE(G46:I46)) -> -
B47: DHIS 2 Verification factor(VF): | G47: =IF(ISERROR(G43/G45),"-",G43/G45) -> - | H47: =IF(ISERROR(H43/H45),"-",H43/H45) -> - | I47: =IF(ISERROR(I43/I45),"-",I43/I45) -> - | J47: =IF(ISERROR(AVERAGE(G47:I47)),"-",AVERAGE(G47:I47)) -> -
B48: Reasons for discrepancy (use code below - mark all that apply)
B49: Other reason (specify)
A50: 3. | B50: Select indicator type: | D50: =IF(Indicators!$R$19=0,"-",Indicators!$R$19) -> Malaria
B51: Select indicator: | D51: =IF(Indicators!$S$19=0,"-",Indicators!$S$19) -> Number of confirmed malaria cases reported | G51: ="quality target: >="&TEXT(100%-Indicators!$V$19,"0%")&", <="&TEXT(100%+Indicators!$V$19,"0%") -> quality target: >=85%, <=115%
B52: Source document re-count | J52: =IF(ISERROR(SUM(G52:I52)),"-",SUM(G52:I52)) -> 0
B53: HMIS monthly report value | J53: =IF(ISERROR(SUM(G53:I53)),"-",SUM(G53:I53)) -> 0
B54: DHIS2 monthly value | J54: =IF(ISERROR(SUM(G54:I54)),"-",SUM(G54:I54)) -> 0
B55: Monthly Report Verification factor(VF): | G55: =IF(ISERROR(G52/G53),"-",G52/G53) -> - | H55: =IF(ISERROR(H52/H53),"-",H52/H53) -> - | I55: =IF(ISERROR(I52/I53),"-",I52/I53) -> - | J55: =IF(ISERROR(AVERAGE(G55:I55)),"-",AVERAGE(G55:I55)) -> -
B56: DHIS 2 Verification factor(VF): | G56: =IF(ISERROR(G52/G54),"-",G52/G54) -> - | H56: =IF(ISERROR(H52/H54),"-",H52/H54) -> - | I56: =IF(ISERROR(I52/I54),"-",I52/I54) -> - | J56: =IF(ISERROR(AVERAGE(G56:I56)),"-",AVERAGE(G56:I56)) -> -
B57: Reasons for discrepancy (use code below - mark all that apply)
B58: Other reason (specify)
A59: 4. | B59: Select indicator type: | D59: =IF(Indicators!$R$22=0,"-",Indicators!$R$22) -> Immunization
B60: Select indicator: | D60: =IF(Indicators!$S$22=0,"-",Indicators!$S$22) -> 3rd dose DPT-containing vaccine | G60: ="quality target: >="&TEXT(100%-Indicators!$V$22,"0%")&", <="&TEXT(100%+Indicators!$V$22,"0%") -> quality target: >=80%, <=120%
B61: Source document re-count | G61: 50 | H61: 52 | I61: 53 | J61: =IF(ISERROR(SUM(G61:I61)),"-",SUM(G61:I61)) -> 155
B62: HMIS monthly report value | G62: 55 | H62: 55 | I62: 54 | J62: =IF(ISERROR(SUM(G62:I62)),"-",SUM(G62:I62)) -> 164
B63: DHIS2 monthly value | G63: 50 | H63: 58 | I63: 52 | J63: =IF(ISERROR(SUM(G63:I63)),"-",SUM(G63:I63)) -> 160
B64: Monthly Report Verification factor(VF): | G64: =IF(ISERROR(G61/G62),"-",G61/G62) -> 0.9090909091 | H64: =IF(ISERROR(H61/H62),"-",H61/H62) -> 0.9454545455 | I64: =IF(ISERROR(I61/I62),"-",I61/I62) -> 0.9814814815 | J64: =IF(ISERROR(AVERAGE(G64:I64)),"-",AVERAGE(G64:I64)) -> 0.945342312
B65: DHIS 2 Verification factor(VF): | G65: =IF(ISERROR(G61/G63),"-",G61/G63) -> 1 | H65: =IF(ISERROR(H61/H63),"-",H61/H63) -> 0.8965517241 | I65: =IF(ISERROR(I61/I63),"-",I61/I63) -> 1.019230769 | J65: =IF(ISERROR(AVERAGE(G65:I65)),"-",AVERAGE(G65:I65)) -> 0.9719274978
B66: Reasons for discrepancy (use code below - mark all that apply) | G66: A | H66: D | I66: C
B67: Other reason (specify)
A68: 5. | B68: Select indicator type: | D68: =IF(Indicators!$R$25=0,"-",Indicators!$R$25) -> HMIS
B69: Select indicator: | D69: =IF(Indicators!$S$25=0,"-",Indicators!$S$25) -> Live births | G69: ="quality target: >="&TEXT(100%-Indicators!$V$25,"0%")&", <="&TEXT(100%+Indicators!$V$25,"0%") -> quality target: >=75%, <=125%
B70: Source document re-count | G70: 40 | H70: 42 | I70: 43 | J70: =IF(ISERROR(SUM(G70:I70)),"-",SUM(G70:I70)) -> 125
B71: HMIS monthly report value | G71: 48 | H71: 43 | I71: 44 | J71: =IF(ISERROR(SUM(G71:I71)),"-",SUM(G71:I71)) -> 135
B72: DHIS2 monthly value | G72: 41 | H72: 49 | I72: 41 | J72: =IF(ISERROR(SUM(G72:I72)),"-",SUM(G72:I72)) -> 131
B73: Monthly Report Verification factor(VF): | G73: =IF(ISERROR(G70/G71),"-",G70/G71) -> 0.8333333333 | H73: =IF(ISERROR(H70/H71),"-",H70/H71) -> 0.976744186 | I73: =IF(ISERROR(I70/I71),"-",I70/I71) -> 0.9772727273 | J73: =IF(ISERROR(AVERAGE(G73:I73)),"-",AVERAGE(G73:I73)) -> 0.9291167489
B74: DHIS 2 Verification factor(VF): | G74: =IF(ISERROR(G70/G72),"-",G70/G72) -> 0.9756097561 | H74: =IF(ISERROR(H70/H72),"-",H70/H72) -> 0.8571428571 | I74: =IF(ISERROR(I70/I72),"-",I70/I72) -> 1.048780488 | J74: =IF(ISERROR(AVERAGE(G74:I74)),"-",AVERAGE(G74:I74)) -> 0.9605110337
B75: Reasons for discrepancy (use code below - mark all that apply) | G75: E | H75: E | I75: E
B76: Other reason (specify)
A77: Reasons for discrepancy:
A78: a) no discrepancy, b) arithmetic errors, c) transcription errors, d) some documents were missing when the report was prepared, e) some documents are now missing, f) other (specify)
A79: III. Cross Checks | K79: Comments
A80: ="A — "&Indicators!R31&" : "&Indicators!S31&" (quality target = "&TEXT(100%-Indicators!$V$31,"0%")&")" -> A — Malaria case register : Laboratory register (quality target = 90%)
A81: ="Randomly select 10 patients who have been treated in the period at the facility from the "&Indicators!R31&"." -> Randomly select 10 patients who have been treated in the period at the facility from the Malaria case register.
A82: ="1. Number of cases sampled from the "&Indicators!R31&"." -> 1. Number of cases sampled from the Malaria case register.
A83: ="2. How many of the patients selected had a corresponding entry with matching information for the patients in the "&Indicators!S31&"?" -> 2. How many of the patients selected had a corresponding entry with matching information for the patients in the Laboratory register?
A84: =Indicators!S31&" reliability rate:" -> Laboratory register reliability rate: | J84: =IF(ISERROR(J83/J82),"-",J83/J82) -> -
A85: ="B — "&Indicators!R34&" : "&Indicators!S34&" (quality target = "&TEXT(100%-Indicators!$V$34,"0%")&")" -> B — Immunization register : Vaccine stock registry (quality target = 90%)
A86: ="Randomly select 10 cases who have been treated in the period at the facility from the "&Indicators!R34&"." -> Randomly select 10 cases who have been treated in the period at the facility from the Immunization register.
A87: ="1. Number of cases sampled from the "&Indicators!R34&"." -> 1. Number of cases sampled from the Immunization register.
A88: ="2. How many of the patients selected had a corresponding entry with matching information for the patients in the "&Indicators!S34&"?" -> 2. How many of the patients selected had a corresponding entry with matching information for the patients in the Vaccine stock registry?
A89: =Indicators!S34&" reliability rate:" -> Vaccine stock registry reliability rate: | J89: =IF(ISERROR(J88/J87),"-",J88/J87) -> -
A90: ="C — "&Indicators!R37&" : "&Indicators!S37&" (quality target: >="&TEXT(100%-Indicators!$V$38,"0%")&", <="&TEXT(100%+Indicators!$V$38,"0%")&")" -> C — ANC Register : Vaccine stock management log (quality target: >=90%, <=110%)
A91: Number of units (e.g. doses of medication/vaccine, other commodities) in stock at the site at the beginning of the reporting period (initial in stock) | I91: a.
A92: Number of units received by the site during the reporting period | G92: b. | I92: b.
A93: Number of units in stock at the site at the end of the reporting period (closing in stock) | G93: c. | I93: c.
A94: Number of units used (e.g. given to patients) by the site during the reporting period | G94: d. | I94: d.
A95: Verification ratio: (d/[a+b-c]): | J95: =IF(ISERROR(J94/(J91+J92-J93)),"-",J94/(J91+J92-J93)) -> -
A96: Reasons for discrepancy (enter code at right):
A97: a) no discrepancy, b) arithmetic errors, c) transcription errors, d) drugs stock management forms not up to date, e) some documents are missing, f) stock out of treatment drugs,
A98: g) other (specify)
A99: ="IV. Consistency Checks - Consistency of data elements over time Quality target = >="&TEXT(100%-Indicators!$V$42,"0%")&", <="&TEXT(100%+Indicators!$V$42,"0%")&")" -> IV. Consistency Checks - Consistency of data elements over time Quality target = >=80%, <=120%) | F99: Program Area -> | H99: =Indicators!$B$42 -> Malaria
A100: IV.a: Annual consistency - select the indicator on the Indicators tab. | F100: Indicator -> | H100: =Indicators!$E$42 -> Number of confirmed malaria cases reported
A101: 1. What is the current month value
A102: 2. What was the value of the indicator for the current month one year ago
A103: Consistency ratio: Divide the value of the current month by the value from the same month last year. If the value is more than 20% different (i.e. <0.8 or >1.2) this could indicate a data quality problem. | J103: =IF(ISERROR(J101/J102),"-",J101/J102) -> -
A104: IV.b Month-to-month consistency:
A105: Enter values for the selected indicator for the current month, and for the three preceding months. Calculate consistency: Current month/average of Month1-Month3. If the value is more than 20% different (i.e. <0.8 or >1.2) this could indicate a data quality problem. | F105: Month 1 | G105: Month 2 | H105: Month 3 | I105: Last month | J105: Consistency
E106: month | F106: =IF(ISERROR(EDATE($J$7,-4)),"-",EDATE($J$7,-4)) -> - | G106: =IF(ISERROR(EDATE($J$7,-3)),"-",EDATE($J$7,-3)) -> - | H106: =IF(ISERROR(EDATE($J$7,-3)),"-",EDATE($J$7,-2)) -> - | I106: =IF(ISERROR(EDATE($J$7,-3)),"-",EDATE($J$7,-1)) -> - | J106: ratio
E107: value | J107: =IF(ISERROR(I107/AVERAGE(F107:H107)),"-",I107/AVERAGE(F107:H107)) -> -
A108: Reasons for discrepancy (enter code at right):
A109: a) no discrepancy, b) arithmetic errors, c) transcription errors, d) vaccine stock management forms not up to date, e) some documents are missing, f) vaccine / drugs stock out,
A110: g) other (specify)
A111: V. System Assessment - Respond Yes or No for the following questions. | J111: Y/N
A112: V.1 | B112: Is there a designated person to enter data and compile reports?
A113: V.2 | B113: Is there a designated person to review the quality of compiled data prior to submission to the next level?
A114: V.3 | B114: Does the health facility have written guidelines on data collection and reporting for HMIS?
A115: V.4 | B115: Does the health facility have a reserve stock of blank registers or reporting forms?
A116: V.5 | B116: Has this health facility experienced any stock out of registers or reporting forms (since last visit)?
A117: V.6 | B117: Is a standardized OPD register being used to record information on patients seeking treatment (not improvised forms)?
A118: V.7 | B118: Can a patient's diagnosis and treatment history be easily found in the facility records?
A119: V.8 | B119: Are data archives properly maintained with historical patient level (registers) and aggregate (monthly report) results?
A120: V.9 | B120: Does the facility maintain accurate demographic information for the catchment area (that is, a record current population and the number of births and deaths)?
A121: V.10 | B121: Does the facility have established targets to monitor progress towards goals and objectives for prevention and treatment?
A122: V.11 | B122: Does the facility have an up-to-date display (for example, a chart on the wall) of the number of cases diagnosed and treated by reporting period for the year?
A123: V.12 | B123: Is there a chart of disease incidence by month displayed at the facility?
A124: Data Quality Improvement Plan for the Health Facility
A125: Please list the primary gaps or weaknesses in the data management system at the facility. What are the threats , or potential threats, to data quality ? For each item cited, please include action points that the facility can implement to strengthen the data management at the facility. Please be realistic in your recommendations. Also include the responsible staff and the date by which the intervention should be completed.
B126: Identified Weaknesses | E126: Description of Action Point | H126: Responsible(s) | J126: Time Line | K126: Comments
A127: 1
A128: 2
A129: 3
A130: 4
A132: HMIS Health Facility Supervision Data Quality Dashboard

Sheet Health Facility 3
A1: National Health Management Information System (HMIS) | H1: WHO - 2020 | M1: Go back to facility information tab
A2: Routine Supervision Data Quality Checklist | M2: Go to Dashboard
A3: Routine Supervision Data Quality Checklist | M3: Go to Dashboard
A4: Routine Supervision Data Quality Checklist | M4: Go to Dashboard
A5: Routine Supervision Data Quality Checklist | M5: Go to Dashboard
A6: Routine Supervision Data Quality Checklist | M6: Go to Dashboard
A7: Health facility name: | D7: =IF('Facility Information'!D16=0,"-",'Facility Information'!D16) -> Hotel Dieu | G7: Date of Supervision: | J7: =IF('Facility Information'!J16=0,"-",'Facility Information'!J16) -> 01/05/2025 | M7: Go to indicators
A8: Facility type: | D8: =IF('Facility Information'!H16=0,"-",'Facility Information'!H16) -> Hospital | G8: Reporting period(s) verified (months): | J8: =IF(ISERROR(TEXT(EDATE(J7,-3),"mmm-yy")&", "&TEXT(EDATE(J7,-2),"mmm-yy")&", "&TEXT(EDATE(J7,-1),"mmm-yy")),"-",TEXT(EDATE(J7,-3),"mmm-yy")&", "&TEXT(EDATE(J7,-2),"mmm-yy")&", "&TEXT(EDATE(J7,-1),"mmm-yy")) -> -
A9: Town/Village: | D9: =IF('Facility Information'!E16=0,"-",'Facility Information'!E16) -> Windsor | G9: Supervison team lead: | J9: =IF('Facility Information'!K16=0,"-",'Facility Information'!K16) -> Shurajit | AO9: Reporting performance & Readiness to provide quality data | AZ9: ="Reasons for discrepancy, by indicator" -> Reasons for discrepancy, by indicator
A10: Region: | D10: =IF('Facility Information'!G16=0,"-",'Facility Information'!G16) -> Ontario | G10: Contact phone: | J10: =IF('Facility Information'!L16=0,"-",'Facility Information'!L16) -> 6477653160 | AN10: Results | AR10: Source documents | AZ10: by comparison | BH10: by indicator
A11: District: | D11: =IF('Facility Information'!F16=0,"-",'Facility Information'!F16) -> Essex | G11: Contact email: | J11: =IF('Facility Information'!M16=0,"-",'Facility Information'!M16) -> shurajit@dhis2.org | AO11: Completeness of Monthly report | AP11: % Cases with missing data | AQ11: Timeliness of reporting | AR11: =AR10&" available" -> Source documents available | AS11: =AR10&" Up-to-date" -> Source documents Up-to-date | AT11: =AR10&" standard issue" -> Source documents standard issue | AU11: System Assessment (% readiness) | BA11: A | BB11: B | BC11: C | BD11: D | BE11: E | BF11: F | BI11: No discrepancy | BJ11: Arithematic errors | BK11: Transcription errors | BL11: Some documents were missing when the report was prepared | BM11: Some documents are now missing | BN11: Other
A12: I. Completeness & Timeliness | K12: Please provide a comment on the results | AO12: =J15 -> - | AP12: =E26 -> - | AQ12: =J17 -> 0 | AR12: =H27 -> - | AS12: =I27 -> - | AT12: =J27 -> - | AU12: =COUNTIF(J112:J123,"Yes")/COUNTA(J112:J123) ->  | AZ12: 1.1 | BA12: =IF(ISERROR(IF(SEARCH("A",$G$39)>0,1,0))," ",IF(SEARCH("A",$G$39)>0,1,0)) ->  | BB12: =IF(ISERROR(IF(SEARCH("B",$G$39)>0,1,0))," ",IF(SEARCH("B",$G$39)>0,1,0)) ->  | BC12: =IF(ISERROR(IF(SEARCH("C",$G$39)>0,1,0))," ",IF(SEARCH("C",$G$39)>0,1,0)) ->  | BD12: =IF(ISERROR(IF(SEARCH("D",$G$39)>0,1,0))," ",IF(SEARCH("D",$G$39)>0,1,0)) ->  | BE12: =IF(ISERROR(IF(SEARCH("E",$G$39)>0,1,0))," ",IF(SEARCH("E",$G$39)>0,1,0)) ->  | BF12: =IF(ISERROR(IF(SEARCH("F",$G$39)>0,1,0))," ",IF(SEARCH("F",$G$39)>0,1,0)) ->  | BH12: =AO14 -> ANC 1st Visit | BI12: =SUM(BA12:BA14) -> 0 | BJ12: 0 | BK12: 0 | BL12: 0 | BM12: 0 | BN12: 0
A13: A. Completeness of HMIS Monthly Report | H13: Expected Cells | I13: Completed Cells | J13: Percent Complete | AN13: Verification factors | AP13: VF Monthly report | AQ13: VF HMIS | AZ13: 1.2 | BA13: =IF(ISERROR(IF(SEARCH("A",$H$39)>0,1,0))," ",IF(SEARCH("A",$H$39)>0,1,0)) ->  | BB13: =IF(ISERROR(IF(SEARCH("B",$H$39)>0,1,0))," ",IF(SEARCH("B",$H$39)>0,1,0)) ->  | BC13: =IF(ISERROR(IF(SEARCH("C",$H$39)>0,1,0))," ",IF(SEARCH("C",$H$39)>0,1,0)) ->  | BD13: =IF(ISERROR(IF(SEARCH("D",$H$39)>0,1,0))," ",IF(SEARCH("D",$H$39)>0,1,0)) ->  | BE13: =IF(ISERROR(IF(SEARCH("E",$H$39)>0,1,0))," ",IF(SEARCH("E",$H$39)>0,1,0)) ->  | BF13: =IF(ISERROR(IF(SEARCH("F",$H$39)>0,1,0))," ",IF(SEARCH("F",$H$39)>0,1,0)) ->  | BH13: =AO15 -> Outpatient visits | BI13: =SUM(BA15:BA17) -> 0 | BJ13: =SUM(BB15:BB17) -> 0 | BK13: 0 | BL13: 0 | BM13: 0 | BN13: 0
A14: Select the most recent completed and submitted monthly HMIS facility report. Calculate the number of cells expected to be complete on the monthly report (exclude cells for services not offered by the facility). Count the number of cells that are complete (blank, not zero) and calculate the percentage completeness for the monthly report. | AN14: indicator | AO14: =D33 -> ANC 1st Visit | AP14: =J37 -> - | AQ14: =J38 -> - | AZ14: 1.3 | BA14: =IF(ISERROR(IF(SEARCH("A",$I$39)>0,1,0))," ",IF(SEARCH("A",$I$39)>0,1,0)) ->  | BB14: =IF(ISERROR(IF(SEARCH("B",$I$39)>0,1,0))," ",IF(SEARCH("B",$I$39)>0,1,0)) ->  | BC14: =IF(ISERROR(IF(SEARCH("C",$I$39)>0,1,0))," ",IF(SEARCH("C",$I$39)>0,1,0)) ->  | BD14: =IF(ISERROR(IF(SEARCH("D",$I$39)>0,1,0))," ",IF(SEARCH("D",$I$39)>0,1,0)) ->  | BE14: =IF(ISERROR(IF(SEARCH("E",$I$39)>0,1,0))," ",IF(SEARCH("E",$I$39)>0,1,0)) ->  | BF14: =IF(ISERROR(IF(SEARCH("F",$I$39)>0,1,0))," ",IF(SEARCH("F",$I$39)>0,1,0)) ->  | BH14: =AO16 -> Number of confirmed malaria cases reported | BI14: =SUM(BA18:BA20) -> 0 | BJ14: 0 | BK14: 0 | BL14: 0 | BM14: 0 | BN14: 0
J15: =IF(ISERROR(I15/H15),"-",I15/H15) -> - | AO15: =D42 -> Outpatient visits | AP15: =J46 -> - | AQ15: =J47 -> - | AZ15: 2.1 | BA15: =IF(ISERROR(IF(SEARCH("A",$G$48)>0,1,0))," ",IF(SEARCH("A",$G$48)>0,1,0)) ->  | BB15: =IF(ISERROR(IF(SEARCH("B",$G$48)>0,1,0))," ",IF(SEARCH("B",$G$48)>0,1,0)) ->  | BC15: =IF(ISERROR(IF(SEARCH("C",$G$48)>0,1,0))," ",IF(SEARCH("C",$G$48)>0,1,0)) ->  | BD15: =IF(ISERROR(IF(SEARCH("D",$G$48)>0,1,0))," ",IF(SEARCH("D",$G$48)>0,1,0)) ->  | BE15: =IF(ISERROR(IF(SEARCH("E",$G$48)>0,1,0))," ",IF(SEARCH("E",$G$48)>0,1,0)) ->  | BF15: =IF(ISERROR(IF(SEARCH("F",$G$48)>0,1,0))," ",IF(SEARCH("F",$G$48)>0,1,0)) ->  | BH15: =AO17 -> 3rd dose DPT-containing vaccine | BI15: =SUM(BA21:BA23) -> 0 | BJ15: 0 | BK15: 1 | BL15: 2 | BM15: 0 | BN15: 0
A16: B. Timeliness of Submission of Monthly Report | F16: Monthly report: | G16: =IF(ISERROR(EDATE($J$7,-3)),"-",EDATE($J$7,-3)) -> - | H16: =IF(ISERROR(EDATE($J$7,-3)),"-",EDATE($J$7,-2)) -> - | I16: =IF(ISERROR(EDATE($J$7,-3)),"-",EDATE($J$7,-1)) -> - | AO16: =D51 -> Number of confirmed malaria cases reported | AP16: =J55 -> - | AQ16: =J56 -> - | AZ16: 2.2 | BA16: =IF(ISERROR(IF(SEARCH("A",$H$48)>0,1,0))," ",IF(SEARCH("A",$H$48)>0,1,0)) ->  | BB16: =IF(ISERROR(IF(SEARCH("B",$H$48)>0,1,0))," ",IF(SEARCH("B",$H$48)>0,1,0)) ->  | BC16: =IF(ISERROR(IF(SEARCH("C",$H$48)>0,1,0))," ",IF(SEARCH("C",$H$48)>0,1,0)) ->  | BD16: =IF(ISERROR(IF(SEARCH("D",$H$48)>0,1,0))," ",IF(SEARCH("D",$H$48)>0,1,0)) ->  | BE16: =IF(ISERROR(IF(SEARCH("E",$H$48)>0,1,0))," ",IF(SEARCH("E",$H$48)>0,1,0)) ->  | BF16: =IF(ISERROR(IF(SEARCH("F",$H$48)>0,1,0))," ",IF(SEARCH("F",$H$48)>0,1,0)) ->  | BH16: =AO18 -> Live births | BI16: =SUM(BA24:BA26) -> 0 | BJ16: 0 | BK16: 2 | BL16: 0 | BM16: 1 | BN16: 0
A17: Review the monthly reports from the past three months at the facility and in the HMIS database. Determine if the reports were submitted by the deadline of reporting | F17: Submitted by the deadline? (Y/N) | J17: =COUNTIF(G17:I17,"Yes")/3 -> 0 | AO17: =D60 -> 3rd dose DPT-containing vaccine | AP17: =J64 -> 0.9537660256 | AQ17: =J65 -> 0.9759645794 | AZ17: 2.3 | BA17: =IF(ISERROR(IF(SEARCH("A",$I$48)>0,1,0))," ",IF(SEARCH("A",$I$48)>0,1,0)) ->  | BB17: =IF(ISERROR(IF(SEARCH("B",$I$48)>0,1,0))," ",IF(SEARCH("B",$I$48)>0,1,0)) ->  | BC17: =IF(ISERROR(IF(SEARCH("C",$I$48)>0,1,0))," ",IF(SEARCH("C",$I$48)>0,1,0)) ->  | BD17: =IF(ISERROR(IF(SEARCH("D",$I$48)>0,1,0))," ",IF(SEARCH("D",$I$48)>0,1,0)) ->  | BE17: =IF(ISERROR(IF(SEARCH("E",$I$48)>0,1,0))," ",IF(SEARCH("E",$I$48)>0,1,0)) ->  | BF17: =IF(ISERROR(IF(SEARCH("F",$I$48)>0,1,0))," ",IF(SEARCH("F",$I$48)>0,1,0)) ->  | BI17: =SUM(BI12:BI16) -> 0 | BJ17: 0 | BK17: 3 | BL17: 2 | BM17: 1 | BN17: 0
A18: C. Data Element Completeness: Missing data: ask to see the Outpatient Department (OPD) register. Count the number of clients in the quarter (month 1 to month 3) with missing information for each of the following columns in the unit malaria case register. | F18: D. Source Document Completeness: Review the following data sources and determine if they are available, up-to-date (values up to the current day/period) and standard (the form prepared and distributed by the program). (Y/N) | AO18: =D69 -> Live births | AP18: =J73 -> 0.9617126515 | AQ18: =J74 -> 0.9778979979 | AZ18: 3.1 | BA18: =IF(ISERROR(IF(SEARCH("A",$G$57)>0,1,0))," ",IF(SEARCH("A",$G$57)>0,1,0)) ->  | BB18: =IF(ISERROR(IF(SEARCH("B",$G$57)>0,1,0))," ",IF(SEARCH("B",$G$57)>0,1,0)) ->  | BC18: =IF(ISERROR(IF(SEARCH("C",$G$57)>0,1,0))," ",IF(SEARCH("C",$G$57)>0,1,0)) ->  | BD18: =IF(ISERROR(IF(SEARCH("D",$G$57)>0,1,0))," ",IF(SEARCH("D",$G$57)>0,1,0)) ->  | BE18: =IF(ISERROR(IF(SEARCH("E",$G$57)>0,1,0))," ",IF(SEARCH("E",$G$57)>0,1,0)) ->  | BF18: =IF(ISERROR(IF(SEARCH("F",$G$57)>0,1,0))," ",IF(SEARCH("F",$G$57)>0,1,0)) -> 
A19: =Indicators!R47&" Data elements" -> DE_HMIS Data elements | D19: Number of cases (rows) with missing data | % | F19: =Indicators!S47&" Source Documents:" -> DS_HMIS Source Documents: | H19: Available | I19: Up-to-date | J19: Standard form | K19: Comments | AZ19: 3.2 | BA19: =IF(ISERROR(IF(SEARCH("A",$H$57)>0,1,0))," ",IF(SEARCH("A",$H$57)>0,1,0)) ->  | BB19: =IF(ISERROR(IF(SEARCH("B",$H$57)>0,1,0))," ",IF(SEARCH("B",$H$57)>0,1,0)) ->  | BC19: =IF(ISERROR(IF(SEARCH("C",$H$57)>0,1,0))," ",IF(SEARCH("C",$H$57)>0,1,0)) ->  | BD19: =IF(ISERROR(IF(SEARCH("D",$H$57)>0,1,0))," ",IF(SEARCH("D",$H$57)>0,1,0)) ->  | BE19: =IF(ISERROR(IF(SEARCH("E",$H$57)>0,1,0))," ",IF(SEARCH("E",$H$57)>0,1,0)) ->  | BF19: =IF(ISERROR(IF(SEARCH("F",$H$57)>0,1,0))," ",IF(SEARCH("F",$H$57)>0,1,0)) -> 
A20: 1. | B20: =Indicators!R49 -> Unique ID | E20: =IF(D20="","-",IF(ISERROR(D20/$D$27),"-",D20/$D$27)) -> - | F20: =Indicators!S49 -> OPD register | AN20: Cross checks | AZ20: 3.3 | BA20: =IF(ISERROR(IF(SEARCH("A",$I$57)>0,1,0))," ",IF(SEARCH("A",$I$57)>0,1,0)) ->  | BB20: =IF(ISERROR(IF(SEARCH("B",$I$57)>0,1,0))," ",IF(SEARCH("B",$I$57)>0,1,0)) ->  | BC20: =IF(ISERROR(IF(SEARCH("C",$I$57)>0,1,0))," ",IF(SEARCH("C",$I$57)>0,1,0)) ->  | BD20: =IF(ISERROR(IF(SEARCH("D",$I$57)>0,1,0))," ",IF(SEARCH("D",$I$57)>0,1,0)) ->  | BE20: =IF(ISERROR(IF(SEARCH("E",$I$57)>0,1,0))," ",IF(SEARCH("E",$I$57)>0,1,0)) ->  | BF20: =IF(ISERROR(IF(SEARCH("F",$I$57)>0,1,0))," ",IF(SEARCH("F",$I$57)>0,1,0)) -> 
A21: 2. | B21: =Indicators!R51 -> Visit date | E21: - | F21: =Indicators!S51 -> OPD register | AO21: =A80 -> A — Malaria case register : Laboratory register (quality target = 90%) | AP21: =J84 -> - | AR21: =AN20&" 1 & 2" -> Cross checks 1 & 2 | AZ21: 4.1 | BA21: =IF(ISERROR(IF(SEARCH("A",$G$66)>0,1,0))," ",IF(SEARCH("A",$G$66)>0,1,0)) ->  | BB21: =IF(ISERROR(IF(SEARCH("B",$G$66)>0,1,0))," ",IF(SEARCH("B",$G$66)>0,1,0)) ->  | BC21: =IF(ISERROR(IF(SEARCH("C",$G$66)>0,1,0))," ",IF(SEARCH("C",$G$66)>0,1,0)) ->  | BD21: =IF(ISERROR(IF(SEARCH("D",$G$66)>0,1,0))," ",IF(SEARCH("D",$G$66)>0,1,0)) -> 1 | BE21: =IF(ISERROR(IF(SEARCH("E",$G$66)>0,1,0))," ",IF(SEARCH("E",$G$66)>0,1,0)) ->  | BF21: =IF(ISERROR(IF(SEARCH("F",$G$66)>0,1,0))," ",IF(SEARCH("F",$G$66)>0,1,0)) -> 
A22: 3. | B22: =Indicators!R53 -> Client name | E22: - | F22: =Indicators!S53 -> OPD register | AO22: =A85 -> B — Immunization register : Vaccine stock registry (quality target = 90%) | AP22: =J89 -> - | AZ22: 4.2 | BA22: =IF(ISERROR(IF(SEARCH("A",$H$66)>0,1,0))," ",IF(SEARCH("A",$H$66)>0,1,0)) ->  | BB22: =IF(ISERROR(IF(SEARCH("B",$H$66)>0,1,0))," ",IF(SEARCH("B",$H$66)>0,1,0)) ->  | BC22: =IF(ISERROR(IF(SEARCH("C",$H$66)>0,1,0))," ",IF(SEARCH("C",$H$66)>0,1,0)) ->  | BD22: =IF(ISERROR(IF(SEARCH("D",$H$66)>0,1,0))," ",IF(SEARCH("D",$H$66)>0,1,0)) -> 1 | BE22: =IF(ISERROR(IF(SEARCH("E",$H$66)>0,1,0))," ",IF(SEARCH("E",$H$66)>0,1,0)) ->  | BF22: =IF(ISERROR(IF(SEARCH("F",$H$66)>0,1,0))," ",IF(SEARCH("F",$H$66)>0,1,0)) -> 
A23: 4. | B23: =Indicators!R55 -> Age | E23: - | F23: =Indicators!S55 -> OPD register | AO23: =A90 -> C — ANC Register : Vaccine stock management log (quality target: >=90%, <=110%) | AP23: =J95 -> - | AR23: ="Cross check 3" -> Cross check 3 | AZ23: 4.3 | BA23: =IF(ISERROR(IF(SEARCH("A",$I$66)>0,1,0))," ",IF(SEARCH("A",$I$66)>0,1,0)) ->  | BB23: =IF(ISERROR(IF(SEARCH("B",$I$66)>0,1,0))," ",IF(SEARCH("B",$I$66)>0,1,0)) ->  | BC23: =IF(ISERROR(IF(SEARCH("C",$I$66)>0,1,0))," ",IF(SEARCH("C",$I$66)>0,1,0)) -> 1 | BD23: =IF(ISERROR(IF(SEARCH("D",$I$66)>0,1,0))," ",IF(SEARCH("D",$I$66)>0,1,0)) ->  | BE23: =IF(ISERROR(IF(SEARCH("E",$I$66)>0,1,0))," ",IF(SEARCH("E",$I$66)>0,1,0)) ->  | BF23: =IF(ISERROR(IF(SEARCH("F",$I$66)>0,1,0))," ",IF(SEARCH("F",$I$66)>0,1,0)) -> 
A24: 5. | B24: =Indicators!R57 -> Diagnosis (any type) | E24: - | F24: =Indicators!S57 -> OPD register | AZ24: 5.1 | BA24: =IF(ISERROR(IF(SEARCH("A",$G$75)>0,1,0))," ",IF(SEARCH("A",$G$75)>0,1,0)) ->  | BB24: =IF(ISERROR(IF(SEARCH("B",$G$75)>0,1,0))," ",IF(SEARCH("B",$G$75)>0,1,0)) ->  | BC24: =IF(ISERROR(IF(SEARCH("C",$G$75)>0,1,0))," ",IF(SEARCH("C",$G$75)>0,1,0)) -> 1 | BD24: =IF(ISERROR(IF(SEARCH("D",$G$75)>0,1,0))," ",IF(SEARCH("D",$G$75)>0,1,0)) ->  | BE24: =IF(ISERROR(IF(SEARCH("E",$G$75)>0,1,0))," ",IF(SEARCH("E",$G$75)>0,1,0)) ->  | BF24: =IF(ISERROR(IF(SEARCH("F",$G$75)>0,1,0))," ",IF(SEARCH("F",$G$75)>0,1,0)) -> 
A25: 6. | B25: =Indicators!R59 -> Treatment given | E25: - | F25: =Indicators!S59 -> OPD register | AN25: ="Consistency over time: "&H99&": "&H100 -> Consistency over time: Malaria: Number of confirmed malaria cases reported | AZ25: 5.2 | BA25: =IF(ISERROR(IF(SEARCH("A",$H$75)>0,1,0))," ",IF(SEARCH("A",$H$75)>0,1,0)) ->  | BB25: =IF(ISERROR(IF(SEARCH("B",$H$75)>0,1,0))," ",IF(SEARCH("B",$H$75)>0,1,0)) ->  | BC25: =IF(ISERROR(IF(SEARCH("C",$H$75)>0,1,0))," ",IF(SEARCH("C",$H$75)>0,1,0)) -> 1 | BD25: =IF(ISERROR(IF(SEARCH("D",$H$75)>0,1,0))," ",IF(SEARCH("D",$H$75)>0,1,0)) ->  | BE25: =IF(ISERROR(IF(SEARCH("E",$H$75)>0,1,0))," ",IF(SEARCH("E",$H$75)>0,1,0)) ->  | BF25: =IF(ISERROR(IF(SEARCH("F",$H$75)>0,1,0))," ",IF(SEARCH("F",$H$75)>0,1,0)) -> 
A26: 7. | B26: Number of entries missing data in at least 1 of the 6 columns listed above | E26: - | F26: =Indicators!S61 -> OPD register | AN26: =F106 -> - | AO26: - | AP26: - | AQ26: - | AZ26: 5.3 | BA26: =IF(ISERROR(IF(SEARCH("A",$I$75)>0,1,0))," ",IF(SEARCH("A",$I$75)>0,1,0)) ->  | BB26: =IF(ISERROR(IF(SEARCH("B",$I$75)>0,1,0))," ",IF(SEARCH("B",$I$75)>0,1,0)) ->  | BC26: =IF(ISERROR(IF(SEARCH("C",$I$75)>0,1,0))," ",IF(SEARCH("C",$I$75)>0,1,0)) ->  | BD26: =IF(ISERROR(IF(SEARCH("D",$I$75)>0,1,0))," ",IF(SEARCH("D",$I$75)>0,1,0)) ->  | BE26: =IF(ISERROR(IF(SEARCH("E",$I$75)>0,1,0))," ",IF(SEARCH("E",$I$75)>0,1,0)) -> 1 | BF26: =IF(ISERROR(IF(SEARCH("F",$I$75)>0,1,0))," ",IF(SEARCH("F",$I$75)>0,1,0)) -> 
A27: 8. | B27: Total number of entries for the period | F27: % Complete | H27: =IF(ISERROR(COUNTIF(H20:H26,"Yes")/COUNTA(H20:H26)),"-",COUNTIF(H20:H26,"Yes")/COUNTA(H20:H26)) -> - | I27: =IF(ISERROR(COUNTIF(I20:I26,"Yes")/COUNTA(I20:I26)),"-",COUNTIF(I20:I26,"Yes")/COUNTA(I20:I26)) -> - | J27: =IF(ISERROR(COUNTIF(J20:J26,"Yes")/COUNTA(J20:J26)),"-",COUNTIF(J20:J26,"Yes")/COUNTA(J20:J26)) -> - | AN27: 0 | AO27: 0 | AP27: 0 | AQ27: 0 | BA27: =SUM(BA12:BA26) -> 0 | BB27: 0 | BC27: 3 | BD27: 2 | BE27: 1 | BF27: 0
A28: II. Data Accuracy
A29: Recount value of indicators from the malaria case register and compare the value to the one reported by the facility for the selected months
B30: ="Indicators" -> Indicators | G30: Month 1 | H30: Month 2 | I30: Month 3 | J30: 3-month total
G31: =IF(ISERROR(EDATE($J$7,-3)),"-",EDATE($J$7,-3)) -> - | H31: =IF(ISERROR(EDATE($J$7,-3)),"-",EDATE($J$7,-2)) -> - | I31: =IF(ISERROR(EDATE($J$7,-3)),"-",EDATE($J$7,-1)) -> -
A32: 1. | B32: Select indicator type: | D32: =IF(Indicators!$R$13=0,"-",Indicators!$R$13) -> Maternal_Health
B33: Select indicator: | D33: =IF(Indicators!$S$13=0,"-",Indicators!$S$13) -> ANC 1st Visit | G33: ="quality target: >="&TEXT(100%-Indicators!$V$13,"0%")&", <="&TEXT(100%+Indicators!$V$13,"0%") -> quality target: >=90%, <=110%
B34: Source document re-count | J34: =IF(ISERROR(SUM(G34:I34)),"-",SUM(G34:I34)) -> 0
B35: HMIS monthly report value | J35: =IF(ISERROR(SUM(G35:I35)),"-",SUM(G35:I35)) -> 0
B36: DHIS2 monthly value | J36: =IF(ISERROR(SUM(G36:I36)),"-",SUM(G36:I36)) -> 0
B37: Monthly Report Verification factor(VF): | G37: =IF(ISERROR(G34/G35),"-",G34/G35) -> - | H37: =IF(ISERROR(H34/H35),"-",H34/H35) -> - | I37: =IF(ISERROR(I34/I35),"-",I34/I35) -> - | J37: =IF(ISERROR(AVERAGE(G37:I37)),"-",AVERAGE(G37:I37)) -> -
B38: DHIS 2 Verification factor(VF): | G38: =IF(ISERROR(G34/G36),"-",G34/G36) -> - | H38: =IF(ISERROR(H34/H36),"-",H34/H36) -> - | I38: =IF(ISERROR(I34/I36),"-",I34/I36) -> - | J38: =IF(ISERROR(AVERAGE(G38:I38)),"-",AVERAGE(G38:I38)) -> -
B39: Reasons for discrepancy (use code below - mark all that apply)
B40: Other reason (specify)
A41: 2. | B41: Select indicator type: | D41: =IF(Indicators!$R$16=0,"-",Indicators!$R$16) -> HMIS
B42: Select indicator: | D42: =IF(Indicators!$S$16=0,"-",Indicators!$S$16) -> Outpatient visits | G42: ="quality target: >="&TEXT(100%-Indicators!$V$16,"0%")&", <="&TEXT(100%+Indicators!$V$16,"0%") -> quality target: >=90%, <=110%
B43: Source document re-count | J43: =IF(ISERROR(SUM(G43:I43)),"-",SUM(G43:I43)) -> 0
B44: HMIS monthly report value | J44: =IF(ISERROR(SUM(G44:I44)),"-",SUM(G44:I44)) -> 0
B45: DHIS2 monthly value | J45: =IF(ISERROR(SUM(G45:I45)),"-",SUM(G45:I45)) -> 0
B46: Monthly Report Verification factor(VF): | G46: =IF(ISERROR(G43/G44),"-",G43/G44) -> - | H46: =IF(ISERROR(H43/H44),"-",H43/H44) -> - | I46: =IF(ISERROR(I43/I44),"-",I43/I44) -> - | J46: =IF(ISERROR(AVERAGE(G46:I46)),"-",AVERAGE(G46:I46)) -> -
B47: DHIS 2 Verification factor(VF): | G47: =IF(ISERROR(G43/G45),"-",G43/G45) -> - | H47: =IF(ISERROR(H43/H45),"-",H43/H45) -> - | I47: =IF(ISERROR(I43/I45),"-",I43/I45) -> - | J47: =IF(ISERROR(AVERAGE(G47:I47)),"-",AVERAGE(G47:I47)) -> -
B48: Reasons for discrepancy (use code below - mark all that apply)
B49: Other reason (specify)
A50: 3. | B50: Select indicator type: | D50: =IF(Indicators!$R$19=0,"-",Indicators!$R$19) -> Malaria
B51: Select indicator: | D51: =IF(Indicators!$S$19=0,"-",Indicators!$S$19) -> Number of confirmed malaria cases reported | G51: ="quality target: >="&TEXT(100%-Indicators!$V$19,"0%")&", <="&TEXT(100%+Indicators!$V$19,"0%") -> quality target: >=85%, <=115%
B52: Source document re-count | J52: =IF(ISERROR(SUM(G52:I52)),"-",SUM(G52:I52)) -> 0
B53: HMIS monthly report value | J53: =IF(ISERROR(SUM(G53:I53)),"-",SUM(G53:I53)) -> 0
B54: DHIS2 monthly value | J54: =IF(ISERROR(SUM(G54:I54)),"-",SUM(G54:I54)) -> 0
B55: Monthly Report Verification factor(VF): | G55: =IF(ISERROR(G52/G53),"-",G52/G53) -> - | H55: =IF(ISERROR(H52/H53),"-",H52/H53) -> - | I55: =IF(ISERROR(I52/I53),"-",I52/I53) -> - | J55: =IF(ISERROR(AVERAGE(G55:I55)),"-",AVERAGE(G55:I55)) -> -
B56: DHIS 2 Verification factor(VF): | G56: =IF(ISERROR(G52/G54),"-",G52/G54) -> - | H56: =IF(ISERROR(H52/H54),"-",H52/H54) -> - | I56: =IF(ISERROR(I52/I54),"-",I52/I54) -> - | J56: =IF(ISERROR(AVERAGE(G56:I56)),"-",AVERAGE(G56:I56)) -> -
B57: Reasons for discrepancy (use code below - mark all that apply)
B58: Other reason (specify)
A59: 4. | B59: Select indicator type: | D59: =IF(Indicators!$R$22=0,"-",Indicators!$R$22) -> Immunization
B60: Select indicator: | D60: =IF(Indicators!$S$22=0,"-",Indicators!$S$22) -> 3rd dose DPT-containing vaccine | G60: ="quality target: >="&TEXT(100%-Indicators!$V$22,"0%")&", <="&TEXT(100%+Indicators!$V$22,"0%") -> quality target: >=80%, <=120%
B61: Source document re-count | G61: 60 | H61: 62 | I61: 63 | J61: =IF(ISERROR(SUM(G61:I61)),"-",SUM(G61:I61)) -> 185
B62: HMIS monthly report value | G62: 65 | H62: 65 | I62: 64 | J62: =IF(ISERROR(SUM(G62:I62)),"-",SUM(G62:I62)) -> 194
B63: DHIS2 monthly value | G63: 60 | H63: 68 | I63: 62 | J63: =IF(ISERROR(SUM(G63:I63)),"-",SUM(G63:I63)) -> 190
B64: Monthly Report Verification factor(VF): | G64: =IF(ISERROR(G61/G62),"-",G61/G62) -> 0.9230769231 | H64: =IF(ISERROR(H61/H62),"-",H61/H62) -> 0.9538461538 | I64: =IF(ISERROR(I61/I62),"-",I61/I62) -> 0.984375 | J64: =IF(ISERROR(AVERAGE(G64:I64)),"-",AVERAGE(G64:I64)) -> 0.9537660256
B65: DHIS 2 Verification factor(VF): | G65: =IF(ISERROR(G61/G63),"-",G61/G63) -> 1 | H65: =IF(ISERROR(H61/H63),"-",H61/H63) -> 0.9117647059 | I65: =IF(ISERROR(I61/I63),"-",I61/I63) -> 1.016129032 | J65: =IF(ISERROR(AVERAGE(G65:I65)),"-",AVERAGE(G65:I65)) -> 0.9759645794
B66: Reasons for discrepancy (use code below - mark all that apply) | G66: D | H66: D | I66: C
B67: Other reason (specify)
A68: 5. | B68: Select indicator type: | D68: =IF(Indicators!$R$25=0,"-",Indicators!$R$25) -> HMIS
B69: Select indicator: | D69: =IF(Indicators!$S$25=0,"-",Indicators!$S$25) -> Live births | G69: ="quality target: >="&TEXT(100%-Indicators!$V$25,"0%")&", <="&TEXT(100%+Indicators!$V$25,"0%") -> quality target: >=75%, <=125%
B70: Source document re-count | G70: 80 | H70: 82 | I70: 83 | J70: =IF(ISERROR(SUM(G70:I70)),"-",SUM(G70:I70)) -> 245
B71: HMIS monthly report value | G71: 88 | H71: 83 | I71: 84 | J71: =IF(ISERROR(SUM(G71:I71)),"-",SUM(G71:I71)) -> 255
B72: DHIS2 monthly value | G72: 81 | H72: 89 | I72: 81 | J72: =IF(ISERROR(SUM(G72:I72)),"-",SUM(G72:I72)) -> 251
B73: Monthly Report Verification factor(VF): | G73: =IF(ISERROR(G70/G71),"-",G70/G71) -> 0.9090909091 | H73: =IF(ISERROR(H70/H71),"-",H70/H71) -> 0.9879518072 | I73: =IF(ISERROR(I70/I71),"-",I70/I71) -> 0.9880952381 | J73: =IF(ISERROR(AVERAGE(G73:I73)),"-",AVERAGE(G73:I73)) -> 0.9617126515
B74: DHIS 2 Verification factor(VF): | G74: =IF(ISERROR(G70/G72),"-",G70/G72) -> 0.987654321 | H74: =IF(ISERROR(H70/H72),"-",H70/H72) -> 0.9213483146 | I74: =IF(ISERROR(I70/I72),"-",I70/I72) -> 1.024691358 | J74: =IF(ISERROR(AVERAGE(G74:I74)),"-",AVERAGE(G74:I74)) -> 0.9778979979
B75: Reasons for discrepancy (use code below - mark all that apply) | G75: C | H75: C | I75: E
B76: Other reason (specify)
A77: Reasons for discrepancy:
A78: a) no discrepancy, b) arithmetic errors, c) transcription errors, d) some documents were missing when the report was prepared, e) some documents are now missing, f) other (specify)
A79: III. Cross Checks | K79: Comments
A80: ="A — "&Indicators!R31&" : "&Indicators!S31&" (quality target = "&TEXT(100%-Indicators!$V$31,"0%")&")" -> A — Malaria case register : Laboratory register (quality target = 90%)
A81: ="Randomly select 10 patients who have been treated in the period at the facility from the "&Indicators!R31&"." -> Randomly select 10 patients who have been treated in the period at the facility from the Malaria case register.
A82: ="1. Number of cases sampled from the "&Indicators!R31&"." -> 1. Number of cases sampled from the Malaria case register.
A83: ="2. How many of the patients selected had a corresponding entry with matching information for the patients in the "&Indicators!S31&"?" -> 2. How many of the patients selected had a corresponding entry with matching information for the patients in the Laboratory register?
A84: =Indicators!S31&" reliability rate:" -> Laboratory register reliability rate: | J84: =IF(ISERROR(J83/J82),"-",J83/J82) -> -
A85: ="B — "&Indicators!R34&" : "&Indicators!S34&" (quality target = "&TEXT(100%-Indicators!$V$34,"0%")&")" -> B — Immunization register : Vaccine stock registry (quality target = 90%)
A86: ="Randomly select 10 cases who have been treated in the period at the facility from the "&Indicators!R34&"." -> Randomly select 10 cases who have been treated in the period at the facility from the Immunization register.
A87: ="1. Number of cases sampled from the "&Indicators!R34&"." -> 1. Number of cases sampled from the Immunization register.
A88: ="2. How many of the patients selected had a corresponding entry with matching information for the patients in the "&Indicators!S34&"?" -> 2. How many of the patients selected had a corresponding entry with matching information for the patients in the Vaccine stock registry?
A89: =Indicators!S34&" reliability rate:" -> Vaccine stock registry reliability rate: | J89: =IF(ISERROR(J88/J87),"-",J88/J87) -> -
A90: ="C — "&Indicators!R37&" : "&Indicators!S37&" (quality target: >="&TEXT(100%-Indicators!$V$38,"0%")&", <="&TEXT(100%+Indicators!$V$38,"0%")&")" -> C — ANC Register : Vaccine stock management log (quality target: >=90%, <=110%)
A91: Number of units (e.g. doses of medication/vaccine, other commodities) in stock at the site at the beginning of the reporting period (initial in stock) | I91: a.
A92: Number of units received by the site during the reporting period | G92: b. | I92: b.
A93: Number of units in stock at the site at the end of the reporting period (closing in stock) | G93: c. | I93: c.
A94: Number of units used (e.g. given to patients) by the site during the reporting period | G94: d. | I94: d.
A95: Verification ratio: (d/[a+b-c]): | J95: =IF(ISERROR(J94/(J91+J92-J93)),"-",J94/(J91+J92-J93)) -> -
A96: Reasons for discrepancy (enter code at right):
A97: a) no discrepancy, b) arithmetic errors, c) transcription errors, d) drugs stock management forms not up to date, e) some documents are missing, f) stock out of treatment drugs,
A98: g) other (specify)
A99: ="IV. Consistency Checks - Consistency of data elements over time Quality target = >="&TEXT(100%-Indicators!$V$42,"0%")&", <="&TEXT(100%+Indicators!$V$42,"0%")&")" -> IV. Consistency Checks - Consistency of data elements over time Quality target = >=80%, <=120%) | F99: Program Area -> | H99: =Indicators!$B$42 -> Malaria
A100: IV.a: Annual consistency - select the indicator on the Indicators tab. | F100: Indicator -> | H100: =Indicators!$E$42 -> Number of confirmed malaria cases reported
A101: 1. What is the current month value
A102: 2. What was the value of the indicator for the current month one year ago
A103: Consistency ratio: Divide the value of the current month by the value from the same month last year. If the value is more than 20% different (i.e. <0.8 or >1.2) this could indicate a data quality problem. | J103: =IF(ISERROR(J101/J102),"-",J101/J102) -> -
A104: IV.b Month-to-month consistency:
A105: Enter values for the selected indicator for the current month, and for the three preceding months. Calculate consistency: Current month/average of Month1-Month3. If the value is more than 20% different (i.e. <0.8 or >1.2) this could indicate a data quality problem. | F105: Month 1 | G105: Month 2 | H105: Month 3 | I105: Last month | J105: Consistency
E106: month | F106: =IF(ISERROR(EDATE($J$7,-4)),"-",EDATE($J$7,-4)) -> - | G106: =IF(ISERROR(EDATE($J$7,-3)),"-",EDATE($J$7,-3)) -> - | H106: =IF(ISERROR(EDATE($J$7,-3)),"-",EDATE($J$7,-2)) -> - | I106: =IF(ISERROR(EDATE($J$7,-3)),"-",EDATE($J$7,-1)) -> - | J106: ratio
E107: value | J107: =IF(ISERROR(I107/AVERAGE(F107:H107)),"-",I107/AVERAGE(F107:H107)) -> -
A108: Reasons for discrepancy (enter code at right):
A109: a) no discrepancy, b) arithmetic errors, c) transcription errors, d) vaccine stock management forms not up to date, e) some documents are missing, f) vaccine / drugs stock out,
A110: g) other (specify)
A111: V. System Assessment - Respond Yes or No for the following questions. | J111: Y/N
A112: V.1 | B112: Is there a designated person to enter data and compile reports?
A113: V.2 | B113: Is there a designated person to review the quality of compiled data prior to submission to the next level?
A114: V.3 | B114: Does the health facility have written guidelines on data collection and reporting for HMIS?
A115: V.4 | B115: Does the health facility have a reserve stock of blank registers or reporting forms?
A116: V.5 | B116: Has this health facility experienced any stock out of registers or reporting forms (since last visit)?
A117: V.6 | B117: Is a standardized OPD register being used to record information on patients seeking treatment (not improvised forms)?
A118: V.7 | B118: Can a patient's diagnosis and treatment history be easily found in the facility records?
A119: V.8 | B119: Are data archives properly maintained with historical patient level (registers) and aggregate (monthly report) results?
A120: V.9 | B120: Does the facility maintain accurate demographic information for the catchment area (that is, a record current population and the number of births and deaths)?
A121: V.10 | B121: Does the facility have established targets to monitor progress towards goals and objectives for prevention and treatment?
A122: V.11 | B122: Does the facility have an up-to-date display (for example, a chart on the wall) of the number of cases diagnosed and treated by reporting period for the year?
A123: V.12 | B123: Is there a chart of disease incidence by month displayed at the facility?
A124: Data Quality Improvement Plan for the Health Facility
A125: Please list the primary gaps or weaknesses in the data management system at the facility. What are the threats , or potential threats, to data quality ? For each item cited, please include action points that the facility can implement to strengthen the data management at the facility. Please be realistic in your recommendations. Also include the responsible staff and the date by which the intervention should be completed.
B126: Identified Weaknesses | E126: Description of Action Point | H126: Responsible(s) | J126: Time Line | K126: Comments
A127: 1
A128: 2
A129: 3
A130: 4
A132: HMIS Health Facility Supervision Data Quality Dashboard

Sheet Health Facility 4 (hidden)
A1: National Health Management Information System (HMIS) | H1: WHO - 2020 | M1: Go back to facility information tab
A2: Routine Supervision Data Quality Checklist | M2: Go to Dashboard
A3: Routine Supervision Data Quality Checklist | M3: Go to Dashboard
A4: Routine Supervision Data Quality Checklist | M4: Go to Dashboard
A5: Routine Supervision Data Quality Checklist | M5: Go to Dashboard
A6: Routine Supervision Data Quality Checklist | M6: Go to Dashboard
A7: Health facility name: | D7: =IF('Facility Information'!D17=0,"-",'Facility Information'!D17) -> - | G7: Date of Supervision: | J7: =IF('Facility Information'!J17=0,"-",'Facility Information'!J17) -> - | M7: Go to indicators
A8: Facility type: | D8: =IF('Facility Information'!H17=0,"-",'Facility Information'!H17) -> - | G8: Reporting period(s) verified (months): | J8: =IF(ISERROR(TEXT(EDATE(J7,-3),"mmm-yy")&", "&TEXT(EDATE(J7,-2),"mmm-yy")&", "&TEXT(EDATE(J7,-1),"mmm-yy")),"-",TEXT(EDATE(J7,-3),"mmm-yy")&", "&TEXT(EDATE(J7,-2),"mmm-yy")&", "&TEXT(EDATE(J7,-1),"mmm-yy")) -> -
A9: Town/Village: | D9: =IF('Facility Information'!E17=0,"-",'Facility Information'!E17) -> - | G9: Supervison team lead: | J9: =IF('Facility Information'!K17=0,"-",'Facility Information'!K17) -> - | AO9: Reporting performance & Readiness to provide quality data | AZ9: ="Reasons for discrepancy, by indicator" -> Reasons for discrepancy, by indicator
A10: Region: | D10: =IF('Facility Information'!G17=0,"-",'Facility Information'!G17) -> - | G10: Contact phone: | J10: =IF('Facility Information'!L17=0,"-",'Facility Information'!L17) -> - | AN10: Results | AR10: Source documents | AZ10: by comparison | BH10: by indicator
A11: District: | D11: =IF('Facility Information'!F17=0,"-",'Facility Information'!F17) -> - | G11: Contact email: | J11: =IF('Facility Information'!M17=0,"-",'Facility Information'!M17) -> - | AO11: Completeness of Monthly report | AP11: % Cases with missing data | AQ11: Timeliness of reporting | AR11: =AR10&" available" -> Source documents available | AS11: =AR10&" Up-to-date" -> Source documents Up-to-date | AT11: =AR10&" standard issue" -> Source documents standard issue | AU11: System Assessment (% readiness) | BA11: A | BB11: B | BC11: C | BD11: D | BE11: E | BF11: F | BI11: No discrepancy | BJ11: Arithematic errors | BK11: Transcription errors | BL11: Some documents were missing when the report was prepared | BM11: Some documents are now missing | BN11: Other
A12: I. Completeness & Timeliness | K12: Please provide a comment on the results | AO12: =J15 -> - | AP12: =E26 -> - | AQ12: =J17 -> 0 | AR12: =H27 -> - | AS12: =I27 -> - | AT12: =J27 -> - | AU12: =COUNTIF(J112:J123,"Yes")/COUNTA(J112:J123) ->  | AZ12: 1.1 | BA12: =IF(ISERROR(IF(SEARCH("A",$G$39)>0,1,0))," ",IF(SEARCH("A",$G$39)>0,1,0)) ->  | BB12: =IF(ISERROR(IF(SEARCH("B",$G$39)>0,1,0))," ",IF(SEARCH("B",$G$39)>0,1,0)) ->  | BC12: =IF(ISERROR(IF(SEARCH("C",$G$39)>0,1,0))," ",IF(SEARCH("C",$G$39)>0,1,0)) ->  | BD12: =IF(ISERROR(IF(SEARCH("D",$G$39)>0,1,0))," ",IF(SEARCH("D",$G$39)>0,1,0)) ->  | BE12: =IF(ISERROR(IF(SEARCH("E",$G$39)>0,1,0))," ",IF(SEARCH("E",$G$39)>0,1,0)) ->  | BF12: =IF(ISERROR(IF(SEARCH("F",$G$39)>0,1,0))," ",IF(SEARCH("F",$G$39)>0,1,0)) ->  | BH12: =AO14 -> ANC 1st Visit | BI12: =SUM(BA12:BA14) -> 0 | BJ12: 0 | BK12: 0 | BL12: 0 | BM12: 0 | BN12: 0
A13: A. Completeness of HMIS Monthly Report | H13: Expected Cells | I13: Completed Cells | J13: Percent Complete | AN13: Verification factors | AP13: VF Monthly report | AQ13: VF HMIS | AZ13: 1.2 | BA13: =IF(ISERROR(IF(SEARCH("A",$H$39)>0,1,0))," ",IF(SEARCH("A",$H$39)>0,1,0)) ->  | BB13: =IF(ISERROR(IF(SEARCH("B",$H$39)>0,1,0))," ",IF(SEARCH("B",$H$39)>0,1,0)) ->  | BC13: =IF(ISERROR(IF(SEARCH("C",$H$39)>0,1,0))," ",IF(SEARCH("C",$H$39)>0,1,0)) ->  | BD13: =IF(ISERROR(IF(SEARCH("D",$H$39)>0,1,0))," ",IF(SEARCH("D",$H$39)>0,1,0)) ->  | BE13: =IF(ISERROR(IF(SEARCH("E",$H$39)>0,1,0))," ",IF(SEARCH("E",$H$39)>0,1,0)) ->  | BF13: =IF(ISERROR(IF(SEARCH("F",$H$39)>0,1,0))," ",IF(SEARCH("F",$H$39)>0,1,0)) ->  | BH13: =AO15 -> Outpatient visits | BI13: =SUM(BA15:BA17) -> 0 | BJ13: =SUM(BB15:BB17) -> 0 | BK13: 0 | BL13: 0 | BM13: 0 | BN13: 0
A14: Select the most recent completed and submitted monthly HMIS facility report. Calculate the number of cells expected to be complete on the monthly report (exclude cells for services not offered by the facility). Count the number of cells that are complete (blank, not zero) and calculate the percentage completeness for the monthly report. | AN14: indicator | AO14: =D33 -> ANC 1st Visit | AP14: =J37 -> - | AQ14: =J38 -> - | AZ14: 1.3 | BA14: =IF(ISERROR(IF(SEARCH("A",$I$39)>0,1,0))," ",IF(SEARCH("A",$I$39)>0,1,0)) ->  | BB14: =IF(ISERROR(IF(SEARCH("B",$I$39)>0,1,0))," ",IF(SEARCH("B",$I$39)>0,1,0)) ->  | BC14: =IF(ISERROR(IF(SEARCH("C",$I$39)>0,1,0))," ",IF(SEARCH("C",$I$39)>0,1,0)) ->  | BD14: =IF(ISERROR(IF(SEARCH("D",$I$39)>0,1,0))," ",IF(SEARCH("D",$I$39)>0,1,0)) ->  | BE14: =IF(ISERROR(IF(SEARCH("E",$I$39)>0,1,0))," ",IF(SEARCH("E",$I$39)>0,1,0)) ->  | BF14: =IF(ISERROR(IF(SEARCH("F",$I$39)>0,1,0))," ",IF(SEARCH("F",$I$39)>0,1,0)) ->  | BH14: =AO16 -> Number of confirmed malaria cases reported | BI14: =SUM(BA18:BA20) -> 0 | BJ14: 0 | BK14: 0 | BL14: 0 | BM14: 0 | BN14: 0
J15: =IF(ISERROR(I15/H15),"-",I15/H15) -> - | AO15: =D42 -> Outpatient visits | AP15: =J46 -> - | AQ15: =J47 -> - | AZ15: 2.1 | BA15: =IF(ISERROR(IF(SEARCH("A",$G$48)>0,1,0))," ",IF(SEARCH("A",$G$48)>0,1,0)) ->  | BB15: =IF(ISERROR(IF(SEARCH("B",$G$48)>0,1,0))," ",IF(SEARCH("B",$G$48)>0,1,0)) ->  | BC15: =IF(ISERROR(IF(SEARCH("C",$G$48)>0,1,0))," ",IF(SEARCH("C",$G$48)>0,1,0)) ->  | BD15: =IF(ISERROR(IF(SEARCH("D",$G$48)>0,1,0))," ",IF(SEARCH("D",$G$48)>0,1,0)) ->  | BE15: =IF(ISERROR(IF(SEARCH("E",$G$48)>0,1,0))," ",IF(SEARCH("E",$G$48)>0,1,0)) ->  | BF15: =IF(ISERROR(IF(SEARCH("F",$G$48)>0,1,0))," ",IF(SEARCH("F",$G$48)>0,1,0)) ->  | BH15: =AO17 -> 3rd dose DPT-containing vaccine | BI15: =SUM(BA21:BA23) -> 1 | BJ15: 1 | BK15: 0 | BL15: 0 | BM15: 1 | BN15: 0
A16: B. Timeliness of Submission of Monthly Report | F16: Monthly report: | G16: =IF(ISERROR(EDATE($J$7,-3)),"-",EDATE($J$7,-3)) -> - | H16: =IF(ISERROR(EDATE($J$7,-3)),"-",EDATE($J$7,-2)) -> - | I16: =IF(ISERROR(EDATE($J$7,-3)),"-",EDATE($J$7,-1)) -> - | AO16: =D51 -> Number of confirmed malaria cases reported | AP16: =J55 -> - | AQ16: =J56 -> - | AZ16: 2.2 | BA16: =IF(ISERROR(IF(SEARCH("A",$H$48)>0,1,0))," ",IF(SEARCH("A",$H$48)>0,1,0)) ->  | BB16: =IF(ISERROR(IF(SEARCH("B",$H$48)>0,1,0))," ",IF(SEARCH("B",$H$48)>0,1,0)) ->  | BC16: =IF(ISERROR(IF(SEARCH("C",$H$48)>0,1,0))," ",IF(SEARCH("C",$H$48)>0,1,0)) ->  | BD16: =IF(ISERROR(IF(SEARCH("D",$H$48)>0,1,0))," ",IF(SEARCH("D",$H$48)>0,1,0)) ->  | BE16: =IF(ISERROR(IF(SEARCH("E",$H$48)>0,1,0))," ",IF(SEARCH("E",$H$48)>0,1,0)) ->  | BF16: =IF(ISERROR(IF(SEARCH("F",$H$48)>0,1,0))," ",IF(SEARCH("F",$H$48)>0,1,0)) ->  | BH16: =AO18 -> Live births | BI16: =SUM(BA24:BA26) -> 0 | BJ16: 0 | BK16: 0 | BL16: 2 | BM16: 1 | BN16: 0
A17: Review the monthly reports from the past three months at the facility and in the HMIS database. Determine if the reports were submitted by the deadline of reporting | F17: Submitted by the deadline? (Y/N) | J17: =COUNTIF(G17:I17,"Yes")/3 -> 0 | AO17: =D60 -> 3rd dose DPT-containing vaccine | AP17: =J64 -> 0.8794444444 | AQ17: =J65 -> 0.9437229437 | AZ17: 2.3 | BA17: =IF(ISERROR(IF(SEARCH("A",$I$48)>0,1,0))," ",IF(SEARCH("A",$I$48)>0,1,0)) ->  | BB17: =IF(ISERROR(IF(SEARCH("B",$I$48)>0,1,0))," ",IF(SEARCH("B",$I$48)>0,1,0)) ->  | BC17: =IF(ISERROR(IF(SEARCH("C",$I$48)>0,1,0))," ",IF(SEARCH("C",$I$48)>0,1,0)) ->  | BD17: =IF(ISERROR(IF(SEARCH("D",$I$48)>0,1,0))," ",IF(SEARCH("D",$I$48)>0,1,0)) ->  | BE17: =IF(ISERROR(IF(SEARCH("E",$I$48)>0,1,0))," ",IF(SEARCH("E",$I$48)>0,1,0)) ->  | BF17: =IF(ISERROR(IF(SEARCH("F",$I$48)>0,1,0))," ",IF(SEARCH("F",$I$48)>0,1,0)) ->  | BI17: =SUM(BI12:BI16) -> 1 | BJ17: 1 | BK17: 0 | BL17: 2 | BM17: 2 | BN17: 0
A18: C. Data Element Completeness: Missing data: ask to see the Outpatient Department (OPD) register. Count the number of clients in the quarter (month 1 to month 3) with missing information for each of the following columns in the unit malaria case register. | F18: D. Source Document Completeness: Review the following data sources and determine if they are available, up-to-date (values up to the current day/period) and standard (the form prepared and distributed by the program). (Y/N) | AO18: =D69 -> Live births | AP18: =J73 -> 0.9502849751 | AQ18: =J74 -> 0.9716480558 | AZ18: 3.1 | BA18: =IF(ISERROR(IF(SEARCH("A",$G$57)>0,1,0))," ",IF(SEARCH("A",$G$57)>0,1,0)) ->  | BB18: =IF(ISERROR(IF(SEARCH("B",$G$57)>0,1,0))," ",IF(SEARCH("B",$G$57)>0,1,0)) ->  | BC18: =IF(ISERROR(IF(SEARCH("C",$G$57)>0,1,0))," ",IF(SEARCH("C",$G$57)>0,1,0)) ->  | BD18: =IF(ISERROR(IF(SEARCH("D",$G$57)>0,1,0))," ",IF(SEARCH("D",$G$57)>0,1,0)) ->  | BE18: =IF(ISERROR(IF(SEARCH("E",$G$57)>0,1,0))," ",IF(SEARCH("E",$G$57)>0,1,0)) ->  | BF18: =IF(ISERROR(IF(SEARCH("F",$G$57)>0,1,0))," ",IF(SEARCH("F",$G$57)>0,1,0)) -> 
A19: =Indicators!R47&" Data elements" -> DE_HMIS Data elements | D19: Number of cases (rows) with missing data | % | F19: =Indicators!S47&" Source Documents:" -> DS_HMIS Source Documents: | H19: Available | I19: Up-to-date | J19: Standard form | K19: Comments | AZ19: 3.2 | BA19: =IF(ISERROR(IF(SEARCH("A",$H$57)>0,1,0))," ",IF(SEARCH("A",$H$57)>0,1,0)) ->  | BB19: =IF(ISERROR(IF(SEARCH("B",$H$57)>0,1,0))," ",IF(SEARCH("B",$H$57)>0,1,0)) ->  | BC19: =IF(ISERROR(IF(SEARCH("C",$H$57)>0,1,0))," ",IF(SEARCH("C",$H$57)>0,1,0)) ->  | BD19: =IF(ISERROR(IF(SEARCH("D",$H$57)>0,1,0))," ",IF(SEARCH("D",$H$57)>0,1,0)) ->  | BE19: =IF(ISERROR(IF(SEARCH("E",$H$57)>0,1,0))," ",IF(SEARCH("E",$H$57)>0,1,0)) ->  | BF19: =IF(ISERROR(IF(SEARCH("F",$H$57)>0,1,0))," ",IF(SEARCH("F",$H$57)>0,1,0)) -> 
A20: 1. | B20: =Indicators!R49 -> Unique ID | E20: =IF(D20="","-",IF(ISERROR(D20/$D$27),"-",D20/$D$27)) -> - | F20: =Indicators!S49 -> OPD register | AN20: Cross checks | AZ20: 3.3 | BA20: =IF(ISERROR(IF(SEARCH("A",$I$57)>0,1,0))," ",IF(SEARCH("A",$I$57)>0,1,0)) ->  | BB20: =IF(ISERROR(IF(SEARCH("B",$I$57)>0,1,0))," ",IF(SEARCH("B",$I$57)>0,1,0)) ->  | BC20: =IF(ISERROR(IF(SEARCH("C",$I$57)>0,1,0))," ",IF(SEARCH("C",$I$57)>0,1,0)) ->  | BD20: =IF(ISERROR(IF(SEARCH("D",$I$57)>0,1,0))," ",IF(SEARCH("D",$I$57)>0,1,0)) ->  | BE20: =IF(ISERROR(IF(SEARCH("E",$I$57)>0,1,0))," ",IF(SEARCH("E",$I$57)>0,1,0)) ->  | BF20: =IF(ISERROR(IF(SEARCH("F",$I$57)>0,1,0))," ",IF(SEARCH("F",$I$57)>0,1,0)) -> 
A21: 2. | B21: =Indicators!R51 -> Visit date | E21: - | F21: =Indicators!S51 -> OPD register | AO21: =A80 -> A — Malaria case register : Laboratory register (quality target = 90%) | AP21: =J84 -> - | AR21: =AN20&" 1 & 2" -> Cross checks 1 & 2 | AZ21: 4.1 | BA21: =IF(ISERROR(IF(SEARCH("A",$G$66)>0,1,0))," ",IF(SEARCH("A",$G$66)>0,1,0)) -> 1 | BB21: =IF(ISERROR(IF(SEARCH("B",$G$66)>0,1,0))," ",IF(SEARCH("B",$G$66)>0,1,0)) ->  | BC21: =IF(ISERROR(IF(SEARCH("C",$G$66)>0,1,0))," ",IF(SEARCH("C",$G$66)>0,1,0)) ->  | BD21: =IF(ISERROR(IF(SEARCH("D",$G$66)>0,1,0))," ",IF(SEARCH("D",$G$66)>0,1,0)) ->  | BE21: =IF(ISERROR(IF(SEARCH("E",$G$66)>0,1,0))," ",IF(SEARCH("E",$G$66)>0,1,0)) ->  | BF21: =IF(ISERROR(IF(SEARCH("F",$G$66)>0,1,0))," ",IF(SEARCH("F",$G$66)>0,1,0)) -> 
A22: 3. | B22: =Indicators!R53 -> Client name | E22: - | F22: =Indicators!S53 -> OPD register | AO22: =A85 -> B — Immunization register : Vaccine stock registry (quality target = 90%) | AP22: =J89 -> - | AZ22: 4.2 | BA22: =IF(ISERROR(IF(SEARCH("A",$H$66)>0,1,0))," ",IF(SEARCH("A",$H$66)>0,1,0)) ->  | BB22: =IF(ISERROR(IF(SEARCH("B",$H$66)>0,1,0))," ",IF(SEARCH("B",$H$66)>0,1,0)) -> 1 | BC22: =IF(ISERROR(IF(SEARCH("C",$H$66)>0,1,0))," ",IF(SEARCH("C",$H$66)>0,1,0)) ->  | BD22: =IF(ISERROR(IF(SEARCH("D",$H$66)>0,1,0))," ",IF(SEARCH("D",$H$66)>0,1,0)) ->  | BE22: =IF(ISERROR(IF(SEARCH("E",$H$66)>0,1,0))," ",IF(SEARCH("E",$H$66)>0,1,0)) ->  | BF22: =IF(ISERROR(IF(SEARCH("F",$H$66)>0,1,0))," ",IF(SEARCH("F",$H$66)>0,1,0)) -> 
A23: 4. | B23: =Indicators!R55 -> Age | E23: - | F23: =Indicators!S55 -> OPD register | AO23: =A90 -> C — ANC Register : Vaccine stock management log (quality target: >=90%, <=110%) | AP23: =J95 -> - | AR23: ="Cross check 3" -> Cross check 3 | AZ23: 4.3 | BA23: =IF(ISERROR(IF(SEARCH("A",$I$66)>0,1,0))," ",IF(SEARCH("A",$I$66)>0,1,0)) ->  | BB23: =IF(ISERROR(IF(SEARCH("B",$I$66)>0,1,0))," ",IF(SEARCH("B",$I$66)>0,1,0)) ->  | BC23: =IF(ISERROR(IF(SEARCH("C",$I$66)>0,1,0))," ",IF(SEARCH("C",$I$66)>0,1,0)) ->  | BD23: =IF(ISERROR(IF(SEARCH("D",$I$66)>0,1,0))," ",IF(SEARCH("D",$I$66)>0,1,0)) ->  | BE23: =IF(ISERROR(IF(SEARCH("E",$I$66)>0,1,0))," ",IF(SEARCH("E",$I$66)>0,1,0)) -> 1 | BF23: =IF(ISERROR(IF(SEARCH("F",$I$66)>0,1,0))," ",IF(SEARCH("F",$I$66)>0,1,0)) -> 
A24: 5. | B24: =Indicators!R57 -> Diagnosis (any type) | E24: - | F24: =Indicators!S57 -> OPD register | AZ24: 5.1 | BA24: =IF(ISERROR(IF(SEARCH("A",$G$75)>0,1,0))," ",IF(SEARCH("A",$G$75)>0,1,0)) ->  | BB24: =IF(ISERROR(IF(SEARCH("B",$G$75)>0,1,0))," ",IF(SEARCH("B",$G$75)>0,1,0)) ->  | BC24: =IF(ISERROR(IF(SEARCH("C",$G$75)>0,1,0))," ",IF(SEARCH("C",$G$75)>0,1,0)) ->  | BD24: =IF(ISERROR(IF(SEARCH("D",$G$75)>0,1,0))," ",IF(SEARCH("D",$G$75)>0,1,0)) -> 1 | BE24: =IF(ISERROR(IF(SEARCH("E",$G$75)>0,1,0))," ",IF(SEARCH("E",$G$75)>0,1,0)) ->  | BF24: =IF(ISERROR(IF(SEARCH("F",$G$75)>0,1,0))," ",IF(SEARCH("F",$G$75)>0,1,0)) -> 
A25: 6. | B25: =Indicators!R59 -> Treatment given | E25: - | F25: =Indicators!S59 -> OPD register | AN25: ="Consistency over time: "&H99&": "&H100 -> Consistency over time: Malaria: Number of confirmed malaria cases reported | AZ25: 5.2 | BA25: =IF(ISERROR(IF(SEARCH("A",$H$75)>0,1,0))," ",IF(SEARCH("A",$H$75)>0,1,0)) ->  | BB25: =IF(ISERROR(IF(SEARCH("B",$H$75)>0,1,0))," ",IF(SEARCH("B",$H$75)>0,1,0)) ->  | BC25: =IF(ISERROR(IF(SEARCH("C",$H$75)>0,1,0))," ",IF(SEARCH("C",$H$75)>0,1,0)) ->  | BD25: =IF(ISERROR(IF(SEARCH("D",$H$75)>0,1,0))," ",IF(SEARCH("D",$H$75)>0,1,0)) -> 1 | BE25: =IF(ISERROR(IF(SEARCH("E",$H$75)>0,1,0))," ",IF(SEARCH("E",$H$75)>0,1,0)) ->  | BF25: =IF(ISERROR(IF(SEARCH("F",$H$75)>0,1,0))," ",IF(SEARCH("F",$H$75)>0,1,0)) -> 
A26: 7. | B26: Number of entries missing data in at least 1 of the 6 columns listed above | E26: - | F26: =Indicators!S61 -> OPD register | AN26: =F106 -> - | AO26: - | AP26: - | AQ26: - | AZ26: 5.3 | BA26: =IF(ISERROR(IF(SEARCH("A",$I$75)>0,1,0))," ",IF(SEARCH("A",$I$75)>0,1,0)) ->  | BB26: =IF(ISERROR(IF(SEARCH("B",$I$75)>0,1,0))," ",IF(SEARCH("B",$I$75)>0,1,0)) ->  | BC26: =IF(ISERROR(IF(SEARCH("C",$I$75)>0,1,0))," ",IF(SEARCH("C",$I$75)>0,1,0)) ->  | BD26: =IF(ISERROR(IF(SEARCH("D",$I$75)>0,1,0))," ",IF(SEARCH("D",$I$75)>0,1,0)) ->  | BE26: =IF(ISERROR(IF(SEARCH("E",$I$75)>0,1,0))," ",IF(SEARCH("E",$I$75)>0,1,0)) -> 1 | BF26: =IF(ISERROR(IF(SEARCH("F",$I$75)>0,1,0))," ",IF(SEARCH("F",$I$75)>0,1,0)) -> 
A27: 8. | B27: Total number of entries for the period | F27: % Complete | H27: =IF(ISERROR(COUNTIF(H20:H26,"Yes")/COUNTA(H20:H26)),"-",COUNTIF(H20:H26,"Yes")/COUNTA(H20:H26)) -> - | I27: =IF(ISERROR(COUNTIF(I20:I26,"Yes")/COUNTA(I20:I26)),"-",COUNTIF(I20:I26,"Yes")/COUNTA(I20:I26)) -> - | J27: =IF(ISERROR(COUNTIF(J20:J26,"Yes")/COUNTA(J20:J26)),"-",COUNTIF(J20:J26,"Yes")/COUNTA(J20:J26)) -> - | AN27: 0 | AO27: 0 | AP27: 0 | AQ27: 0 | BA27: =SUM(BA12:BA26) -> 1 | BB27: 1 | BC27: 0 | BD27: 2 | BE27: 2 | BF27: 0
A28: II. Data Accuracy
A29: Recount value of indicators from the malaria case register and compare the value to the one reported by the facility for the selected months
B30: ="Indicators" -> Indicators | G30: Month 1 | H30: Month 2 | I30: Month 3 | J30: 3-month total
G31: =IF(ISERROR(EDATE($J$7,-3)),"-",EDATE($J$7,-3)) -> - | H31: =IF(ISERROR(EDATE($J$7,-3)),"-",EDATE($J$7,-2)) -> - | I31: =IF(ISERROR(EDATE($J$7,-3)),"-",EDATE($J$7,-1)) -> -
A32: 1. | B32: Select indicator type: | D32: =IF(Indicators!$R$13=0,"-",Indicators!$R$13) -> Maternal_Health
B33: Select indicator: | D33: =IF(Indicators!$S$13=0,"-",Indicators!$S$13) -> ANC 1st Visit | G33: ="quality target: >="&TEXT(100%-Indicators!$V$13,"0%")&", <="&TEXT(100%+Indicators!$V$13,"0%") -> quality target: >=90%, <=110%
B34: Source document re-count | J34: =IF(ISERROR(SUM(G34:I34)),"-",SUM(G34:I34)) -> 0
B35: HMIS monthly report value | J35: =IF(ISERROR(SUM(G35:I35)),"-",SUM(G35:I35)) -> 0
B36: DHIS2 monthly value | J36: =IF(ISERROR(SUM(G36:I36)),"-",SUM(G36:I36)) -> 0
B37: Monthly Report Verification factor(VF): | G37: =IF(ISERROR(G34/G35),"-",G34/G35) -> - | H37: =IF(ISERROR(H34/H35),"-",H34/H35) -> - | I37: =IF(ISERROR(I34/I35),"-",I34/I35) -> - | J37: =IF(ISERROR(AVERAGE(G37:I37)),"-",AVERAGE(G37:I37)) -> -
B38: DHIS 2 Verification factor(VF): | G38: =IF(ISERROR(G34/G36),"-",G34/G36) -> - | H38: =IF(ISERROR(H34/H36),"-",H34/H36) -> - | I38: =IF(ISERROR(I34/I36),"-",I34/I36) -> - | J38: =IF(ISERROR(AVERAGE(G38:I38)),"-",AVERAGE(G38:I38)) -> -
B39: Reasons for discrepancy (use code below - mark all that apply)
B40: Other reason (specify)
A41: 2. | B41: Select indicator type: | D41: =IF(Indicators!$R$16=0,"-",Indicators!$R$16) -> HMIS
B42: Select indicator: | D42: =IF(Indicators!$S$16=0,"-",Indicators!$S$16) -> Outpatient visits | G42: ="quality target: >="&TEXT(100%-Indicators!$V$16,"0%")&", <="&TEXT(100%+Indicators!$V$16,"0%") -> quality target: >=90%, <=110%
B43: Source document re-count | J43: =IF(ISERROR(SUM(G43:I43)),"-",SUM(G43:I43)) -> 0
B44: HMIS monthly report value | J44: =IF(ISERROR(SUM(G44:I44)),"-",SUM(G44:I44)) -> 0
B45: DHIS2 monthly value | J45: =IF(ISERROR(SUM(G45:I45)),"-",SUM(G45:I45)) -> 0
B46: Monthly Report Verification factor(VF): | G46: =IF(ISERROR(G43/G44),"-",G43/G44) -> - | H46: =IF(ISERROR(H43/H44),"-",H43/H44) -> - | I46: =IF(ISERROR(I43/I44),"-",I43/I44) -> - | J46: =IF(ISERROR(AVERAGE(G46:I46)),"-",AVERAGE(G46:I46)) -> -
B47: DHIS 2 Verification factor(VF): | G47: =IF(ISERROR(G43/G45),"-",G43/G45) -> - | H47: =IF(ISERROR(H43/H45),"-",H43/H45) -> - | I47: =IF(ISERROR(I43/I45),"-",I43/I45) -> - | J47: =IF(ISERROR(AVERAGE(G47:I47)),"-",AVERAGE(G47:I47)) -> -
B48: Reasons for discrepancy (use code below - mark all that apply)
B49: Other reason (specify)
A50: 3. | B50: Select indicator type: | D50: =IF(Indicators!$R$19=0,"-",Indicators!$R$19) -> Malaria
B51: Select indicator: | D51: =IF(Indicators!$S$19=0,"-",Indicators!$S$19) -> Number of confirmed malaria cases reported | G51: ="quality target: >="&TEXT(100%-Indicators!$V$19,"0%")&", <="&TEXT(100%+Indicators!$V$19,"0%") -> quality target: >=85%, <=115%
B52: Source document re-count | J52: =IF(ISERROR(SUM(G52:I52)),"-",SUM(G52:I52)) -> 0
B53: HMIS monthly report value | J53: =IF(ISERROR(SUM(G53:I53)),"-",SUM(G53:I53)) -> 0
B54: DHIS2 monthly value | J54: =IF(ISERROR(SUM(G54:I54)),"-",SUM(G54:I54)) -> 0
B55: Monthly Report Verification factor(VF): | G55: =IF(ISERROR(G52/G53),"-",G52/G53) -> - | H55: =IF(ISERROR(H52/H53),"-",H52/H53) -> - | I55: =IF(ISERROR(I52/I53),"-",I52/I53) -> - | J55: =IF(ISERROR(AVERAGE(G55:I55)),"-",AVERAGE(G55:I55)) -> -
B56: DHIS 2 Verification factor(VF): | G56: =IF(ISERROR(G52/G54),"-",G52/G54) -> - | H56: =IF(ISERROR(H52/H54),"-",H52/H54) -> - | I56: =IF(ISERROR(I52/I54),"-",I52/I54) -> - | J56: =IF(ISERROR(AVERAGE(G56:I56)),"-",AVERAGE(G56:I56)) -> -
B57: Reasons for discrepancy (use code below - mark all that apply)
B58: Other reason (specify)
A59: 4. | B59: Select indicator type: | D59: =IF(Indicators!$R$22=0,"-",Indicators!$R$22) -> Immunization
B60: Select indicator: | D60: =IF(Indicators!$S$22=0,"-",Indicators!$S$22) -> 3rd dose DPT-containing vaccine | G60: ="quality target: >="&TEXT(100%-Indicators!$V$22,"0%")&", <="&TEXT(100%+Indicators!$V$22,"0%") -> quality target: >=80%, <=120%
B61: Source document re-count | G61: 20 | H61: 22 | I61: 23 | J61: =IF(ISERROR(SUM(G61:I61)),"-",SUM(G61:I61)) -> 65
B62: HMIS monthly report value | G62: 25 | H62: 25 | I62: 24 | J62: =IF(ISERROR(SUM(G62:I62)),"-",SUM(G62:I62)) -> 74
B63: DHIS2 monthly value | G63: 20 | H63: 28 | I63: 22 | J63: =IF(ISERROR(SUM(G63:I63)),"-",SUM(G63:I63)) -> 70
B64: Monthly Report Verification factor(VF): | G64: =IF(ISERROR(G61/G62),"-",G61/G62) -> 0.8 | H64: =IF(ISERROR(H61/H62),"-",H61/H62) -> 0.88 | I64: =IF(ISERROR(I61/I62),"-",I61/I62) -> 0.9583333333 | J64: =IF(ISERROR(AVERAGE(G64:I64)),"-",AVERAGE(G64:I64)) -> 0.8794444444
B65: DHIS 2 Verification factor(VF): | G65: =IF(ISERROR(G61/G63),"-",G61/G63) -> 1 | H65: =IF(ISERROR(H61/H63),"-",H61/H63) -> 0.7857142857 | I65: =IF(ISERROR(I61/I63),"-",I61/I63) -> 1.045454545 | J65: =IF(ISERROR(AVERAGE(G65:I65)),"-",AVERAGE(G65:I65)) -> 0.9437229437
B66: Reasons for discrepancy (use code below - mark all that apply) | G66: A | H66: B | I66: E
B67: Other reason (specify)
A68: 5. | B68: Select indicator type: | D68: =IF(Indicators!$R$25=0,"-",Indicators!$R$25) -> HMIS
B69: Select indicator: | D69: =IF(Indicators!$S$25=0,"-",Indicators!$S$25) -> Live births | G69: ="quality target: >="&TEXT(100%-Indicators!$V$25,"0%")&", <="&TEXT(100%+Indicators!$V$25,"0%") -> quality target: >=75%, <=125%
B70: Source document re-count | G70: 60 | H70: 62 | I70: 63 | J70: =IF(ISERROR(SUM(G70:I70)),"-",SUM(G70:I70)) -> 185
B71: HMIS monthly report value | G71: 68 | H71: 63 | I71: 64 | J71: =IF(ISERROR(SUM(G71:I71)),"-",SUM(G71:I71)) -> 195
B72: DHIS2 monthly value | G72: 61 | H72: 69 | I72: 61 | J72: =IF(ISERROR(SUM(G72:I72)),"-",SUM(G72:I72)) -> 191
B73: Monthly Report Verification factor(VF): | G73: =IF(ISERROR(G70/G71),"-",G70/G71) -> 0.8823529412 | H73: =IF(ISERROR(H70/H71),"-",H70/H71) -> 0.9841269841 | I73: =IF(ISERROR(I70/I71),"-",I70/I71) -> 0.984375 | J73: =IF(ISERROR(AVERAGE(G73:I73)),"-",AVERAGE(G73:I73)) -> 0.9502849751
B74: DHIS 2 Verification factor(VF): | G74: =IF(ISERROR(G70/G72),"-",G70/G72) -> 0.9836065574 | H74: =IF(ISERROR(H70/H72),"-",H70/H72) -> 0.8985507246 | I74: =IF(ISERROR(I70/I72),"-",I70/I72) -> 1.032786885 | J74: =IF(ISERROR(AVERAGE(G74:I74)),"-",AVERAGE(G74:I74)) -> 0.9716480558
B75: Reasons for discrepancy (use code below - mark all that apply) | G75: D | H75: D | I75: E
B76: Other reason (specify)
A77: Reasons for discrepancy:
A78: a) no discrepancy, b) arithmetic errors, c) transcription errors, d) some documents were missing when the report was prepared, e) some documents are now missing, f) other (specify)
A79: III. Cross Checks | K79: Comments
A80: ="A — "&Indicators!R31&" : "&Indicators!S31&" (quality target = "&TEXT(100%-Indicators!$V$31,"0%")&")" -> A — Malaria case register : Laboratory register (quality target = 90%)
A81: ="Randomly select 10 patients who have been treated in the period at the facility from the "&Indicators!R31&"." -> Randomly select 10 patients who have been treated in the period at the facility from the Malaria case register.
A82: ="1. Number of cases sampled from the "&Indicators!R31&"." -> 1. Number of cases sampled from the Malaria case register.
A83: ="2. How many of the patients selected had a corresponding entry with matching information for the patients in the "&Indicators!S31&"?" -> 2. How many of the patients selected had a corresponding entry with matching information for the patients in the Laboratory register?
A84: =Indicators!S31&" reliability rate:" -> Laboratory register reliability rate: | J84: =IF(ISERROR(J83/J82),"-",J83/J82) -> -
A85: ="B — "&Indicators!R34&" : "&Indicators!S34&" (quality target = "&TEXT(100%-Indicators!$V$34,"0%")&")" -> B — Immunization register : Vaccine stock registry (quality target = 90%)
A86: ="Randomly select 10 cases who have been treated in the period at the facility from the "&Indicators!R34&"." -> Randomly select 10 cases who have been treated in the period at the facility from the Immunization register.
A87: ="1. Number of cases sampled from the "&Indicators!R34&"." -> 1. Number of cases sampled from the Immunization register.
A88: ="2. How many of the patients selected had a corresponding entry with matching information for the patients in the "&Indicators!S34&"?" -> 2. How many of the patients selected had a corresponding entry with matching information for the patients in the Vaccine stock registry?
A89: =Indicators!S34&" reliability rate:" -> Vaccine stock registry reliability rate: | J89: =IF(ISERROR(J88/J87),"-",J88/J87) -> -
A90: ="C — "&Indicators!R37&" : "&Indicators!S37&" (quality target: >="&TEXT(100%-Indicators!$V$38,"0%")&", <="&TEXT(100%+Indicators!$V$38,"0%")&")" -> C — ANC Register : Vaccine stock management log (quality target: >=90%, <=110%)
A91: Number of units (e.g. doses of medication/vaccine, other commodities) in stock at the site at the beginning of the reporting period (initial in stock) | I91: a.
A92: Number of units received by the site during the reporting period | G92: b. | I92: b.
A93: Number of units in stock at the site at the end of the reporting period (closing in stock) | G93: c. | I93: c.
A94: Number of units used (e.g. given to patients) by the site during the reporting period | G94: d. | I94: d.
A95: Verification ratio: (d/[a+b-c]): | J95: =IF(ISERROR(J94/(J91+J92-J93)),"-",J94/(J91+J92-J93)) -> -
A96: Reasons for discrepancy (enter code at right):
A97: a) no discrepancy, b) arithmetic errors, c) transcription errors, d) drugs stock management forms not up to date, e) some documents are missing, f) stock out of treatment drugs,
A98: g) other (specify)
A99: ="IV. Consistency Checks - Consistency of data elements over time Quality target = >="&TEXT(100%-Indicators!$V$42,"0%")&", <="&TEXT(100%+Indicators!$V$42,"0%")&")" -> IV. Consistency Checks - Consistency of data elements over time Quality target = >=80%, <=120%) | F99: Program Area -> | H99: =Indicators!$B$42 -> Malaria
A100: IV.a: Annual consistency - select the indicator on the Indicators tab. | F100: Indicator -> | H100: =Indicators!$E$42 -> Number of confirmed malaria cases reported
A101: 1. What is the current month value
A102: 2. What was the value of the indicator for the current month one year ago
A103: Consistency ratio: Divide the value of the current month by the value from the same month last year. If the value is more than 20% different (i.e. <0.8 or >1.2) this could indicate a data quality problem. | J103: =IF(ISERROR(J101/J102),"-",J101/J102) -> -
A104: IV.b Month-to-month consistency:
A105: Enter values for the selected indicator for the current month, and for the three preceding months. Calculate consistency: Current month/average of Month1-Month3. If the value is more than 20% different (i.e. <0.8 or >1.2) this could indicate a data quality problem. | F105: Month 1 | G105: Month 2 | H105: Month 3 | I105: Last month | J105: Consistency
E106: month | F106: =IF(ISERROR(EDATE($J$7,-4)),"-",EDATE($J$7,-4)) -> - | G106: =IF(ISERROR(EDATE($J$7,-3)),"-",EDATE($J$7,-3)) -> - | H106: =IF(ISERROR(EDATE($J$7,-3)),"-",EDATE($J$7,-2)) -> - | I106: =IF(ISERROR(EDATE($J$7,-3)),"-",EDATE($J$7,-1)) -> - | J106: ratio
E107: value | J107: =IF(ISERROR(I107/AVERAGE(F107:H107)),"-",I107/AVERAGE(F107:H107)) -> -
A108: Reasons for discrepancy (enter code at right):
A109: a) no discrepancy, b) arithmetic errors, c) transcription errors, d) vaccine stock management forms not up to date, e) some documents are missing, f) vaccine / drugs stock out,
A110: g) other (specify)
A111: V. System Assessment - Respond Yes or No for the following questions. | J111: Y/N
A112: V.1 | B112: Is there a designated person to enter data and compile reports?
A113: V.2 | B113: Is there a designated person to review the quality of compiled data prior to submission to the next level?
A114: V.3 | B114: Does the health facility have written guidelines on data collection and reporting for HMIS?
A115: V.4 | B115: Does the health facility have a reserve stock of blank registers or reporting forms?
A116: V.5 | B116: Has this health facility experienced any stock out of registers or reporting forms (since last visit)?
A117: V.6 | B117: Is a standardized OPD register being used to record information on patients seeking treatment (not improvised forms)?
A118: V.7 | B118: Can a patient's diagnosis and treatment history be easily found in the facility records?
A119: V.8 | B119: Are data archives properly maintained with historical patient level (registers) and aggregate (monthly report) results?
A120: V.9 | B120: Does the facility maintain accurate demographic information for the catchment area (that is, a record current population and the number of births and deaths)?
A121: V.10 | B121: Does the facility have established targets to monitor progress towards goals and objectives for prevention and treatment?
A122: V.11 | B122: Does the facility have an up-to-date display (for example, a chart on the wall) of the number of cases diagnosed and treated by reporting period for the year?
A123: V.12 | B123: Is there a chart of disease incidence by month displayed at the facility?
A124: Data Quality Improvement Plan for the Health Facility
A125: Please list the primary gaps or weaknesses in the data management system at the facility. What are the threats , or potential threats, to data quality ? For each item cited, please include action points that the facility can implement to strengthen the data management at the facility. Please be realistic in your recommendations. Also include the responsible staff and the date by which the intervention should be completed.
B126: Identified Weaknesses | E126: Description of Action Point | H126: Responsible(s) | J126: Time Line | K126: Comments
A127: 1
A128: 2
A129: 3
A130: 4
A132: HMIS Health Facility Supervision Data Quality Dashboard

Sheet Health Facility 5 (hidden)
A1: National Health Management Information System (HMIS) | H1: WHO - 2020 | M1: Go back to facility information tab
A2: Routine Supervision Data Quality Checklist | M2: Go to Dashboard
A3: Routine Supervision Data Quality Checklist | M3: Go to Dashboard
A4: Routine Supervision Data Quality Checklist | M4: Go to Dashboard
A5: Routine Supervision Data Quality Checklist | M5: Go to Dashboard
A6: Routine Supervision Data Quality Checklist | M6: Go to Dashboard
A7: Health facility name: | D7: =IF('Facility Information'!D18=0,"-",'Facility Information'!D18) -> - | G7: Date of Supervision: | J7: =IF('Facility Information'!J18=0,"-",'Facility Information'!J18) -> - | M7: Go to indicators
A8: Facility type: | D8: =IF('Facility Information'!H18=0,"-",'Facility Information'!H18) -> - | G8: Reporting period(s) verified (months): | J8: =IF(ISERROR(TEXT(EDATE(J7,-3),"mmm-yy")&", "&TEXT(EDATE(J7,-2),"mmm-yy")&", "&TEXT(EDATE(J7,-1),"mmm-yy")),"-",TEXT(EDATE(J7,-3),"mmm-yy")&", "&TEXT(EDATE(J7,-2),"mmm-yy")&", "&TEXT(EDATE(J7,-1),"mmm-yy")) -> -
A9: Town/Village: | D9: =IF('Facility Information'!E18=0,"-",'Facility Information'!E18) -> - | G9: Supervison team lead: | J9: =IF('Facility Information'!K18=0,"-",'Facility Information'!K18) -> - | AO9: Reporting performance & Readiness to provide quality data | AZ9: ="Reasons for discrepancy, by indicator" -> Reasons for discrepancy, by indicator
A10: Region: | D10: =IF('Facility Information'!G18=0,"-",'Facility Information'!G18) -> - | G10: Contact phone: | J10: =IF('Facility Information'!L18=0,"-",'Facility Information'!L18) -> - | AN10: Results | AR10: Source documents | AZ10: by comparison | BH10: by indicator
A11: District: | D11: =IF('Facility Information'!F18=0,"-",'Facility Information'!F18) -> - | G11: Contact email: | J11: =IF('Facility Information'!M18=0,"-",'Facility Information'!M18) -> - | AO11: Completeness of Monthly report | AP11: % Cases with missing data | AQ11: Timeliness of reporting | AR11: =AR10&" available" -> Source documents available | AS11: =AR10&" Up-to-date" -> Source documents Up-to-date | AT11: =AR10&" standard issue" -> Source documents standard issue | AU11: System Assessment (% readiness) | BA11: A | BB11: B | BC11: C | BD11: D | BE11: E | BF11: F | BI11: No discrepancy | BJ11: Arithematic errors | BK11: Transcription errors | BL11: Some documents were missing when the report was prepared | BM11: Some documents are now missing | BN11: Other
A12: I. Completeness & Timeliness | K12: Please provide a comment on the results | AO12: =J15 -> - | AP12: =E26 -> - | AQ12: =J17 -> 0 | AR12: =H27 -> - | AS12: =I27 -> - | AT12: =J27 -> - | AU12: =COUNTIF(J112:J123,"Yes")/COUNTA(J112:J123) ->  | AZ12: 1.1 | BA12: =IF(ISERROR(IF(SEARCH("A",$G$39)>0,1,0))," ",IF(SEARCH("A",$G$39)>0,1,0)) ->  | BB12: =IF(ISERROR(IF(SEARCH("B",$G$39)>0,1,0))," ",IF(SEARCH("B",$G$39)>0,1,0)) ->  | BC12: =IF(ISERROR(IF(SEARCH("C",$G$39)>0,1,0))," ",IF(SEARCH("C",$G$39)>0,1,0)) ->  | BD12: =IF(ISERROR(IF(SEARCH("D",$G$39)>0,1,0))," ",IF(SEARCH("D",$G$39)>0,1,0)) ->  | BE12: =IF(ISERROR(IF(SEARCH("E",$G$39)>0,1,0))," ",IF(SEARCH("E",$G$39)>0,1,0)) ->  | BF12: =IF(ISERROR(IF(SEARCH("F",$G$39)>0,1,0))," ",IF(SEARCH("F",$G$39)>0,1,0)) ->  | BH12: =AO14 -> ANC 1st Visit | BI12: =SUM(BA12:BA14) -> 0 | BJ12: 0 | BK12: 0 | BL12: 0 | BM12: 0 | BN12: 0
A13: A. Completeness of HMIS Monthly Report | H13: Expected Cells | I13: Completed Cells | J13: Percent Complete | AN13: Verification factors | AP13: VF Monthly report | AQ13: VF HMIS | AZ13: 1.2 | BA13: =IF(ISERROR(IF(SEARCH("A",$H$39)>0,1,0))," ",IF(SEARCH("A",$H$39)>0,1,0)) ->  | BB13: =IF(ISERROR(IF(SEARCH("B",$H$39)>0,1,0))," ",IF(SEARCH("B",$H$39)>0,1,0)) ->  | BC13: =IF(ISERROR(IF(SEARCH("C",$H$39)>0,1,0))," ",IF(SEARCH("C",$H$39)>0,1,0)) ->  | BD13: =IF(ISERROR(IF(SEARCH("D",$H$39)>0,1,0))," ",IF(SEARCH("D",$H$39)>0,1,0)) ->  | BE13: =IF(ISERROR(IF(SEARCH("E",$H$39)>0,1,0))," ",IF(SEARCH("E",$H$39)>0,1,0)) ->  | BF13: =IF(ISERROR(IF(SEARCH("F",$H$39)>0,1,0))," ",IF(SEARCH("F",$H$39)>0,1,0)) ->  | BH13: =AO15 -> Outpatient visits | BI13: =SUM(BA15:BA17) -> 0 | BJ13: =SUM(BB15:BB17) -> 0 | BK13: 0 | BL13: 0 | BM13: 0 | BN13: 0
A14: Select the most recent completed and submitted monthly HMIS facility report. Calculate the number of cells expected to be complete on the monthly report (exclude cells for services not offered by the facility). Count the number of cells that are complete (blank, not zero) and calculate the percentage completeness for the monthly report. | AN14: indicator | AO14: =D33 -> ANC 1st Visit | AP14: =J37 -> - | AQ14: =J38 -> - | AZ14: 1.3 | BA14: =IF(ISERROR(IF(SEARCH("A",$I$39)>0,1,0))," ",IF(SEARCH("A",$I$39)>0,1,0)) ->  | BB14: =IF(ISERROR(IF(SEARCH("B",$I$39)>0,1,0))," ",IF(SEARCH("B",$I$39)>0,1,0)) ->  | BC14: =IF(ISERROR(IF(SEARCH("C",$I$39)>0,1,0))," ",IF(SEARCH("C",$I$39)>0,1,0)) ->  | BD14: =IF(ISERROR(IF(SEARCH("D",$I$39)>0,1,0))," ",IF(SEARCH("D",$I$39)>0,1,0)) ->  | BE14: =IF(ISERROR(IF(SEARCH("E",$I$39)>0,1,0))," ",IF(SEARCH("E",$I$39)>0,1,0)) ->  | BF14: =IF(ISERROR(IF(SEARCH("F",$I$39)>0,1,0))," ",IF(SEARCH("F",$I$39)>0,1,0)) ->  | BH14: =AO16 -> Number of confirmed malaria cases reported | BI14: =SUM(BA18:BA20) -> 0 | BJ14: 0 | BK14: 0 | BL14: 0 | BM14: 0 | BN14: 0
J15: =IF(ISERROR(I15/H15),"-",I15/H15) -> - | AO15: =D42 -> Outpatient visits | AP15: =J46 -> - | AQ15: =J47 -> - | AZ15: 2.1 | BA15: =IF(ISERROR(IF(SEARCH("A",$G$48)>0,1,0))," ",IF(SEARCH("A",$G$48)>0,1,0)) ->  | BB15: =IF(ISERROR(IF(SEARCH("B",$G$48)>0,1,0))," ",IF(SEARCH("B",$G$48)>0,1,0)) ->  | BC15: =IF(ISERROR(IF(SEARCH("C",$G$48)>0,1,0))," ",IF(SEARCH("C",$G$48)>0,1,0)) ->  | BD15: =IF(ISERROR(IF(SEARCH("D",$G$48)>0,1,0))," ",IF(SEARCH("D",$G$48)>0,1,0)) ->  | BE15: =IF(ISERROR(IF(SEARCH("E",$G$48)>0,1,0))," ",IF(SEARCH("E",$G$48)>0,1,0)) ->  | BF15: =IF(ISERROR(IF(SEARCH("F",$G$48)>0,1,0))," ",IF(SEARCH("F",$G$48)>0,1,0)) ->  | BH15: =AO17 -> 3rd dose DPT-containing vaccine | BI15: =SUM(BA21:BA23) -> 0 | BJ15: 1 | BK15: 0 | BL15: 1 | BM15: 1 | BN15: 0
A16: B. Timeliness of Submission of Monthly Report | F16: Monthly report: | G16: =IF(ISERROR(EDATE($J$7,-3)),"-",EDATE($J$7,-3)) -> - | H16: =IF(ISERROR(EDATE($J$7,-3)),"-",EDATE($J$7,-2)) -> - | I16: =IF(ISERROR(EDATE($J$7,-3)),"-",EDATE($J$7,-1)) -> - | AO16: =D51 -> Number of confirmed malaria cases reported | AP16: =J55 -> - | AQ16: =J56 -> - | AZ16: 2.2 | BA16: =IF(ISERROR(IF(SEARCH("A",$H$48)>0,1,0))," ",IF(SEARCH("A",$H$48)>0,1,0)) ->  | BB16: =IF(ISERROR(IF(SEARCH("B",$H$48)>0,1,0))," ",IF(SEARCH("B",$H$48)>0,1,0)) ->  | BC16: =IF(ISERROR(IF(SEARCH("C",$H$48)>0,1,0))," ",IF(SEARCH("C",$H$48)>0,1,0)) ->  | BD16: =IF(ISERROR(IF(SEARCH("D",$H$48)>0,1,0))," ",IF(SEARCH("D",$H$48)>0,1,0)) ->  | BE16: =IF(ISERROR(IF(SEARCH("E",$H$48)>0,1,0))," ",IF(SEARCH("E",$H$48)>0,1,0)) ->  | BF16: =IF(ISERROR(IF(SEARCH("F",$H$48)>0,1,0))," ",IF(SEARCH("F",$H$48)>0,1,0)) ->  | BH16: =AO18 -> Live births | BI16: =SUM(BA24:BA26) -> 0 | BJ16: 2 | BK16: 0 | BL16: 0 | BM16: 1 | BN16: 0
A17: Review the monthly reports from the past three months at the facility and in the HMIS database. Determine if the reports were submitted by the deadline of reporting | F17: Submitted by the deadline? (Y/N) | J17: =COUNTIF(G17:I17,"Yes")/3 -> 0 | AO17: =D60 -> 3rd dose DPT-containing vaccine | AP17: =J64 -> 0.8794444444 | AQ17: =J65 -> 0.9437229437 | AZ17: 2.3 | BA17: =IF(ISERROR(IF(SEARCH("A",$I$48)>0,1,0))," ",IF(SEARCH("A",$I$48)>0,1,0)) ->  | BB17: =IF(ISERROR(IF(SEARCH("B",$I$48)>0,1,0))," ",IF(SEARCH("B",$I$48)>0,1,0)) ->  | BC17: =IF(ISERROR(IF(SEARCH("C",$I$48)>0,1,0))," ",IF(SEARCH("C",$I$48)>0,1,0)) ->  | BD17: =IF(ISERROR(IF(SEARCH("D",$I$48)>0,1,0))," ",IF(SEARCH("D",$I$48)>0,1,0)) ->  | BE17: =IF(ISERROR(IF(SEARCH("E",$I$48)>0,1,0))," ",IF(SEARCH("E",$I$48)>0,1,0)) ->  | BF17: =IF(ISERROR(IF(SEARCH("F",$I$48)>0,1,0))," ",IF(SEARCH("F",$I$48)>0,1,0)) ->  | BI17: =SUM(BI12:BI16) -> 0 | BJ17: 3 | BK17: 0 | BL17: 1 | BM17: 2 | BN17: 0
A18: C. Data Element Completeness: Missing data: ask to see the Outpatient Department (OPD) register. Count the number of clients in the quarter (month 1 to month 3) with missing information for each of the following columns in the unit malaria case register. | F18: D. Source Document Completeness: Review the following data sources and determine if they are available, up-to-date (values up to the current day/period) and standard (the form prepared and distributed by the program). (Y/N) | AO18: =D69 -> Live births | AP18: =J73 -> 0.9567412513 | AQ18: =J74 -> 0.9751589707 | AZ18: 3.1 | BA18: =IF(ISERROR(IF(SEARCH("A",$G$57)>0,1,0))," ",IF(SEARCH("A",$G$57)>0,1,0)) ->  | BB18: =IF(ISERROR(IF(SEARCH("B",$G$57)>0,1,0))," ",IF(SEARCH("B",$G$57)>0,1,0)) ->  | BC18: =IF(ISERROR(IF(SEARCH("C",$G$57)>0,1,0))," ",IF(SEARCH("C",$G$57)>0,1,0)) ->  | BD18: =IF(ISERROR(IF(SEARCH("D",$G$57)>0,1,0))," ",IF(SEARCH("D",$G$57)>0,1,0)) ->  | BE18: =IF(ISERROR(IF(SEARCH("E",$G$57)>0,1,0))," ",IF(SEARCH("E",$G$57)>0,1,0)) ->  | BF18: =IF(ISERROR(IF(SEARCH("F",$G$57)>0,1,0))," ",IF(SEARCH("F",$G$57)>0,1,0)) -> 
A19: =Indicators!R47&" Data elements" -> DE_HMIS Data elements | D19: Number of cases (rows) with missing data | % | F19: =Indicators!S47&" Source Documents:" -> DS_HMIS Source Documents: | H19: Available | I19: Up-to-date | J19: Standard form | K19: Comments | AZ19: 3.2 | BA19: =IF(ISERROR(IF(SEARCH("A",$H$57)>0,1,0))," ",IF(SEARCH("A",$H$57)>0,1,0)) ->  | BB19: =IF(ISERROR(IF(SEARCH("B",$H$57)>0,1,0))," ",IF(SEARCH("B",$H$57)>0,1,0)) ->  | BC19: =IF(ISERROR(IF(SEARCH("C",$H$57)>0,1,0))," ",IF(SEARCH("C",$H$57)>0,1,0)) ->  | BD19: =IF(ISERROR(IF(SEARCH("D",$H$57)>0,1,0))," ",IF(SEARCH("D",$H$57)>0,1,0)) ->  | BE19: =IF(ISERROR(IF(SEARCH("E",$H$57)>0,1,0))," ",IF(SEARCH("E",$H$57)>0,1,0)) ->  | BF19: =IF(ISERROR(IF(SEARCH("F",$H$57)>0,1,0))," ",IF(SEARCH("F",$H$57)>0,1,0)) -> 
A20: 1. | B20: =Indicators!R49 -> Unique ID | E20: =IF(D20="","-",IF(ISERROR(D20/$D$27),"-",D20/$D$27)) -> - | F20: =Indicators!S49 -> OPD register | AN20: Cross checks | AZ20: 3.3 | BA20: =IF(ISERROR(IF(SEARCH("A",$I$57)>0,1,0))," ",IF(SEARCH("A",$I$57)>0,1,0)) ->  | BB20: =IF(ISERROR(IF(SEARCH("B",$I$57)>0,1,0))," ",IF(SEARCH("B",$I$57)>0,1,0)) ->  | BC20: =IF(ISERROR(IF(SEARCH("C",$I$57)>0,1,0))," ",IF(SEARCH("C",$I$57)>0,1,0)) ->  | BD20: =IF(ISERROR(IF(SEARCH("D",$I$57)>0,1,0))," ",IF(SEARCH("D",$I$57)>0,1,0)) ->  | BE20: =IF(ISERROR(IF(SEARCH("E",$I$57)>0,1,0))," ",IF(SEARCH("E",$I$57)>0,1,0)) ->  | BF20: =IF(ISERROR(IF(SEARCH("F",$I$57)>0,1,0))," ",IF(SEARCH("F",$I$57)>0,1,0)) -> 
A21: 2. | B21: =Indicators!R51 -> Visit date | E21: - | F21: =Indicators!S51 -> OPD register | AO21: =A80 -> A — Malaria case register : Laboratory register (quality target = 90%) | AP21: =J84 -> - | AR21: =AN20&" 1 & 2" -> Cross checks 1 & 2 | AZ21: 4.1 | BA21: =IF(ISERROR(IF(SEARCH("A",$G$66)>0,1,0))," ",IF(SEARCH("A",$G$66)>0,1,0)) ->  | BB21: =IF(ISERROR(IF(SEARCH("B",$G$66)>0,1,0))," ",IF(SEARCH("B",$G$66)>0,1,0)) -> 1 | BC21: =IF(ISERROR(IF(SEARCH("C",$G$66)>0,1,0))," ",IF(SEARCH("C",$G$66)>0,1,0)) ->  | BD21: =IF(ISERROR(IF(SEARCH("D",$G$66)>0,1,0))," ",IF(SEARCH("D",$G$66)>0,1,0)) ->  | BE21: =IF(ISERROR(IF(SEARCH("E",$G$66)>0,1,0))," ",IF(SEARCH("E",$G$66)>0,1,0)) ->  | BF21: =IF(ISERROR(IF(SEARCH("F",$G$66)>0,1,0))," ",IF(SEARCH("F",$G$66)>0,1,0)) -> 
A22: 3. | B22: =Indicators!R53 -> Client name | E22: - | F22: =Indicators!S53 -> OPD register | AO22: =A85 -> B — Immunization register : Vaccine stock registry (quality target = 90%) | AP22: =J89 -> - | AZ22: 4.2 | BA22: =IF(ISERROR(IF(SEARCH("A",$H$66)>0,1,0))," ",IF(SEARCH("A",$H$66)>0,1,0)) ->  | BB22: =IF(ISERROR(IF(SEARCH("B",$H$66)>0,1,0))," ",IF(SEARCH("B",$H$66)>0,1,0)) ->  | BC22: =IF(ISERROR(IF(SEARCH("C",$H$66)>0,1,0))," ",IF(SEARCH("C",$H$66)>0,1,0)) ->  | BD22: =IF(ISERROR(IF(SEARCH("D",$H$66)>0,1,0))," ",IF(SEARCH("D",$H$66)>0,1,0)) -> 1 | BE22: =IF(ISERROR(IF(SEARCH("E",$H$66)>0,1,0))," ",IF(SEARCH("E",$H$66)>0,1,0)) ->  | BF22: =IF(ISERROR(IF(SEARCH("F",$H$66)>0,1,0))," ",IF(SEARCH("F",$H$66)>0,1,0)) -> 
A23: 4. | B23: =Indicators!R55 -> Age | E23: - | F23: =Indicators!S55 -> OPD register | AO23: =A90 -> C — ANC Register : Vaccine stock management log (quality target: >=90%, <=110%) | AP23: =J95 -> - | AR23: ="Cross check 3" -> Cross check 3 | AZ23: 4.3 | BA23: =IF(ISERROR(IF(SEARCH("A",$I$66)>0,1,0))," ",IF(SEARCH("A",$I$66)>0,1,0)) ->  | BB23: =IF(ISERROR(IF(SEARCH("B",$I$66)>0,1,0))," ",IF(SEARCH("B",$I$66)>0,1,0)) ->  | BC23: =IF(ISERROR(IF(SEARCH("C",$I$66)>0,1,0))," ",IF(SEARCH("C",$I$66)>0,1,0)) ->  | BD23: =IF(ISERROR(IF(SEARCH("D",$I$66)>0,1,0))," ",IF(SEARCH("D",$I$66)>0,1,0)) ->  | BE23: =IF(ISERROR(IF(SEARCH("E",$I$66)>0,1,0))," ",IF(SEARCH("E",$I$66)>0,1,0)) -> 1 | BF23: =IF(ISERROR(IF(SEARCH("F",$I$66)>0,1,0))," ",IF(SEARCH("F",$I$66)>0,1,0)) -> 
A24: 5. | B24: =Indicators!R57 -> Diagnosis (any type) | E24: - | F24: =Indicators!S57 -> OPD register | AZ24: 5.1 | BA24: =IF(ISERROR(IF(SEARCH("A",$G$75)>0,1,0))," ",IF(SEARCH("A",$G$75)>0,1,0)) ->  | BB24: =IF(ISERROR(IF(SEARCH("B",$G$75)>0,1,0))," ",IF(SEARCH("B",$G$75)>0,1,0)) -> 1 | BC24: =IF(ISERROR(IF(SEARCH("C",$G$75)>0,1,0))," ",IF(SEARCH("C",$G$75)>0,1,0)) ->  | BD24: =IF(ISERROR(IF(SEARCH("D",$G$75)>0,1,0))," ",IF(SEARCH("D",$G$75)>0,1,0)) ->  | BE24: =IF(ISERROR(IF(SEARCH("E",$G$75)>0,1,0))," ",IF(SEARCH("E",$G$75)>0,1,0)) ->  | BF24: =IF(ISERROR(IF(SEARCH("F",$G$75)>0,1,0))," ",IF(SEARCH("F",$G$75)>0,1,0)) -> 
A25: 6. | B25: =Indicators!R59 -> Treatment given | E25: - | F25: =Indicators!S59 -> OPD register | AN25: ="Consistency over time: "&H99&": "&H100 -> Consistency over time: Malaria: Number of confirmed malaria cases reported | AZ25: 5.2 | BA25: =IF(ISERROR(IF(SEARCH("A",$H$75)>0,1,0))," ",IF(SEARCH("A",$H$75)>0,1,0)) ->  | BB25: =IF(ISERROR(IF(SEARCH("B",$H$75)>0,1,0))," ",IF(SEARCH("B",$H$75)>0,1,0)) -> 1 | BC25: =IF(ISERROR(IF(SEARCH("C",$H$75)>0,1,0))," ",IF(SEARCH("C",$H$75)>0,1,0)) ->  | BD25: =IF(ISERROR(IF(SEARCH("D",$H$75)>0,1,0))," ",IF(SEARCH("D",$H$75)>0,1,0)) ->  | BE25: =IF(ISERROR(IF(SEARCH("E",$H$75)>0,1,0))," ",IF(SEARCH("E",$H$75)>0,1,0)) ->  | BF25: =IF(ISERROR(IF(SEARCH("F",$H$75)>0,1,0))," ",IF(SEARCH("F",$H$75)>0,1,0)) -> 
A26: 7. | B26: Number of entries missing data in at least 1 of the 6 columns listed above | E26: - | F26: =Indicators!S61 -> OPD register | AN26: =F106 -> - | AO26: - | AP26: - | AQ26: - | AZ26: 5.3 | BA26: =IF(ISERROR(IF(SEARCH("A",$I$75)>0,1,0))," ",IF(SEARCH("A",$I$75)>0,1,0)) ->  | BB26: =IF(ISERROR(IF(SEARCH("B",$I$75)>0,1,0))," ",IF(SEARCH("B",$I$75)>0,1,0)) ->  | BC26: =IF(ISERROR(IF(SEARCH("C",$I$75)>0,1,0))," ",IF(SEARCH("C",$I$75)>0,1,0)) ->  | BD26: =IF(ISERROR(IF(SEARCH("D",$I$75)>0,1,0))," ",IF(SEARCH("D",$I$75)>0,1,0)) ->  | BE26: =IF(ISERROR(IF(SEARCH("E",$I$75)>0,1,0))," ",IF(SEARCH("E",$I$75)>0,1,0)) -> 1 | BF26: =IF(ISERROR(IF(SEARCH("F",$I$75)>0,1,0))," ",IF(SEARCH("F",$I$75)>0,1,0)) -> 
A27: 8. | B27: Total number of entries for the period | F27: % Complete | H27: =IF(ISERROR(COUNTIF(H20:H26,"Yes")/COUNTA(H20:H26)),"-",COUNTIF(H20:H26,"Yes")/COUNTA(H20:H26)) -> - | I27: =IF(ISERROR(COUNTIF(I20:I26,"Yes")/COUNTA(I20:I26)),"-",COUNTIF(I20:I26,"Yes")/COUNTA(I20:I26)) -> - | J27: =IF(ISERROR(COUNTIF(J20:J26,"Yes")/COUNTA(J20:J26)),"-",COUNTIF(J20:J26,"Yes")/COUNTA(J20:J26)) -> - | AN27: 0 | AO27: 0 | AP27: 0 | AQ27: 0 | BA27: =SUM(BA12:BA26) -> 0 | BB27: 3 | BC27: 0 | BD27: 1 | BE27: 2 | BF27: 0
A28: II. Data Accuracy
A29: Recount value of indicators from the malaria case register and compare the value to the one reported by the facility for the selected months
B30: ="Indicators" -> Indicators | G30: Month 1 | H30: Month 2 | I30: Month 3 | J30: 3-month total
G31: =IF(ISERROR(EDATE($J$7,-3)),"-",EDATE($J$7,-3)) -> - | H31: =IF(ISERROR(EDATE($J$7,-3)),"-",EDATE($J$7,-2)) -> - | I31: =IF(ISERROR(EDATE($J$7,-3)),"-",EDATE($J$7,-1)) -> -
A32: 1. | B32: Select indicator type: | D32: =IF(Indicators!$R$13=0,"-",Indicators!$R$13) -> Maternal_Health
B33: Select indicator: | D33: =IF(Indicators!$S$13=0,"-",Indicators!$S$13) -> ANC 1st Visit | G33: ="quality target: >="&TEXT(100%-Indicators!$V$13,"0%")&", <="&TEXT(100%+Indicators!$V$13,"0%") -> quality target: >=90%, <=110%
B34: Source document re-count | J34: =IF(ISERROR(SUM(G34:I34)),"-",SUM(G34:I34)) -> 0
B35: HMIS monthly report value | J35: =IF(ISERROR(SUM(G35:I35)),"-",SUM(G35:I35)) -> 0
B36: DHIS2 monthly value | J36: =IF(ISERROR(SUM(G36:I36)),"-",SUM(G36:I36)) -> 0
B37: Monthly Report Verification factor(VF): | G37: =IF(ISERROR(G34/G35),"-",G34/G35) -> - | H37: =IF(ISERROR(H34/H35),"-",H34/H35) -> - | I37: =IF(ISERROR(I34/I35),"-",I34/I35) -> - | J37: =IF(ISERROR(AVERAGE(G37:I37)),"-",AVERAGE(G37:I37)) -> -
B38: DHIS 2 Verification factor(VF): | G38: =IF(ISERROR(G34/G36),"-",G34/G36) -> - | H38: =IF(ISERROR(H34/H36),"-",H34/H36) -> - | I38: =IF(ISERROR(I34/I36),"-",I34/I36) -> - | J38: =IF(ISERROR(AVERAGE(G38:I38)),"-",AVERAGE(G38:I38)) -> -
B39: Reasons for discrepancy (use code below - mark all that apply)
B40: Other reason (specify)
A41: 2. | B41: Select indicator type: | D41: =IF(Indicators!$R$16=0,"-",Indicators!$R$16) -> HMIS
B42: Select indicator: | D42: =IF(Indicators!$S$16=0,"-",Indicators!$S$16) -> Outpatient visits | G42: ="quality target: >="&TEXT(100%-Indicators!$V$16,"0%")&", <="&TEXT(100%+Indicators!$V$16,"0%") -> quality target: >=90%, <=110%
B43: Source document re-count | J43: =IF(ISERROR(SUM(G43:I43)),"-",SUM(G43:I43)) -> 0
B44: HMIS monthly report value | J44: =IF(ISERROR(SUM(G44:I44)),"-",SUM(G44:I44)) -> 0
B45: DHIS2 monthly value | J45: =IF(ISERROR(SUM(G45:I45)),"-",SUM(G45:I45)) -> 0
B46: Monthly Report Verification factor(VF): | G46: =IF(ISERROR(G43/G44),"-",G43/G44) -> - | H46: =IF(ISERROR(H43/H44),"-",H43/H44) -> - | I46: =IF(ISERROR(I43/I44),"-",I43/I44) -> - | J46: =IF(ISERROR(AVERAGE(G46:I46)),"-",AVERAGE(G46:I46)) -> -
B47: DHIS 2 Verification factor(VF): | G47: =IF(ISERROR(G43/G45),"-",G43/G45) -> - | H47: =IF(ISERROR(H43/H45),"-",H43/H45) -> - | I47: =IF(ISERROR(I43/I45),"-",I43/I45) -> - | J47: =IF(ISERROR(AVERAGE(G47:I47)),"-",AVERAGE(G47:I47)) -> -
B48: Reasons for discrepancy (use code below - mark all that apply)
B49: Other reason (specify)
A50: 3. | B50: Select indicator type: | D50: =IF(Indicators!$R$19=0,"-",Indicators!$R$19) -> Malaria
B51: Select indicator: | D51: =IF(Indicators!$S$19=0,"-",Indicators!$S$19) -> Number of confirmed malaria cases reported | G51: ="quality target: >="&TEXT(100%-Indicators!$V$19,"0%")&", <="&TEXT(100%+Indicators!$V$19,"0%") -> quality target: >=85%, <=115%
B52: Source document re-count | J52: =IF(ISERROR(SUM(G52:I52)),"-",SUM(G52:I52)) -> 0
B53: HMIS monthly report value | J53: =IF(ISERROR(SUM(G53:I53)),"-",SUM(G53:I53)) -> 0
B54: DHIS2 monthly value | J54: =IF(ISERROR(SUM(G54:I54)),"-",SUM(G54:I54)) -> 0
B55: Monthly Report Verification factor(VF): | G55: =IF(ISERROR(G52/G53),"-",G52/G53) -> - | H55: =IF(ISERROR(H52/H53),"-",H52/H53) -> - | I55: =IF(ISERROR(I52/I53),"-",I52/I53) -> - | J55: =IF(ISERROR(AVERAGE(G55:I55)),"-",AVERAGE(G55:I55)) -> -
B56: DHIS 2 Verification factor(VF): | G56: =IF(ISERROR(G52/G54),"-",G52/G54) -> - | H56: =IF(ISERROR(H52/H54),"-",H52/H54) -> - | I56: =IF(ISERROR(I52/I54),"-",I52/I54) -> - | J56: =IF(ISERROR(AVERAGE(G56:I56)),"-",AVERAGE(G56:I56)) -> -
B57: Reasons for discrepancy (use code below - mark all that apply)
B58: Other reason (specify)
A59: 4. | B59: Select indicator type: | D59: =IF(Indicators!$R$22=0,"-",Indicators!$R$22) -> Immunization
B60: Select indicator: | D60: =IF(Indicators!$S$22=0,"-",Indicators!$S$22) -> 3rd dose DPT-containing vaccine | G60: ="quality target: >="&TEXT(100%-Indicators!$V$22,"0%")&", <="&TEXT(100%+Indicators!$V$22,"0%") -> quality target: >=80%, <=120%
B61: Source document re-count | G61: 20 | H61: 22 | I61: 23 | J61: =IF(ISERROR(SUM(G61:I61)),"-",SUM(G61:I61)) -> 65
B62: HMIS monthly report value | G62: 25 | H62: 25 | I62: 24 | J62: =IF(ISERROR(SUM(G62:I62)),"-",SUM(G62:I62)) -> 74
B63: DHIS2 monthly value | G63: 20 | H63: 28 | I63: 22 | J63: =IF(ISERROR(SUM(G63:I63)),"-",SUM(G63:I63)) -> 70
B64: Monthly Report Verification factor(VF): | G64: =IF(ISERROR(G61/G62),"-",G61/G62) -> 0.8 | H64: =IF(ISERROR(H61/H62),"-",H61/H62) -> 0.88 | I64: =IF(ISERROR(I61/I62),"-",I61/I62) -> 0.9583333333 | J64: =IF(ISERROR(AVERAGE(G64:I64)),"-",AVERAGE(G64:I64)) -> 0.8794444444
B65: DHIS 2 Verification factor(VF): | G65: =IF(ISERROR(G61/G63),"-",G61/G63) -> 1 | H65: =IF(ISERROR(H61/H63),"-",H61/H63) -> 0.7857142857 | I65: =IF(ISERROR(I61/I63),"-",I61/I63) -> 1.045454545 | J65: =IF(ISERROR(AVERAGE(G65:I65)),"-",AVERAGE(G65:I65)) -> 0.9437229437
B66: Reasons for discrepancy (use code below - mark all that apply) | G66: B | H66: D | I66: E
B67: Other reason (specify)
A68: 5. | B68: Select indicator type: | D68: =IF(Indicators!$R$25=0,"-",Indicators!$R$25) -> HMIS
B69: Select indicator: | D69: =IF(Indicators!$S$25=0,"-",Indicators!$S$25) -> Live births | G69: ="quality target: >="&TEXT(100%-Indicators!$V$25,"0%")&", <="&TEXT(100%+Indicators!$V$25,"0%") -> quality target: >=75%, <=125%
B70: Source document re-count | G70: 70 | H70: 72 | I70: 73 | J70: =IF(ISERROR(SUM(G70:I70)),"-",SUM(G70:I70)) -> 215
B71: HMIS monthly report value | G71: 78 | H71: 73 | I71: 74 | J71: =IF(ISERROR(SUM(G71:I71)),"-",SUM(G71:I71)) -> 225
B72: DHIS2 monthly value | G72: 71 | H72: 79 | I72: 71 | J72: =IF(ISERROR(SUM(G72:I72)),"-",SUM(G72:I72)) -> 221
B73: Monthly Report Verification factor(VF): | G73: =IF(ISERROR(G70/G71),"-",G70/G71) -> 0.8974358974 | H73: =IF(ISERROR(H70/H71),"-",H70/H71) -> 0.9863013699 | I73: =IF(ISERROR(I70/I71),"-",I70/I71) -> 0.9864864865 | J73: =IF(ISERROR(AVERAGE(G73:I73)),"-",AVERAGE(G73:I73)) -> 0.9567412513
B74: DHIS 2 Verification factor(VF): | G74: =IF(ISERROR(G70/G72),"-",G70/G72) -> 0.985915493 | H74: =IF(ISERROR(H70/H72),"-",H70/H72) -> 0.9113924051 | I74: =IF(ISERROR(I70/I72),"-",I70/I72) -> 1.028169014 | J74: =IF(ISERROR(AVERAGE(G74:I74)),"-",AVERAGE(G74:I74)) -> 0.9751589707
B75: Reasons for discrepancy (use code below - mark all that apply) | G75: B | H75: B | I75: E
B76: Other reason (specify)
A77: Reasons for discrepancy:
A78: a) no discrepancy, b) arithmetic errors, c) transcription errors, d) some documents were missing when the report was prepared, e) some documents are now missing, f) other (specify)
A79: III. Cross Checks | K79: Comments
A80: ="A — "&Indicators!R31&" : "&Indicators!S31&" (quality target = "&TEXT(100%-Indicators!$V$31,"0%")&")" -> A — Malaria case register : Laboratory register (quality target = 90%)
A81: ="Randomly select 10 patients who have been treated in the period at the facility from the "&Indicators!R31&"." -> Randomly select 10 patients who have been treated in the period at the facility from the Malaria case register.
A82: ="1. Number of cases sampled from the "&Indicators!R31&"." -> 1. Number of cases sampled from the Malaria case register.
A83: ="2. How many of the patients selected had a corresponding entry with matching information for the patients in the "&Indicators!S31&"?" -> 2. How many of the patients selected had a corresponding entry with matching information for the patients in the Laboratory register?
A84: =Indicators!S31&" reliability rate:" -> Laboratory register reliability rate: | J84: =IF(ISERROR(J83/J82),"-",J83/J82) -> -
A85: ="B — "&Indicators!R34&" : "&Indicators!S34&" (quality target = "&TEXT(100%-Indicators!$V$34,"0%")&")" -> B — Immunization register : Vaccine stock registry (quality target = 90%)
A86: ="Randomly select 10 cases who have been treated in the period at the facility from the "&Indicators!R34&"." -> Randomly select 10 cases who have been treated in the period at the facility from the Immunization register.
A87: ="1. Number of cases sampled from the "&Indicators!R34&"." -> 1. Number of cases sampled from the Immunization register.
A88: ="2. How many of the patients selected had a corresponding entry with matching information for the patients in the "&Indicators!S34&"?" -> 2. How many of the patients selected had a corresponding entry with matching information for the patients in the Vaccine stock registry?
A89: =Indicators!S34&" reliability rate:" -> Vaccine stock registry reliability rate: | J89: =IF(ISERROR(J88/J87),"-",J88/J87) -> -
A90: ="C — "&Indicators!R37&" : "&Indicators!S37&" (quality target: >="&TEXT(100%-Indicators!$V$38,"0%")&", <="&TEXT(100%+Indicators!$V$38,"0%")&")" -> C — ANC Register : Vaccine stock management log (quality target: >=90%, <=110%)
A91: Number of units (e.g. doses of medication/vaccine, other commodities) in stock at the site at the beginning of the reporting period (initial in stock) | I91: a.
A92: Number of units received by the site during the reporting period | G92: b. | I92: b.
A93: Number of units in stock at the site at the end of the reporting period (closing in stock) | G93: c. | I93: c.
A94: Number of units used (e.g. given to patients) by the site during the reporting period | G94: d. | I94: d.
A95: Verification ratio: (d/[a+b-c]): | J95: =IF(ISERROR(J94/(J91+J92-J93)),"-",J94/(J91+J92-J93)) -> -
A96: Reasons for discrepancy (enter code at right):
A97: a) no discrepancy, b) arithmetic errors, c) transcription errors, d) drugs stock management forms not up to date, e) some documents are missing, f) stock out of treatment drugs,
A98: g) other (specify)
A99: ="IV. Consistency Checks - Consistency of data elements over time Quality target = >="&TEXT(100%-Indicators!$V$42,"0%")&", <="&TEXT(100%+Indicators!$V$42,"0%")&")" -> IV. Consistency Checks - Consistency of data elements over time Quality target = >=80%, <=120%) | F99: Program Area -> | H99: =Indicators!$B$42 -> Malaria
A100: IV.a: Annual consistency - select the indicator on the Indicators tab. | F100: Indicator -> | H100: =Indicators!$E$42 -> Number of confirmed malaria cases reported
A101: 1. What is the current month value
A102: 2. What was the value of the indicator for the current month one year ago
A103: Consistency ratio: Divide the value of the current month by the value from the same month last year. If the value is more than 20% different (i.e. <0.8 or >1.2) this could indicate a data quality problem. | J103: =IF(ISERROR(J101/J102),"-",J101/J102) -> -
A104: IV.b Month-to-month consistency:
A105: Enter values for the selected indicator for the current month, and for the three preceding months. Calculate consistency: Current month/average of Month1-Month3. If the value is more than 20% different (i.e. <0.8 or >1.2) this could indicate a data quality problem. | F105: Month 1 | G105: Month 2 | H105: Month 3 | I105: Last month | J105: Consistency
E106: month | F106: =IF(ISERROR(EDATE($J$7,-4)),"-",EDATE($J$7,-4)) -> - | G106: =IF(ISERROR(EDATE($J$7,-3)),"-",EDATE($J$7,-3)) -> - | H106: =IF(ISERROR(EDATE($J$7,-3)),"-",EDATE($J$7,-2)) -> - | I106: =IF(ISERROR(EDATE($J$7,-3)),"-",EDATE($J$7,-1)) -> - | J106: ratio
E107: value | J107: =IF(ISERROR(I107/AVERAGE(F107:H107)),"-",I107/AVERAGE(F107:H107)) -> -
A108: Reasons for discrepancy (enter code at right):
A109: a) no discrepancy, b) arithmetic errors, c) transcription errors, d) vaccine stock management forms not up to date, e) some documents are missing, f) vaccine / drugs stock out,
A110: g) other (specify)
A111: V. System Assessment - Respond Yes or No for the following questions. | J111: Y/N
A112: V.1 | B112: Is there a designated person to enter data and compile reports?
A113: V.2 | B113: Is there a designated person to review the quality of compiled data prior to submission to the next level?
A114: V.3 | B114: Does the health facility have written guidelines on data collection and reporting for HMIS?
A115: V.4 | B115: Does the health facility have a reserve stock of blank registers or reporting forms?
A116: V.5 | B116: Has this health facility experienced any stock out of registers or reporting forms (since last visit)?
A117: V.6 | B117: Is a standardized OPD register being used to record information on patients seeking treatment (not improvised forms)?
A118: V.7 | B118: Can a patient's diagnosis and treatment history be easily found in the facility records?
A119: V.8 | B119: Are data archives properly maintained with historical patient level (registers) and aggregate (monthly report) results?
A120: V.9 | B120: Does the facility maintain accurate demographic information for the catchment area (that is, a record current population and the number of births and deaths)?
A121: V.10 | B121: Does the facility have established targets to monitor progress towards goals and objectives for prevention and treatment?
A122: V.11 | B122: Does the facility have an up-to-date display (for example, a chart on the wall) of the number of cases diagnosed and treated by reporting period for the year?
A123: V.12 | B123: Is there a chart of disease incidence by month displayed at the facility?
A124: Data Quality Improvement Plan for the Health Facility
A125: Please list the primary gaps or weaknesses in the data management system at the facility. What are the threats , or potential threats, to data quality ? For each item cited, please include action points that the facility can implement to strengthen the data management at the facility. Please be realistic in your recommendations. Also include the responsible staff and the date by which the intervention should be completed.
B126: Identified Weaknesses | E126: Description of Action Point | H126: Responsible(s) | J126: Time Line | K126: Comments
A127: 1
A128: 2
A129: 3
A130: 4
A132: HMIS Health Facility Supervision Data Quality Dashboard

Sheet Health Facility 6 (hidden)
A1: National Health Management Information System (HMIS) | H1: WHO - 2020 | M1: Go back to facility information tab
A2: Routine Supervision Data Quality Checklist | M2: Go to Dashboard
A3: Routine Supervision Data Quality Checklist | M3: Go to Dashboard
A4: Routine Supervision Data Quality Checklist | M4: Go to Dashboard
A5: Routine Supervision Data Quality Checklist | M5: Go to Dashboard
A6: Routine Supervision Data Quality Checklist | M6: Go to Dashboard
A7: Health facility name: | D7: =IF('Facility Information'!D19=0,"-",'Facility Information'!D19) -> - | G7: Date of Supervision: | J7: =IF('Facility Information'!J19=0,"-",'Facility Information'!J19) -> - | M7: Go to indicators
A8: Facility type: | D8: =IF('Facility Information'!H19=0,"-",'Facility Information'!H19) -> - | G8: Reporting period(s) verified (months): | J8: =IF(ISERROR(TEXT(EDATE(J7,-3),"mmm-yy")&", "&TEXT(EDATE(J7,-2),"mmm-yy")&", "&TEXT(EDATE(J7,-1),"mmm-yy")),"-",TEXT(EDATE(J7,-3),"mmm-yy")&", "&TEXT(EDATE(J7,-2),"mmm-yy")&", "&TEXT(EDATE(J7,-1),"mmm-yy")) -> -
A9: Town/Village: | D9: =IF('Facility Information'!E19=0,"-",'Facility Information'!E19) -> - | G9: Supervison team lead: | J9: =IF('Facility Information'!K19=0,"-",'Facility Information'!K19) -> - | AO9: Reporting performance & Readiness to provide quality data | AZ9: ="Reasons for discrepancy, by indicator" -> Reasons for discrepancy, by indicator
A10: Region: | D10: =IF('Facility Information'!G19=0,"-",'Facility Information'!G19) -> - | G10: Contact phone: | J10: =IF('Facility Information'!L19=0,"-",'Facility Information'!L19) -> - | AN10: Results | AR10: Source documents | AZ10: by comparison | BH10: by indicator
A11: District: | D11: =IF('Facility Information'!F19=0,"-",'Facility Information'!F19) -> - | G11: Contact email: | J11: =IF('Facility Information'!M19=0,"-",'Facility Information'!M19) -> - | AO11: Completeness of Monthly report | AP11: % Cases with missing data | AQ11: Timeliness of reporting | AR11: =AR10&" available" -> Source documents available | AS11: =AR10&" Up-to-date" -> Source documents Up-to-date | AT11: =AR10&" standard issue" -> Source documents standard issue | AU11: System Assessment (% readiness) | BA11: A | BB11: B | BC11: C | BD11: D | BE11: E | BF11: F | BI11: No discrepancy | BJ11: Arithematic errors | BK11: Transcription errors | BL11: Some documents were missing when the report was prepared | BM11: Some documents are now missing | BN11: Other
A12: I. Completeness & Timeliness | K12: Please provide a comment on the results | AO12: =J15 -> - | AP12: =E26 -> - | AQ12: =J17 -> 0 | AR12: =H27 -> - | AS12: =I27 -> - | AT12: =J27 -> - | AU12: =COUNTIF(J112:J123,"Yes")/COUNTA(J112:J123) ->  | AZ12: 1.1 | BA12: =IF(ISERROR(IF(SEARCH("A",$G$39)>0,1,0))," ",IF(SEARCH("A",$G$39)>0,1,0)) ->  | BB12: =IF(ISERROR(IF(SEARCH("B",$G$39)>0,1,0))," ",IF(SEARCH("B",$G$39)>0,1,0)) ->  | BC12: =IF(ISERROR(IF(SEARCH("C",$G$39)>0,1,0))," ",IF(SEARCH("C",$G$39)>0,1,0)) ->  | BD12: =IF(ISERROR(IF(SEARCH("D",$G$39)>0,1,0))," ",IF(SEARCH("D",$G$39)>0,1,0)) ->  | BE12: =IF(ISERROR(IF(SEARCH("E",$G$39)>0,1,0))," ",IF(SEARCH("E",$G$39)>0,1,0)) ->  | BF12: =IF(ISERROR(IF(SEARCH("F",$G$39)>0,1,0))," ",IF(SEARCH("F",$G$39)>0,1,0)) ->  | BH12: =AO14 -> ANC 1st Visit | BI12: =SUM(BA12:BA14) -> 0 | BJ12: 0 | BK12: 0 | BL12: 0 | BM12: 0 | BN12: 0
A13: A. Completeness of HMIS Monthly Report | H13: Expected Cells | I13: Completed Cells | J13: Percent Complete | AN13: Verification factors | AP13: VF Monthly report | AQ13: VF HMIS | AZ13: 1.2 | BA13: =IF(ISERROR(IF(SEARCH("A",$H$39)>0,1,0))," ",IF(SEARCH("A",$H$39)>0,1,0)) ->  | BB13: =IF(ISERROR(IF(SEARCH("B",$H$39)>0,1,0))," ",IF(SEARCH("B",$H$39)>0,1,0)) ->  | BC13: =IF(ISERROR(IF(SEARCH("C",$H$39)>0,1,0))," ",IF(SEARCH("C",$H$39)>0,1,0)) ->  | BD13: =IF(ISERROR(IF(SEARCH("D",$H$39)>0,1,0))," ",IF(SEARCH("D",$H$39)>0,1,0)) ->  | BE13: =IF(ISERROR(IF(SEARCH("E",$H$39)>0,1,0))," ",IF(SEARCH("E",$H$39)>0,1,0)) ->  | BF13: =IF(ISERROR(IF(SEARCH("F",$H$39)>0,1,0))," ",IF(SEARCH("F",$H$39)>0,1,0)) ->  | BH13: =AO15 -> Outpatient visits | BI13: =SUM(BA15:BA17) -> 0 | BJ13: =SUM(BB15:BB17) -> 0 | BK13: 0 | BL13: 0 | BM13: 0 | BN13: 0
A14: Select the most recent completed and submitted monthly HMIS facility report. Calculate the number of cells expected to be complete on the monthly report (exclude cells for services not offered by the facility). Count the number of cells that are complete (blank, not zero) and calculate the percentage completeness for the monthly report. | AN14: indicator | AO14: =D33 -> ANC 1st Visit | AP14: =J37 -> - | AQ14: =J38 -> - | AZ14: 1.3 | BA14: =IF(ISERROR(IF(SEARCH("A",$I$39)>0,1,0))," ",IF(SEARCH("A",$I$39)>0,1,0)) ->  | BB14: =IF(ISERROR(IF(SEARCH("B",$I$39)>0,1,0))," ",IF(SEARCH("B",$I$39)>0,1,0)) ->  | BC14: =IF(ISERROR(IF(SEARCH("C",$I$39)>0,1,0))," ",IF(SEARCH("C",$I$39)>0,1,0)) ->  | BD14: =IF(ISERROR(IF(SEARCH("D",$I$39)>0,1,0))," ",IF(SEARCH("D",$I$39)>0,1,0)) ->  | BE14: =IF(ISERROR(IF(SEARCH("E",$I$39)>0,1,0))," ",IF(SEARCH("E",$I$39)>0,1,0)) ->  | BF14: =IF(ISERROR(IF(SEARCH("F",$I$39)>0,1,0))," ",IF(SEARCH("F",$I$39)>0,1,0)) ->  | BH14: =AO16 -> Number of confirmed malaria cases reported | BI14: =SUM(BA18:BA20) -> 0 | BJ14: 0 | BK14: 0 | BL14: 0 | BM14: 0 | BN14: 0
J15: =IF(ISERROR(I15/H15),"-",I15/H15) -> - | AO15: =D42 -> Outpatient visits | AP15: =J46 -> - | AQ15: =J47 -> - | AZ15: 2.1 | BA15: =IF(ISERROR(IF(SEARCH("A",$G$48)>0,1,0))," ",IF(SEARCH("A",$G$48)>0,1,0)) ->  | BB15: =IF(ISERROR(IF(SEARCH("B",$G$48)>0,1,0))," ",IF(SEARCH("B",$G$48)>0,1,0)) ->  | BC15: =IF(ISERROR(IF(SEARCH("C",$G$48)>0,1,0))," ",IF(SEARCH("C",$G$48)>0,1,0)) ->  | BD15: =IF(ISERROR(IF(SEARCH("D",$G$48)>0,1,0))," ",IF(SEARCH("D",$G$48)>0,1,0)) ->  | BE15: =IF(ISERROR(IF(SEARCH("E",$G$48)>0,1,0))," ",IF(SEARCH("E",$G$48)>0,1,0)) ->  | BF15: =IF(ISERROR(IF(SEARCH("F",$G$48)>0,1,0))," ",IF(SEARCH("F",$G$48)>0,1,0)) ->  | BH15: =AO17 -> 3rd dose DPT-containing vaccine | BI15: =SUM(BA21:BA23) -> 0 | BJ15: 0 | BK15: 0 | BL15: 0 | BM15: 0 | BN15: 0
A16: B. Timeliness of Submission of Monthly Report | F16: Monthly report: | G16: =IF(ISERROR(EDATE($J$7,-3)),"-",EDATE($J$7,-3)) -> - | H16: =IF(ISERROR(EDATE($J$7,-3)),"-",EDATE($J$7,-2)) -> - | I16: =IF(ISERROR(EDATE($J$7,-3)),"-",EDATE($J$7,-1)) -> - | AO16: =D51 -> Number of confirmed malaria cases reported | AP16: =J55 -> - | AQ16: =J56 -> - | AZ16: 2.2 | BA16: =IF(ISERROR(IF(SEARCH("A",$H$48)>0,1,0))," ",IF(SEARCH("A",$H$48)>0,1,0)) ->  | BB16: =IF(ISERROR(IF(SEARCH("B",$H$48)>0,1,0))," ",IF(SEARCH("B",$H$48)>0,1,0)) ->  | BC16: =IF(ISERROR(IF(SEARCH("C",$H$48)>0,1,0))," ",IF(SEARCH("C",$H$48)>0,1,0)) ->  | BD16: =IF(ISERROR(IF(SEARCH("D",$H$48)>0,1,0))," ",IF(SEARCH("D",$H$48)>0,1,0)) ->  | BE16: =IF(ISERROR(IF(SEARCH("E",$H$48)>0,1,0))," ",IF(SEARCH("E",$H$48)>0,1,0)) ->  | BF16: =IF(ISERROR(IF(SEARCH("F",$H$48)>0,1,0))," ",IF(SEARCH("F",$H$48)>0,1,0)) ->  | BH16: =AO18 -> Live births | BI16: =SUM(BA24:BA26) -> 0 | BJ16: 0 | BK16: 0 | BL16: 0 | BM16: 0 | BN16: 0
A17: Review the monthly reports from the past three months at the facility and in the HMIS database. Determine if the reports were submitted by the deadline of reporting | F17: Submitted by the deadline? (Y/N) | J17: =COUNTIF(G17:I17,"Yes")/3 -> 0 | AO17: =D60 -> 3rd dose DPT-containing vaccine | AP17: =J64 -> - | AQ17: =J65 -> - | AZ17: 2.3 | BA17: =IF(ISERROR(IF(SEARCH("A",$I$48)>0,1,0))," ",IF(SEARCH("A",$I$48)>0,1,0)) ->  | BB17: =IF(ISERROR(IF(SEARCH("B",$I$48)>0,1,0))," ",IF(SEARCH("B",$I$48)>0,1,0)) ->  | BC17: =IF(ISERROR(IF(SEARCH("C",$I$48)>0,1,0))," ",IF(SEARCH("C",$I$48)>0,1,0)) ->  | BD17: =IF(ISERROR(IF(SEARCH("D",$I$48)>0,1,0))," ",IF(SEARCH("D",$I$48)>0,1,0)) ->  | BE17: =IF(ISERROR(IF(SEARCH("E",$I$48)>0,1,0))," ",IF(SEARCH("E",$I$48)>0,1,0)) ->  | BF17: =IF(ISERROR(IF(SEARCH("F",$I$48)>0,1,0))," ",IF(SEARCH("F",$I$48)>0,1,0)) ->  | BI17: =SUM(BI12:BI16) -> 0 | BJ17: 0 | BK17: 0 | BL17: 0 | BM17: 0 | BN17: 0
A18: C. Data Element Completeness: Missing data: ask to see the Outpatient Department (OPD) register. Count the number of clients in the quarter (month 1 to month 3) with missing information for each of the following columns in the unit malaria case register. | F18: D. Source Document Completeness: Review the following data sources and determine if they are available, up-to-date (values up to the current day/period) and standard (the form prepared and distributed by the program). (Y/N) | AO18: =D69 -> Live births | AP18: =J73 -> - | AQ18: =J74 -> - | AZ18: 3.1 | BA18: =IF(ISERROR(IF(SEARCH("A",$G$57)>0,1,0))," ",IF(SEARCH("A",$G$57)>0,1,0)) ->  | BB18: =IF(ISERROR(IF(SEARCH("B",$G$57)>0,1,0))," ",IF(SEARCH("B",$G$57)>0,1,0)) ->  | BC18: =IF(ISERROR(IF(SEARCH("C",$G$57)>0,1,0))," ",IF(SEARCH("C",$G$57)>0,1,0)) ->  | BD18: =IF(ISERROR(IF(SEARCH("D",$G$57)>0,1,0))," ",IF(SEARCH("D",$G$57)>0,1,0)) ->  | BE18: =IF(ISERROR(IF(SEARCH("E",$G$57)>0,1,0))," ",IF(SEARCH("E",$G$57)>0,1,0)) ->  | BF18: =IF(ISERROR(IF(SEARCH("F",$G$57)>0,1,0))," ",IF(SEARCH("F",$G$57)>0,1,0)) -> 
A19: =Indicators!R47&" Data elements" -> DE_HMIS Data elements | D19: Number of cases (rows) with missing data | % | F19: =Indicators!S47&" Source Documents:" -> DS_HMIS Source Documents: | H19: Available | I19: Up-to-date | J19: Standard form | K19: Comments | AZ19: 3.2 | BA19: =IF(ISERROR(IF(SEARCH("A",$H$57)>0,1,0))," ",IF(SEARCH("A",$H$57)>0,1,0)) ->  | BB19: =IF(ISERROR(IF(SEARCH("B",$H$57)>0,1,0))," ",IF(SEARCH("B",$H$57)>0,1,0)) ->  | BC19: =IF(ISERROR(IF(SEARCH("C",$H$57)>0,1,0))," ",IF(SEARCH("C",$H$57)>0,1,0)) ->  | BD19: =IF(ISERROR(IF(SEARCH("D",$H$57)>0,1,0))," ",IF(SEARCH("D",$H$57)>0,1,0)) ->  | BE19: =IF(ISERROR(IF(SEARCH("E",$H$57)>0,1,0))," ",IF(SEARCH("E",$H$57)>0,1,0)) ->  | BF19: =IF(ISERROR(IF(SEARCH("F",$H$57)>0,1,0))," ",IF(SEARCH("F",$H$57)>0,1,0)) -> 
A20: 1. | B20: =Indicators!R49 -> Unique ID | E20: =IF(D20="","-",IF(ISERROR(D20/$D$27),"-",D20/$D$27)) -> - | F20: =Indicators!S49 -> OPD register | AN20: Cross checks | AZ20: 3.3 | BA20: =IF(ISERROR(IF(SEARCH("A",$I$57)>0,1,0))," ",IF(SEARCH("A",$I$57)>0,1,0)) ->  | BB20: =IF(ISERROR(IF(SEARCH("B",$I$57)>0,1,0))," ",IF(SEARCH("B",$I$57)>0,1,0)) ->  | BC20: =IF(ISERROR(IF(SEARCH("C",$I$57)>0,1,0))," ",IF(SEARCH("C",$I$57)>0,1,0)) ->  | BD20: =IF(ISERROR(IF(SEARCH("D",$I$57)>0,1,0))," ",IF(SEARCH("D",$I$57)>0,1,0)) ->  | BE20: =IF(ISERROR(IF(SEARCH("E",$I$57)>0,1,0))," ",IF(SEARCH("E",$I$57)>0,1,0)) ->  | BF20: =IF(ISERROR(IF(SEARCH("F",$I$57)>0,1,0))," ",IF(SEARCH("F",$I$57)>0,1,0)) -> 
A21: 2. | B21: =Indicators!R51 -> Visit date | E21: - | F21: =Indicators!S51 -> OPD register | AO21: =A80 -> A — Malaria case register : Laboratory register (quality target = 90%) | AP21: =J84 -> - | AR21: =AN20&" 1 & 2" -> Cross checks 1 & 2 | AZ21: 4.1 | BA21: =IF(ISERROR(IF(SEARCH("A",$G$66)>0,1,0))," ",IF(SEARCH("A",$G$66)>0,1,0)) ->  | BB21: =IF(ISERROR(IF(SEARCH("B",$G$66)>0,1,0))," ",IF(SEARCH("B",$G$66)>0,1,0)) ->  | BC21: =IF(ISERROR(IF(SEARCH("C",$G$66)>0,1,0))," ",IF(SEARCH("C",$G$66)>0,1,0)) ->  | BD21: =IF(ISERROR(IF(SEARCH("D",$G$66)>0,1,0))," ",IF(SEARCH("D",$G$66)>0,1,0)) ->  | BE21: =IF(ISERROR(IF(SEARCH("E",$G$66)>0,1,0))," ",IF(SEARCH("E",$G$66)>0,1,0)) ->  | BF21: =IF(ISERROR(IF(SEARCH("F",$G$66)>0,1,0))," ",IF(SEARCH("F",$G$66)>0,1,0)) -> 
A22: 3. | B22: =Indicators!R53 -> Client name | E22: - | F22: =Indicators!S53 -> OPD register | AO22: =A85 -> B — Immunization register : Vaccine stock registry (quality target = 90%) | AP22: =J89 -> - | AZ22: 4.2 | BA22: =IF(ISERROR(IF(SEARCH("A",$H$66)>0,1,0))," ",IF(SEARCH("A",$H$66)>0,1,0)) ->  | BB22: =IF(ISERROR(IF(SEARCH("B",$H$66)>0,1,0))," ",IF(SEARCH("B",$H$66)>0,1,0)) ->  | BC22: =IF(ISERROR(IF(SEARCH("C",$H$66)>0,1,0))," ",IF(SEARCH("C",$H$66)>0,1,0)) ->  | BD22: =IF(ISERROR(IF(SEARCH("D",$H$66)>0,1,0))," ",IF(SEARCH("D",$H$66)>0,1,0)) ->  | BE22: =IF(ISERROR(IF(SEARCH("E",$H$66)>0,1,0))," ",IF(SEARCH("E",$H$66)>0,1,0)) ->  | BF22: =IF(ISERROR(IF(SEARCH("F",$H$66)>0,1,0))," ",IF(SEARCH("F",$H$66)>0,1,0)) -> 
A23: 4. | B23: =Indicators!R55 -> Age | E23: - | F23: =Indicators!S55 -> OPD register | AO23: =A90 -> C — ANC Register : Vaccine stock management log (quality target: >=90%, <=110%) | AP23: =J95 -> - | AR23: ="Cross check 3" -> Cross check 3 | AZ23: 4.3 | BA23: =IF(ISERROR(IF(SEARCH("A",$I$66)>0,1,0))," ",IF(SEARCH("A",$I$66)>0,1,0)) ->  | BB23: =IF(ISERROR(IF(SEARCH("B",$I$66)>0,1,0))," ",IF(SEARCH("B",$I$66)>0,1,0)) ->  | BC23: =IF(ISERROR(IF(SEARCH("C",$I$66)>0,1,0))," ",IF(SEARCH("C",$I$66)>0,1,0)) ->  | BD23: =IF(ISERROR(IF(SEARCH("D",$I$66)>0,1,0))," ",IF(SEARCH("D",$I$66)>0,1,0)) ->  | BE23: =IF(ISERROR(IF(SEARCH("E",$I$66)>0,1,0))," ",IF(SEARCH("E",$I$66)>0,1,0)) ->  | BF23: =IF(ISERROR(IF(SEARCH("F",$I$66)>0,1,0))," ",IF(SEARCH("F",$I$66)>0,1,0)) -> 
A24: 5. | B24: =Indicators!R57 -> Diagnosis (any type) | E24: - | F24: =Indicators!S57 -> OPD register | AZ24: 5.1 | BA24: =IF(ISERROR(IF(SEARCH("A",$G$75)>0,1,0))," ",IF(SEARCH("A",$G$75)>0,1,0)) ->  | BB24: =IF(ISERROR(IF(SEARCH("B",$G$75)>0,1,0))," ",IF(SEARCH("B",$G$75)>0,1,0)) ->  | BC24: =IF(ISERROR(IF(SEARCH("C",$G$75)>0,1,0))," ",IF(SEARCH("C",$G$75)>0,1,0)) ->  | BD24: =IF(ISERROR(IF(SEARCH("D",$G$75)>0,1,0))," ",IF(SEARCH("D",$G$75)>0,1,0)) ->  | BE24: =IF(ISERROR(IF(SEARCH("E",$G$75)>0,1,0))," ",IF(SEARCH("E",$G$75)>0,1,0)) ->  | BF24: =IF(ISERROR(IF(SEARCH("F",$G$75)>0,1,0))," ",IF(SEARCH("F",$G$75)>0,1,0)) -> 
A25: 6. | B25: =Indicators!R59 -> Treatment given | E25: - | F25: =Indicators!S59 -> OPD register | AN25: ="Consistency over time: "&H99&": "&H100 -> Consistency over time: Malaria: Number of confirmed malaria cases reported | AZ25: 5.2 | BA25: =IF(ISERROR(IF(SEARCH("A",$H$75)>0,1,0))," ",IF(SEARCH("A",$H$75)>0,1,0)) ->  | BB25: =IF(ISERROR(IF(SEARCH("B",$H$75)>0,1,0))," ",IF(SEARCH("B",$H$75)>0,1,0)) ->  | BC25: =IF(ISERROR(IF(SEARCH("C",$H$75)>0,1,0))," ",IF(SEARCH("C",$H$75)>0,1,0)) ->  | BD25: =IF(ISERROR(IF(SEARCH("D",$H$75)>0,1,0))," ",IF(SEARCH("D",$H$75)>0,1,0)) ->  | BE25: =IF(ISERROR(IF(SEARCH("E",$H$75)>0,1,0))," ",IF(SEARCH("E",$H$75)>0,1,0)) ->  | BF25: =IF(ISERROR(IF(SEARCH("F",$H$75)>0,1,0))," ",IF(SEARCH("F",$H$75)>0,1,0)) -> 
A26: 7. | B26: Number of entries missing data in at least 1 of the 6 columns listed above | E26: - | F26: =Indicators!S61 -> OPD register | AN26: =F106 -> - | AO26: - | AP26: - | AQ26: - | AZ26: 5.3 | BA26: =IF(ISERROR(IF(SEARCH("A",$I$75)>0,1,0))," ",IF(SEARCH("A",$I$75)>0,1,0)) ->  | BB26: =IF(ISERROR(IF(SEARCH("B",$I$75)>0,1,0))," ",IF(SEARCH("B",$I$75)>0,1,0)) ->  | BC26: =IF(ISERROR(IF(SEARCH("C",$I$75)>0,1,0))," ",IF(SEARCH("C",$I$75)>0,1,0)) ->  | BD26: =IF(ISERROR(IF(SEARCH("D",$I$75)>0,1,0))," ",IF(SEARCH("D",$I$75)>0,1,0)) ->  | BE26: =IF(ISERROR(IF(SEARCH("E",$I$75)>0,1,0))," ",IF(SEARCH("E",$I$75)>0,1,0)) ->  | BF26: =IF(ISERROR(IF(SEARCH("F",$I$75)>0,1,0))," ",IF(SEARCH("F",$I$75)>0,1,0)) -> 
A27: 8. | B27: Total number of entries for the period | F27: % Complete | H27: =IF(ISERROR(COUNTIF(H20:H26,"Yes")/COUNTA(H20:H26)),"-",COUNTIF(H20:H26,"Yes")/COUNTA(H20:H26)) -> - | I27: =IF(ISERROR(COUNTIF(I20:I26,"Yes")/COUNTA(I20:I26)),"-",COUNTIF(I20:I26,"Yes")/COUNTA(I20:I26)) -> - | J27: =IF(ISERROR(COUNTIF(J20:J26,"Yes")/COUNTA(J20:J26)),"-",COUNTIF(J20:J26,"Yes")/COUNTA(J20:J26)) -> - | AN27: 0 | AO27: 0 | AP27: 0 | AQ27: 0 | BA27: =SUM(BA12:BA26) -> 0 | BB27: 0 | BC27: 0 | BD27: 0 | BE27: 0 | BF27: 0
A28: II. Data Accuracy
A29: Recount value of indicators from the malaria case register and compare the value to the one reported by the facility for the selected months
B30: ="Indicators" -> Indicators | G30: Month 1 | H30: Month 2 | I30: Month 3 | J30: 3-month total
G31: =IF(ISERROR(EDATE($J$7,-3)),"-",EDATE($J$7,-3)) -> - | H31: =IF(ISERROR(EDATE($J$7,-3)),"-",EDATE($J$7,-2)) -> - | I31: =IF(ISERROR(EDATE($J$7,-3)),"-",EDATE($J$7,-1)) -> -
A32: 1. | B32: Select indicator type: | D32: =IF(Indicators!$R$13=0,"-",Indicators!$R$13) -> Maternal_Health
B33: Select indicator: | D33: =IF(Indicators!$S$13=0,"-",Indicators!$S$13) -> ANC 1st Visit | G33: ="quality target: >="&TEXT(100%-Indicators!$V$13,"0%")&", <="&TEXT(100%+Indicators!$V$13,"0%") -> quality target: >=90%, <=110%
B34: Source document re-count | J34: =IF(ISERROR(SUM(G34:I34)),"-",SUM(G34:I34)) -> 0
B35: HMIS monthly report value | J35: =IF(ISERROR(SUM(G35:I35)),"-",SUM(G35:I35)) -> 0
B36: DHIS2 monthly value | J36: =IF(ISERROR(SUM(G36:I36)),"-",SUM(G36:I36)) -> 0
B37: Monthly Report Verification factor(VF): | G37: =IF(ISERROR(G34/G35),"-",G34/G35) -> - | H37: =IF(ISERROR(H34/H35),"-",H34/H35) -> - | I37: =IF(ISERROR(I34/I35),"-",I34/I35) -> - | J37: =IF(ISERROR(AVERAGE(G37:I37)),"-",AVERAGE(G37:I37)) -> -
B38: DHIS 2 Verification factor(VF): | G38: =IF(ISERROR(G34/G36),"-",G34/G36) -> - | H38: =IF(ISERROR(H34/H36),"-",H34/H36) -> - | I38: =IF(ISERROR(I34/I36),"-",I34/I36) -> - | J38: =IF(ISERROR(AVERAGE(G38:I38)),"-",AVERAGE(G38:I38)) -> -
B39: Reasons for discrepancy (use code below - mark all that apply)
B40: Other reason (specify)
A41: 2. | B41: Select indicator type: | D41: =IF(Indicators!$R$16=0,"-",Indicators!$R$16) -> HMIS
B42: Select indicator: | D42: =IF(Indicators!$S$16=0,"-",Indicators!$S$16) -> Outpatient visits | G42: ="quality target: >="&TEXT(100%-Indicators!$V$16,"0%")&", <="&TEXT(100%+Indicators!$V$16,"0%") -> quality target: >=90%, <=110%
B43: Source document re-count | J43: =IF(ISERROR(SUM(G43:I43)),"-",SUM(G43:I43)) -> 0
B44: HMIS monthly report value | J44: =IF(ISERROR(SUM(G44:I44)),"-",SUM(G44:I44)) -> 0
B45: DHIS2 monthly value | J45: =IF(ISERROR(SUM(G45:I45)),"-",SUM(G45:I45)) -> 0
B46: Monthly Report Verification factor(VF): | G46: =IF(ISERROR(G43/G44),"-",G43/G44) -> - | H46: =IF(ISERROR(H43/H44),"-",H43/H44) -> - | I46: =IF(ISERROR(I43/I44),"-",I43/I44) -> - | J46: =IF(ISERROR(AVERAGE(G46:I46)),"-",AVERAGE(G46:I46)) -> -
B47: DHIS 2 Verification factor(VF): | G47: =IF(ISERROR(G43/G45),"-",G43/G45) -> - | H47: =IF(ISERROR(H43/H45),"-",H43/H45) -> - | I47: =IF(ISERROR(I43/I45),"-",I43/I45) -> - | J47: =IF(ISERROR(AVERAGE(G47:I47)),"-",AVERAGE(G47:I47)) -> -
B48: Reasons for discrepancy (use code below - mark all that apply)
B49: Other reason (specify)
A50: 3. | B50: Select indicator type: | D50: =IF(Indicators!$R$19=0,"-",Indicators!$R$19) -> Malaria
B51: Select indicator: | D51: =IF(Indicators!$S$19=0,"-",Indicators!$S$19) -> Number of confirmed malaria cases reported | G51: ="quality target: >="&TEXT(100%-Indicators!$V$19,"0%")&", <="&TEXT(100%+Indicators!$V$19,"0%") -> quality target: >=85%, <=115%
B52: Source document re-count | J52: =IF(ISERROR(SUM(G52:I52)),"-",SUM(G52:I52)) -> 0
B53: HMIS monthly report value | J53: =IF(ISERROR(SUM(G53:I53)),"-",SUM(G53:I53)) -> 0
B54: DHIS2 monthly value | J54: =IF(ISERROR(SUM(G54:I54)),"-",SUM(G54:I54)) -> 0
B55: Monthly Report Verification factor(VF): | G55: =IF(ISERROR(G52/G53),"-",G52/G53) -> - | H55: =IF(ISERROR(H52/H53),"-",H52/H53) -> - | I55: =IF(ISERROR(I52/I53),"-",I52/I53) -> - | J55: =IF(ISERROR(AVERAGE(G55:I55)),"-",AVERAGE(G55:I55)) -> -
B56: DHIS 2 Verification factor(VF): | G56: =IF(ISERROR(G52/G54),"-",G52/G54) -> - | H56: =IF(ISERROR(H52/H54),"-",H52/H54) -> - | I56: =IF(ISERROR(I52/I54),"-",I52/I54) -> - | J56: =IF(ISERROR(AVERAGE(G56:I56)),"-",AVERAGE(G56:I56)) -> -
B57: Reasons for discrepancy (use code below - mark all that apply)
B58: Other reason (specify)
A59: 4. | B59: Select indicator type: | D59: =IF(Indicators!$R$22=0,"-",Indicators!$R$22) -> Immunization
B60: Select indicator: | D60: =IF(Indicators!$S$22=0,"-",Indicators!$S$22) -> 3rd dose DPT-containing vaccine | G60: ="quality target: >="&TEXT(100%-Indicators!$V$22,"0%")&", <="&TEXT(100%+Indicators!$V$22,"0%") -> quality target: >=80%, <=120%
B61: Source document re-count | J61: =IF(ISERROR(SUM(G61:I61)),"-",SUM(G61:I61)) -> 0
B62: HMIS monthly report value | J62: =IF(ISERROR(SUM(G62:I62)),"-",SUM(G62:I62)) -> 0
B63: DHIS2 monthly value | J63: =IF(ISERROR(SUM(G63:I63)),"-",SUM(G63:I63)) -> 0
B64: Monthly Report Verification factor(VF): | G64: =IF(ISERROR(G61/G62),"-",G61/G62) -> - | H64: =IF(ISERROR(H61/H62),"-",H61/H62) -> - | I64: =IF(ISERROR(I61/I62),"-",I61/I62) -> - | J64: =IF(ISERROR(AVERAGE(G64:I64)),"-",AVERAGE(G64:I64)) -> -
B65: DHIS 2 Verification factor(VF): | G65: =IF(ISERROR(G61/G63),"-",G61/G63) -> - | H65: =IF(ISERROR(H61/H63),"-",H61/H63) -> - | I65: =IF(ISERROR(I61/I63),"-",I61/I63) -> - | J65: =IF(ISERROR(AVERAGE(G65:I65)),"-",AVERAGE(G65:I65)) -> -
B66: Reasons for discrepancy (use code below - mark all that apply)
B67: Other reason (specify)
A68: 5. | B68: Select indicator type: | D68: =IF(Indicators!$R$25=0,"-",Indicators!$R$25) -> HMIS
B69: Select indicator: | D69: =IF(Indicators!$S$25=0,"-",Indicators!$S$25) -> Live births | G69: ="quality target: >="&TEXT(100%-Indicators!$V$25,"0%")&", <="&TEXT(100%+Indicators!$V$25,"0%") -> quality target: >=75%, <=125%
B70: Source document re-count | J70: =IF(ISERROR(SUM(G70:I70)),"-",SUM(G70:I70)) -> 0
B71: HMIS monthly report value | J71: =IF(ISERROR(SUM(G71:I71)),"-",SUM(G71:I71)) -> 0
B72: DHIS2 monthly value | J72: =IF(ISERROR(SUM(G72:I72)),"-",SUM(G72:I72)) -> 0
B73: Monthly Report Verification factor(VF): | G73: =IF(ISERROR(G70/G71),"-",G70/G71) -> - | H73: =IF(ISERROR(H70/H71),"-",H70/H71) -> - | I73: =IF(ISERROR(I70/I71),"-",I70/I71) -> - | J73: =IF(ISERROR(AVERAGE(G73:I73)),"-",AVERAGE(G73:I73)) -> -
B74: DHIS 2 Verification factor(VF): | G74: =IF(ISERROR(G70/G72),"-",G70/G72) -> - | H74: =IF(ISERROR(H70/H72),"-",H70/H72) -> - | I74: =IF(ISERROR(I70/I72),"-",I70/I72) -> - | J74: =IF(ISERROR(AVERAGE(G74:I74)),"-",AVERAGE(G74:I74)) -> -
B75: Reasons for discrepancy (use code below - mark all that apply)
B76: Other reason (specify)
A77: Reasons for discrepancy:
A78: a) no discrepancy, b) arithmetic errors, c) transcription errors, d) some documents were missing when the report was prepared, e) some documents are now missing, f) other (specify)
A79: III. Cross Checks | K79: Comments
A80: ="A — "&Indicators!R31&" : "&Indicators!S31&" (quality target = "&TEXT(100%-Indicators!$V$31,"0%")&")" -> A — Malaria case register : Laboratory register (quality target = 90%)
A81: ="Randomly select 10 patients who have been treated in the period at the facility from the "&Indicators!R31&"." -> Randomly select 10 patients who have been treated in the period at the facility from the Malaria case register.
A82: ="1. Number of cases sampled from the "&Indicators!R31&"." -> 1. Number of cases sampled from the Malaria case register.
A83: ="2. How many of the patients selected had a corresponding entry with matching information for the patients in the "&Indicators!S31&"?" -> 2. How many of the patients selected had a corresponding entry with matching information for the patients in the Laboratory register?
A84: =Indicators!S31&" reliability rate:" -> Laboratory register reliability rate: | J84: =IF(ISERROR(J83/J82),"-",J83/J82) -> -
A85: ="B — "&Indicators!R34&" : "&Indicators!S34&" (quality target = "&TEXT(100%-Indicators!$V$34,"0%")&")" -> B — Immunization register : Vaccine stock registry (quality target = 90%)
A86: ="Randomly select 10 cases who have been treated in the period at the facility from the "&Indicators!R34&"." -> Randomly select 10 cases who have been treated in the period at the facility from the Immunization register.
A87: ="1. Number of cases sampled from the "&Indicators!R34&"." -> 1. Number of cases sampled from the Immunization register.
A88: ="2. How many of the patients selected had a corresponding entry with matching information for the patients in the "&Indicators!S34&"?" -> 2. How many of the patients selected had a corresponding entry with matching information for the patients in the Vaccine stock registry?
A89: =Indicators!S34&" reliability rate:" -> Vaccine stock registry reliability rate: | J89: =IF(ISERROR(J88/J87),"-",J88/J87) -> -
A90: ="C — "&Indicators!R37&" : "&Indicators!S37&" (quality target: >="&TEXT(100%-Indicators!$V$38,"0%")&", <="&TEXT(100%+Indicators!$V$38,"0%")&")" -> C — ANC Register : Vaccine stock management log (quality target: >=90%, <=110%)
A91: Number of units (e.g. doses of medication/vaccine, other commodities) in stock at the site at the beginning of the reporting period (initial in stock) | I91: a.
A92: Number of units received by the site during the reporting period | G92: b. | I92: b.
A93: Number of units in stock at the site at the end of the reporting period (closing in stock) | G93: c. | I93: c.
A94: Number of units used (e.g. given to patients) by the site during the reporting period | G94: d. | I94: d.
A95: Verification ratio: (d/[a+b-c]): | J95: =IF(ISERROR(J94/(J91+J92-J93)),"-",J94/(J91+J92-J93)) -> -
A96: Reasons for discrepancy (enter code at right):
A97: a) no discrepancy, b) arithmetic errors, c) transcription errors, d) drugs stock management forms not up to date, e) some documents are missing, f) stock out of treatment drugs,
A98: g) other (specify)
A99: ="IV. Consistency Checks - Consistency of data elements over time Quality target = >="&TEXT(100%-Indicators!$V$42,"0%")&", <="&TEXT(100%+Indicators!$V$42,"0%")&")" -> IV. Consistency Checks - Consistency of data elements over time Quality target = >=80%, <=120%) | F99: Program Area -> | H99: =Indicators!$B$42 -> Malaria
A100: IV.a: Annual consistency - select the indicator on the Indicators tab. | F100: Indicator -> | H100: =Indicators!$E$42 -> Number of confirmed malaria cases reported
A101: 1. What is the current month value
A102: 2. What was the value of the indicator for the current month one year ago
A103: Consistency ratio: Divide the value of the current month by the value from the same month last year. If the value is more than 20% different (i.e. <0.8 or >1.2) this could indicate a data quality problem. | J103: =IF(ISERROR(J101/J102),"-",J101/J102) -> -
A104: IV.b Month-to-month consistency:
A105: Enter values for the selected indicator for the current month, and for the three preceding months. Calculate consistency: Current month/average of Month1-Month3. If the value is more than 20% different (i.e. <0.8 or >1.2) this could indicate a data quality problem. | F105: Month 1 | G105: Month 2 | H105: Month 3 | I105: Last month | J105: Consistency
E106: month | F106: =IF(ISERROR(EDATE($J$7,-4)),"-",EDATE($J$7,-4)) -> - | G106: =IF(ISERROR(EDATE($J$7,-3)),"-",EDATE($J$7,-3)) -> - | H106: =IF(ISERROR(EDATE($J$7,-3)),"-",EDATE($J$7,-2)) -> - | I106: =IF(ISERROR(EDATE($J$7,-3)),"-",EDATE($J$7,-1)) -> - | J106: ratio
E107: value | J107: =IF(ISERROR(I107/AVERAGE(F107:H107)),"-",I107/AVERAGE(F107:H107)) -> -
A108: Reasons for discrepancy (enter code at right):
A109: a) no discrepancy, b) arithmetic errors, c) transcription errors, d) vaccine stock management forms not up to date, e) some documents are missing, f) vaccine / drugs stock out,
A110: g) other (specify)
A111: V. System Assessment - Respond Yes or No for the following questions. | J111: Y/N
A112: V.1 | B112: Is there a designated person to enter data and compile reports?
A113: V.2 | B113: Is there a designated person to review the quality of compiled data prior to submission to the next level?
A114: V.3 | B114: Does the health facility have written guidelines on data collection and reporting for HMIS?
A115: V.4 | B115: Does the health facility have a reserve stock of blank registers or reporting forms?
A116: V.5 | B116: Has this health facility experienced any stock out of registers or reporting forms (since last visit)?
A117: V.6 | B117: Is a standardized OPD register being used to record information on patients seeking treatment (not improvised forms)?
A118: V.7 | B118: Can a patient's diagnosis and treatment history be easily found in the facility records?
A119: V.8 | B119: Are data archives properly maintained with historical patient level (registers) and aggregate (monthly report) results?
A120: V.9 | B120: Does the facility maintain accurate demographic information for the catchment area (that is, a record current population and the number of births and deaths)?
A121: V.10 | B121: Does the facility have established targets to monitor progress towards goals and objectives for prevention and treatment?
A122: V.11 | B122: Does the facility have an up-to-date display (for example, a chart on the wall) of the number of cases diagnosed and treated by reporting period for the year?
A123: V.12 | B123: Is there a chart of disease incidence by month displayed at the facility?
A124: Data Quality Improvement Plan for the Health Facility
A125: Please list the primary gaps or weaknesses in the data management system at the facility. What are the threats , or potential threats, to data quality ? For each item cited, please include action points that the facility can implement to strengthen the data management at the facility. Please be realistic in your recommendations. Also include the responsible staff and the date by which the intervention should be completed.
B126: Identified Weaknesses | E126: Description of Action Point | H126: Responsible(s) | J126: Time Line | K126: Comments
A127: 1
A128: 2
A129: 3
A130: 4
A132: HMIS Health Facility Supervision Data Quality Dashboard

Sheet Health Facility 7 (hidden)
A1: National Health Management Information System (HMIS) | H1: WHO - 2020 | M1: Go back to facility information tab
A2: Routine Supervision Data Quality Checklist | M2: Go to Dashboard
A3: Routine Supervision Data Quality Checklist | M3: Go to Dashboard
A4: Routine Supervision Data Quality Checklist | M4: Go to Dashboard
A5: Routine Supervision Data Quality Checklist | M5: Go to Dashboard
A6: Routine Supervision Data Quality Checklist | M6: Go to Dashboard
A7: Health facility name: | D7: =IF('Facility Information'!D20=0,"-",'Facility Information'!D20) -> - | G7: Date of Supervision: | J7: =IF('Facility Information'!J20=0,"-",'Facility Information'!J20) -> - | M7: Go to indicators
A8: Facility type: | D8: =IF('Facility Information'!H20=0,"-",'Facility Information'!H20) -> - | G8: Reporting period(s) verified (months): | J8: =IF(ISERROR(TEXT(EDATE(J7,-3),"mmm-yy")&", "&TEXT(EDATE(J7,-2),"mmm-yy")&", "&TEXT(EDATE(J7,-1),"mmm-yy")),"-",TEXT(EDATE(J7,-3),"mmm-yy")&", "&TEXT(EDATE(J7,-2),"mmm-yy")&", "&TEXT(EDATE(J7,-1),"mmm-yy")) -> -
A9: Town/Village: | D9: =IF('Facility Information'!E20=0,"-",'Facility Information'!E20) -> - | G9: Supervison team lead: | J9: =IF('Facility Information'!K20=0,"-",'Facility Information'!K20) -> - | AO9: Reporting performance & Readiness to provide quality data | AZ9: ="Reasons for discrepancy, by indicator" -> Reasons for discrepancy, by indicator
A10: Region: | D10: =IF('Facility Information'!G20=0,"-",'Facility Information'!G20) -> - | G10: Contact phone: | J10: =IF('Facility Information'!L20=0,"-",'Facility Information'!L20) -> - | AN10: Results | AR10: Source documents | AZ10: by comparison | BH10: by indicator
A11: District: | D11: =IF('Facility Information'!F20=0,"-",'Facility Information'!F20) -> - | G11: Contact email: | J11: =IF('Facility Information'!M20=0,"-",'Facility Information'!M20) -> - | AO11: Completeness of Monthly report | AP11: % Cases with missing data | AQ11: Timeliness of reporting | AR11: =AR10&" available" -> Source documents available | AS11: =AR10&" Up-to-date" -> Source documents Up-to-date | AT11: =AR10&" standard issue" -> Source documents standard issue | AU11: System Assessment (% readiness) | BA11: A | BB11: B | BC11: C | BD11: D | BE11: E | BF11: F | BI11: No discrepancy | BJ11: Arithematic errors | BK11: Transcription errors | BL11: Some documents were missing when the report was prepared | BM11: Some documents are now missing | BN11: Other
A12: I. Completeness & Timeliness | K12: Please provide a comment on the results | AO12: =J15 -> - | AP12: =E26 -> - | AQ12: =J17 -> 0 | AR12: =H27 -> - | AS12: =I27 -> - | AT12: =J27 -> - | AU12: =COUNTIF(J112:J123,"Yes")/COUNTA(J112:J123) ->  | AZ12: 1.1 | BA12: =IF(ISERROR(IF(SEARCH("A",$G$39)>0,1,0))," ",IF(SEARCH("A",$G$39)>0,1,0)) ->  | BB12: =IF(ISERROR(IF(SEARCH("B",$G$39)>0,1,0))," ",IF(SEARCH("B",$G$39)>0,1,0)) ->  | BC12: =IF(ISERROR(IF(SEARCH("C",$G$39)>0,1,0))," ",IF(SEARCH("C",$G$39)>0,1,0)) ->  | BD12: =IF(ISERROR(IF(SEARCH("D",$G$39)>0,1,0))," ",IF(SEARCH("D",$G$39)>0,1,0)) ->  | BE12: =IF(ISERROR(IF(SEARCH("E",$G$39)>0,1,0))," ",IF(SEARCH("E",$G$39)>0,1,0)) ->  | BF12: =IF(ISERROR(IF(SEARCH("F",$G$39)>0,1,0))," ",IF(SEARCH("F",$G$39)>0,1,0)) ->  | BH12: =AO14 -> ANC 1st Visit | BI12: =SUM(BA12:BA14) -> 0 | BJ12: 0 | BK12: 0 | BL12: 0 | BM12: 0 | BN12: 0
A13: A. Completeness of HMIS Monthly Report | H13: Expected Cells | I13: Completed Cells | J13: Percent Complete | AN13: Verification factors | AP13: VF Monthly report | AQ13: VF HMIS | AZ13: 1.2 | BA13: =IF(ISERROR(IF(SEARCH("A",$H$39)>0,1,0))," ",IF(SEARCH("A",$H$39)>0,1,0)) ->  | BB13: =IF(ISERROR(IF(SEARCH("B",$H$39)>0,1,0))," ",IF(SEARCH("B",$H$39)>0,1,0)) ->  | BC13: =IF(ISERROR(IF(SEARCH("C",$H$39)>0,1,0))," ",IF(SEARCH("C",$H$39)>0,1,0)) ->  | BD13: =IF(ISERROR(IF(SEARCH("D",$H$39)>0,1,0))," ",IF(SEARCH("D",$H$39)>0,1,0)) ->  | BE13: =IF(ISERROR(IF(SEARCH("E",$H$39)>0,1,0))," ",IF(SEARCH("E",$H$39)>0,1,0)) ->  | BF13: =IF(ISERROR(IF(SEARCH("F",$H$39)>0,1,0))," ",IF(SEARCH("F",$H$39)>0,1,0)) ->  | BH13: =AO15 -> Outpatient visits | BI13: =SUM(BA15:BA17) -> 0 | BJ13: =SUM(BB15:BB17) -> 0 | BK13: 0 | BL13: 0 | BM13: 0 | BN13: 0
A14: Select the most recent completed and submitted monthly HMIS facility report. Calculate the number of cells expected to be complete on the monthly report (exclude cells for services not offered by the facility). Count the number of cells that are complete (blank, not zero) and calculate the percentage completeness for the monthly report. | AN14: indicator | AO14: =D33 -> ANC 1st Visit | AP14: =J37 -> - | AQ14: =J38 -> - | AZ14: 1.3 | BA14: =IF(ISERROR(IF(SEARCH("A",$I$39)>0,1,0))," ",IF(SEARCH("A",$I$39)>0,1,0)) ->  | BB14: =IF(ISERROR(IF(SEARCH("B",$I$39)>0,1,0))," ",IF(SEARCH("B",$I$39)>0,1,0)) ->  | BC14: =IF(ISERROR(IF(SEARCH("C",$I$39)>0,1,0))," ",IF(SEARCH("C",$I$39)>0,1,0)) ->  | BD14: =IF(ISERROR(IF(SEARCH("D",$I$39)>0,1,0))," ",IF(SEARCH("D",$I$39)>0,1,0)) ->  | BE14: =IF(ISERROR(IF(SEARCH("E",$I$39)>0,1,0))," ",IF(SEARCH("E",$I$39)>0,1,0)) ->  | BF14: =IF(ISERROR(IF(SEARCH("F",$I$39)>0,1,0))," ",IF(SEARCH("F",$I$39)>0,1,0)) ->  | BH14: =AO16 -> Number of confirmed malaria cases reported | BI14: =SUM(BA18:BA20) -> 0 | BJ14: 0 | BK14: 0 | BL14: 0 | BM14: 0 | BN14: 0
J15: =IF(ISERROR(I15/H15),"-",I15/H15) -> - | AO15: =D42 -> Outpatient visits | AP15: =J46 -> - | AQ15: =J47 -> - | AZ15: 2.1 | BA15: =IF(ISERROR(IF(SEARCH("A",$G$48)>0,1,0))," ",IF(SEARCH("A",$G$48)>0,1,0)) ->  | BB15: =IF(ISERROR(IF(SEARCH("B",$G$48)>0,1,0))," ",IF(SEARCH("B",$G$48)>0,1,0)) ->  | BC15: =IF(ISERROR(IF(SEARCH("C",$G$48)>0,1,0))," ",IF(SEARCH("C",$G$48)>0,1,0)) ->  | BD15: =IF(ISERROR(IF(SEARCH("D",$G$48)>0,1,0))," ",IF(SEARCH("D",$G$48)>0,1,0)) ->  | BE15: =IF(ISERROR(IF(SEARCH("E",$G$48)>0,1,0))," ",IF(SEARCH("E",$G$48)>0,1,0)) ->  | BF15: =IF(ISERROR(IF(SEARCH("F",$G$48)>0,1,0))," ",IF(SEARCH("F",$G$48)>0,1,0)) ->  | BH15: =AO17 -> 3rd dose DPT-containing vaccine | BI15: =SUM(BA21:BA23) -> 0 | BJ15: 0 | BK15: 0 | BL15: 0 | BM15: 0 | BN15: 0
A16: B. Timeliness of Submission of Monthly Report | F16: Monthly report: | G16: =IF(ISERROR(EDATE($J$7,-3)),"-",EDATE($J$7,-3)) -> - | H16: =IF(ISERROR(EDATE($J$7,-3)),"-",EDATE($J$7,-2)) -> - | I16: =IF(ISERROR(EDATE($J$7,-3)),"-",EDATE($J$7,-1)) -> - | AO16: =D51 -> Number of confirmed malaria cases reported | AP16: =J55 -> - | AQ16: =J56 -> - | AZ16: 2.2 | BA16: =IF(ISERROR(IF(SEARCH("A",$H$48)>0,1,0))," ",IF(SEARCH("A",$H$48)>0,1,0)) ->  | BB16: =IF(ISERROR(IF(SEARCH("B",$H$48)>0,1,0))," ",IF(SEARCH("B",$H$48)>0,1,0)) ->  | BC16: =IF(ISERROR(IF(SEARCH("C",$H$48)>0,1,0))," ",IF(SEARCH("C",$H$48)>0,1,0)) ->  | BD16: =IF(ISERROR(IF(SEARCH("D",$H$48)>0,1,0))," ",IF(SEARCH("D",$H$48)>0,1,0)) ->  | BE16: =IF(ISERROR(IF(SEARCH("E",$H$48)>0,1,0))," ",IF(SEARCH("E",$H$48)>0,1,0)) ->  | BF16: =IF(ISERROR(IF(SEARCH("F",$H$48)>0,1,0))," ",IF(SEARCH("F",$H$48)>0,1,0)) ->  | BH16: =AO18 -> Live births | BI16: =SUM(BA24:BA26) -> 0 | BJ16: 0 | BK16: 0 | BL16: 0 | BM16: 0 | BN16: 0
A17: Review the monthly reports from the past three months at the facility and in the HMIS database. Determine if the reports were submitted by the deadline of reporting | F17: Submitted by the deadline? (Y/N) | J17: =COUNTIF(G17:I17,"Yes")/3 -> 0 | AO17: =D60 -> 3rd dose DPT-containing vaccine | AP17: =J64 -> - | AQ17: =J65 -> - | AZ17: 2.3 | BA17: =IF(ISERROR(IF(SEARCH("A",$I$48)>0,1,0))," ",IF(SEARCH("A",$I$48)>0,1,0)) ->  | BB17: =IF(ISERROR(IF(SEARCH("B",$I$48)>0,1,0))," ",IF(SEARCH("B",$I$48)>0,1,0)) ->  | BC17: =IF(ISERROR(IF(SEARCH("C",$I$48)>0,1,0))," ",IF(SEARCH("C",$I$48)>0,1,0)) ->  | BD17: =IF(ISERROR(IF(SEARCH("D",$I$48)>0,1,0))," ",IF(SEARCH("D",$I$48)>0,1,0)) ->  | BE17: =IF(ISERROR(IF(SEARCH("E",$I$48)>0,1,0))," ",IF(SEARCH("E",$I$48)>0,1,0)) ->  | BF17: =IF(ISERROR(IF(SEARCH("F",$I$48)>0,1,0))," ",IF(SEARCH("F",$I$48)>0,1,0)) ->  | BI17: =SUM(BI12:BI16) -> 0 | BJ17: 0 | BK17: 0 | BL17: 0 | BM17: 0 | BN17: 0
A18: C. Data Element Completeness: Missing data: ask to see the Outpatient Department (OPD) register. Count the number of clients in the quarter (month 1 to month 3) with missing information for each of the following columns in the unit malaria case register. | F18: D. Source Document Completeness: Review the following data sources and determine if they are available, up-to-date (values up to the current day/period) and standard (the form prepared and distributed by the program). (Y/N) | AO18: =D69 -> Live births | AP18: =J73 -> - | AQ18: =J74 -> - | AZ18: 3.1 | BA18: =IF(ISERROR(IF(SEARCH("A",$G$57)>0,1,0))," ",IF(SEARCH("A",$G$57)>0,1,0)) ->  | BB18: =IF(ISERROR(IF(SEARCH("B",$G$57)>0,1,0))," ",IF(SEARCH("B",$G$57)>0,1,0)) ->  | BC18: =IF(ISERROR(IF(SEARCH("C",$G$57)>0,1,0))," ",IF(SEARCH("C",$G$57)>0,1,0)) ->  | BD18: =IF(ISERROR(IF(SEARCH("D",$G$57)>0,1,0))," ",IF(SEARCH("D",$G$57)>0,1,0)) ->  | BE18: =IF(ISERROR(IF(SEARCH("E",$G$57)>0,1,0))," ",IF(SEARCH("E",$G$57)>0,1,0)) ->  | BF18: =IF(ISERROR(IF(SEARCH("F",$G$57)>0,1,0))," ",IF(SEARCH("F",$G$57)>0,1,0)) -> 
A19: =Indicators!R47&" Data elements" -> DE_HMIS Data elements | D19: Number of cases (rows) with missing data | % | F19: =Indicators!S47&" Source Documents:" -> DS_HMIS Source Documents: | H19: Available | I19: Up-to-date | J19: Standard form | K19: Comments | AZ19: 3.2 | BA19: =IF(ISERROR(IF(SEARCH("A",$H$57)>0,1,0))," ",IF(SEARCH("A",$H$57)>0,1,0)) ->  | BB19: =IF(ISERROR(IF(SEARCH("B",$H$57)>0,1,0))," ",IF(SEARCH("B",$H$57)>0,1,0)) ->  | BC19: =IF(ISERROR(IF(SEARCH("C",$H$57)>0,1,0))," ",IF(SEARCH("C",$H$57)>0,1,0)) ->  | BD19: =IF(ISERROR(IF(SEARCH("D",$H$57)>0,1,0))," ",IF(SEARCH("D",$H$57)>0,1,0)) ->  | BE19: =IF(ISERROR(IF(SEARCH("E",$H$57)>0,1,0))," ",IF(SEARCH("E",$H$57)>0,1,0)) ->  | BF19: =IF(ISERROR(IF(SEARCH("F",$H$57)>0,1,0))," ",IF(SEARCH("F",$H$57)>0,1,0)) -> 
A20: 1. | B20: =Indicators!R49 -> Unique ID | E20: =IF(D20="","-",IF(ISERROR(D20/$D$27),"-",D20/$D$27)) -> - | F20: =Indicators!S49 -> OPD register | AN20: Cross checks | AZ20: 3.3 | BA20: =IF(ISERROR(IF(SEARCH("A",$I$57)>0,1,0))," ",IF(SEARCH("A",$I$57)>0,1,0)) ->  | BB20: =IF(ISERROR(IF(SEARCH("B",$I$57)>0,1,0))," ",IF(SEARCH("B",$I$57)>0,1,0)) ->  | BC20: =IF(ISERROR(IF(SEARCH("C",$I$57)>0,1,0))," ",IF(SEARCH("C",$I$57)>0,1,0)) ->  | BD20: =IF(ISERROR(IF(SEARCH("D",$I$57)>0,1,0))," ",IF(SEARCH("D",$I$57)>0,1,0)) ->  | BE20: =IF(ISERROR(IF(SEARCH("E",$I$57)>0,1,0))," ",IF(SEARCH("E",$I$57)>0,1,0)) ->  | BF20: =IF(ISERROR(IF(SEARCH("F",$I$57)>0,1,0))," ",IF(SEARCH("F",$I$57)>0,1,0)) -> 
A21: 2. | B21: =Indicators!R51 -> Visit date | E21: - | F21: =Indicators!S51 -> OPD register | AO21: =A80 -> A — Malaria case register : Laboratory register (quality target = 90%) | AP21: =J84 -> - | AR21: =AN20&" 1 & 2" -> Cross checks 1 & 2 | AZ21: 4.1 | BA21: =IF(ISERROR(IF(SEARCH("A",$G$66)>0,1,0))," ",IF(SEARCH("A",$G$66)>0,1,0)) ->  | BB21: =IF(ISERROR(IF(SEARCH("B",$G$66)>0,1,0))," ",IF(SEARCH("B",$G$66)>0,1,0)) ->  | BC21: =IF(ISERROR(IF(SEARCH("C",$G$66)>0,1,0))," ",IF(SEARCH("C",$G$66)>0,1,0)) ->  | BD21: =IF(ISERROR(IF(SEARCH("D",$G$66)>0,1,0))," ",IF(SEARCH("D",$G$66)>0,1,0)) ->  | BE21: =IF(ISERROR(IF(SEARCH("E",$G$66)>0,1,0))," ",IF(SEARCH("E",$G$66)>0,1,0)) ->  | BF21: =IF(ISERROR(IF(SEARCH("F",$G$66)>0,1,0))," ",IF(SEARCH("F",$G$66)>0,1,0)) -> 
A22: 3. | B22: =Indicators!R53 -> Client name | E22: - | F22: =Indicators!S53 -> OPD register | AO22: =A85 -> B — Immunization register : Vaccine stock registry (quality target = 90%) | AP22: =J89 -> - | AZ22: 4.2 | BA22: =IF(ISERROR(IF(SEARCH("A",$H$66)>0,1,0))," ",IF(SEARCH("A",$H$66)>0,1,0)) ->  | BB22: =IF(ISERROR(IF(SEARCH("B",$H$66)>0,1,0))," ",IF(SEARCH("B",$H$66)>0,1,0)) ->  | BC22: =IF(ISERROR(IF(SEARCH("C",$H$66)>0,1,0))," ",IF(SEARCH("C",$H$66)>0,1,0)) ->  | BD22: =IF(ISERROR(IF(SEARCH("D",$H$66)>0,1,0))," ",IF(SEARCH("D",$H$66)>0,1,0)) ->  | BE22: =IF(ISERROR(IF(SEARCH("E",$H$66)>0,1,0))," ",IF(SEARCH("E",$H$66)>0,1,0)) ->  | BF22: =IF(ISERROR(IF(SEARCH("F",$H$66)>0,1,0))," ",IF(SEARCH("F",$H$66)>0,1,0)) -> 
A23: 4. | B23: =Indicators!R55 -> Age | E23: - | F23: =Indicators!S55 -> OPD register | AO23: =A90 -> C — ANC Register : Vaccine stock management log (quality target: >=90%, <=110%) | AP23: =J95 -> - | AR23: ="Cross check 3" -> Cross check 3 | AZ23: 4.3 | BA23: =IF(ISERROR(IF(SEARCH("A",$I$66)>0,1,0))," ",IF(SEARCH("A",$I$66)>0,1,0)) ->  | BB23: =IF(ISERROR(IF(SEARCH("B",$I$66)>0,1,0))," ",IF(SEARCH("B",$I$66)>0,1,0)) ->  | BC23: =IF(ISERROR(IF(SEARCH("C",$I$66)>0,1,0))," ",IF(SEARCH("C",$I$66)>0,1,0)) ->  | BD23: =IF(ISERROR(IF(SEARCH("D",$I$66)>0,1,0))," ",IF(SEARCH("D",$I$66)>0,1,0)) ->  | BE23: =IF(ISERROR(IF(SEARCH("E",$I$66)>0,1,0))," ",IF(SEARCH("E",$I$66)>0,1,0)) ->  | BF23: =IF(ISERROR(IF(SEARCH("F",$I$66)>0,1,0))," ",IF(SEARCH("F",$I$66)>0,1,0)) -> 
A24: 5. | B24: =Indicators!R57 -> Diagnosis (any type) | E24: - | F24: =Indicators!S57 -> OPD register | AZ24: 5.1 | BA24: =IF(ISERROR(IF(SEARCH("A",$G$75)>0,1,0))," ",IF(SEARCH("A",$G$75)>0,1,0)) ->  | BB24: =IF(ISERROR(IF(SEARCH("B",$G$75)>0,1,0))," ",IF(SEARCH("B",$G$75)>0,1,0)) ->  | BC24: =IF(ISERROR(IF(SEARCH("C",$G$75)>0,1,0))," ",IF(SEARCH("C",$G$75)>0,1,0)) ->  | BD24: =IF(ISERROR(IF(SEARCH("D",$G$75)>0,1,0))," ",IF(SEARCH("D",$G$75)>0,1,0)) ->  | BE24: =IF(ISERROR(IF(SEARCH("E",$G$75)>0,1,0))," ",IF(SEARCH("E",$G$75)>0,1,0)) ->  | BF24: =IF(ISERROR(IF(SEARCH("F",$G$75)>0,1,0))," ",IF(SEARCH("F",$G$75)>0,1,0)) -> 
A25: 6. | B25: =Indicators!R59 -> Treatment given | E25: - | F25: =Indicators!S59 -> OPD register | AN25: ="Consistency over time: "&H99&": "&H100 -> Consistency over time: Malaria: Number of confirmed malaria cases reported | AZ25: 5.2 | BA25: =IF(ISERROR(IF(SEARCH("A",$H$75)>0,1,0))," ",IF(SEARCH("A",$H$75)>0,1,0)) ->  | BB25: =IF(ISERROR(IF(SEARCH("B",$H$75)>0,1,0))," ",IF(SEARCH("B",$H$75)>0,1,0)) ->  | BC25: =IF(ISERROR(IF(SEARCH("C",$H$75)>0,1,0))," ",IF(SEARCH("C",$H$75)>0,1,0)) ->  | BD25: =IF(ISERROR(IF(SEARCH("D",$H$75)>0,1,0))," ",IF(SEARCH("D",$H$75)>0,1,0)) ->  | BE25: =IF(ISERROR(IF(SEARCH("E",$H$75)>0,1,0))," ",IF(SEARCH("E",$H$75)>0,1,0)) ->  | BF25: =IF(ISERROR(IF(SEARCH("F",$H$75)>0,1,0))," ",IF(SEARCH("F",$H$75)>0,1,0)) -> 
A26: 7. | B26: Number of entries missing data in at least 1 of the 6 columns listed above | E26: - | F26: =Indicators!S61 -> OPD register | AN26: =F106 -> - | AO26: - | AP26: - | AQ26: - | AZ26: 5.3 | BA26: =IF(ISERROR(IF(SEARCH("A",$I$75)>0,1,0))," ",IF(SEARCH("A",$I$75)>0,1,0)) ->  | BB26: =IF(ISERROR(IF(SEARCH("B",$I$75)>0,1,0))," ",IF(SEARCH("B",$I$75)>0,1,0)) ->  | BC26: =IF(ISERROR(IF(SEARCH("C",$I$75)>0,1,0))," ",IF(SEARCH("C",$I$75)>0,1,0)) ->  | BD26: =IF(ISERROR(IF(SEARCH("D",$I$75)>0,1,0))," ",IF(SEARCH("D",$I$75)>0,1,0)) ->  | BE26: =IF(ISERROR(IF(SEARCH("E",$I$75)>0,1,0))," ",IF(SEARCH("E",$I$75)>0,1,0)) ->  | BF26: =IF(ISERROR(IF(SEARCH("F",$I$75)>0,1,0))," ",IF(SEARCH("F",$I$75)>0,1,0)) -> 
A27: 8. | B27: Total number of entries for the period | F27: % Complete | H27: =IF(ISERROR(COUNTIF(H20:H26,"Yes")/COUNTA(H20:H26)),"-",COUNTIF(H20:H26,"Yes")/COUNTA(H20:H26)) -> - | I27: =IF(ISERROR(COUNTIF(I20:I26,"Yes")/COUNTA(I20:I26)),"-",COUNTIF(I20:I26,"Yes")/COUNTA(I20:I26)) -> - | J27: =IF(ISERROR(COUNTIF(J20:J26,"Yes")/COUNTA(J20:J26)),"-",COUNTIF(J20:J26,"Yes")/COUNTA(J20:J26)) -> - | AN27: 0 | AO27: 0 | AP27: 0 | AQ27: 0 | BA27: =SUM(BA12:BA26) -> 0 | BB27: 0 | BC27: 0 | BD27: 0 | BE27: 0 | BF27: 0
A28: II. Data Accuracy
A29: Recount value of indicators from the malaria case register and compare the value to the one reported by the facility for the selected months
B30: ="Indicators" -> Indicators | G30: Month 1 | H30: Month 2 | I30: Month 3 | J30: 3-month total
G31: =IF(ISERROR(EDATE($J$7,-3)),"-",EDATE($J$7,-3)) -> - | H31: =IF(ISERROR(EDATE($J$7,-3)),"-",EDATE($J$7,-2)) -> - | I31: =IF(ISERROR(EDATE($J$7,-3)),"-",EDATE($J$7,-1)) -> -
A32: 1. | B32: Select indicator type: | D32: =IF(Indicators!$R$13=0,"-",Indicators!$R$13) -> Maternal_Health
B33: Select indicator: | D33: =IF(Indicators!$S$13=0,"-",Indicators!$S$13) -> ANC 1st Visit | G33: ="quality target: >="&TEXT(100%-Indicators!$V$13,"0%")&", <="&TEXT(100%+Indicators!$V$13,"0%") -> quality target: >=90%, <=110%
B34: Source document re-count | J34: =IF(ISERROR(SUM(G34:I34)),"-",SUM(G34:I34)) -> 0
B35: HMIS monthly report value | J35: =IF(ISERROR(SUM(G35:I35)),"-",SUM(G35:I35)) -> 0
B36: DHIS2 monthly value | J36: =IF(ISERROR(SUM(G36:I36)),"-",SUM(G36:I36)) -> 0
B37: Monthly Report Verification factor(VF): | G37: =IF(ISERROR(G34/G35),"-",G34/G35) -> - | H37: =IF(ISERROR(H34/H35),"-",H34/H35) -> - | I37: =IF(ISERROR(I34/I35),"-",I34/I35) -> - | J37: =IF(ISERROR(AVERAGE(G37:I37)),"-",AVERAGE(G37:I37)) -> -
B38: DHIS 2 Verification factor(VF): | G38: =IF(ISERROR(G34/G36),"-",G34/G36) -> - | H38: =IF(ISERROR(H34/H36),"-",H34/H36) -> - | I38: =IF(ISERROR(I34/I36),"-",I34/I36) -> - | J38: =IF(ISERROR(AVERAGE(G38:I38)),"-",AVERAGE(G38:I38)) -> -
B39: Reasons for discrepancy (use code below - mark all that apply)
B40: Other reason (specify)
A41: 2. | B41: Select indicator type: | D41: =IF(Indicators!$R$16=0,"-",Indicators!$R$16) -> HMIS
B42: Select indicator: | D42: =IF(Indicators!$S$16=0,"-",Indicators!$S$16) -> Outpatient visits | G42: ="quality target: >="&TEXT(100%-Indicators!$V$16,"0%")&", <="&TEXT(100%+Indicators!$V$16,"0%") -> quality target: >=90%, <=110%
B43: Source document re-count | J43: =IF(ISERROR(SUM(G43:I43)),"-",SUM(G43:I43)) -> 0
B44: HMIS monthly report value | J44: =IF(ISERROR(SUM(G44:I44)),"-",SUM(G44:I44)) -> 0
B45: DHIS2 monthly value | J45: =IF(ISERROR(SUM(G45:I45)),"-",SUM(G45:I45)) -> 0
B46: Monthly Report Verification factor(VF): | G46: =IF(ISERROR(G43/G44),"-",G43/G44) -> - | H46: =IF(ISERROR(H43/H44),"-",H43/H44) -> - | I46: =IF(ISERROR(I43/I44),"-",I43/I44) -> - | J46: =IF(ISERROR(AVERAGE(G46:I46)),"-",AVERAGE(G46:I46)) -> -
B47: DHIS 2 Verification factor(VF): | G47: =IF(ISERROR(G43/G45),"-",G43/G45) -> - | H47: =IF(ISERROR(H43/H45),"-",H43/H45) -> - | I47: =IF(ISERROR(I43/I45),"-",I43/I45) -> - | J47: =IF(ISERROR(AVERAGE(G47:I47)),"-",AVERAGE(G47:I47)) -> -
B48: Reasons for discrepancy (use code below - mark all that apply)
B49: Other reason (specify)
A50: 3. | B50: Select indicator type: | D50: =IF(Indicators!$R$19=0,"-",Indicators!$R$19) -> Malaria
B51: Select indicator: | D51: =IF(Indicators!$S$19=0,"-",Indicators!$S$19) -> Number of confirmed malaria cases reported | G51: ="quality target: >="&TEXT(100%-Indicators!$V$19,"0%")&", <="&TEXT(100%+Indicators!$V$19,"0%") -> quality target: >=85%, <=115%
B52: Source document re-count | J52: =IF(ISERROR(SUM(G52:I52)),"-",SUM(G52:I52)) -> 0
B53: HMIS monthly report value | J53: =IF(ISERROR(SUM(G53:I53)),"-",SUM(G53:I53)) -> 0
B54: DHIS2 monthly value | J54: =IF(ISERROR(SUM(G54:I54)),"-",SUM(G54:I54)) -> 0
B55: Monthly Report Verification factor(VF): | G55: =IF(ISERROR(G52/G53),"-",G52/G53) -> - | H55: =IF(ISERROR(H52/H53),"-",H52/H53) -> - | I55: =IF(ISERROR(I52/I53),"-",I52/I53) -> - | J55: =IF(ISERROR(AVERAGE(G55:I55)),"-",AVERAGE(G55:I55)) -> -
B56: DHIS 2 Verification factor(VF): | G56: =IF(ISERROR(G52/G54),"-",G52/G54) -> - | H56: =IF(ISERROR(H52/H54),"-",H52/H54) -> - | I56: =IF(ISERROR(I52/I54),"-",I52/I54) -> - | J56: =IF(ISERROR(AVERAGE(G56:I56)),"-",AVERAGE(G56:I56)) -> -
B57: Reasons for discrepancy (use code below - mark all that apply)
B58: Other reason (specify)
A59: 4. | B59: Select indicator type: | D59: =IF(Indicators!$R$22=0,"-",Indicators!$R$22) -> Immunization
B60: Select indicator: | D60: =IF(Indicators!$S$22=0,"-",Indicators!$S$22) -> 3rd dose DPT-containing vaccine | G60: ="quality target: >="&TEXT(100%-Indicators!$V$22,"0%")&", <="&TEXT(100%+Indicators!$V$22,"0%") -> quality target: >=80%, <=120%
B61: Source document re-count | J61: =IF(ISERROR(SUM(G61:I61)),"-",SUM(G61:I61)) -> 0
B62: HMIS monthly report value | J62: =IF(ISERROR(SUM(G62:I62)),"-",SUM(G62:I62)) -> 0
B63: DHIS2 monthly value | J63: =IF(ISERROR(SUM(G63:I63)),"-",SUM(G63:I63)) -> 0
B64: Monthly Report Verification factor(VF): | G64: =IF(ISERROR(G61/G62),"-",G61/G62) -> - | H64: =IF(ISERROR(H61/H62),"-",H61/H62) -> - | I64: =IF(ISERROR(I61/I62),"-",I61/I62) -> - | J64: =IF(ISERROR(AVERAGE(G64:I64)),"-",AVERAGE(G64:I64)) -> -
B65: DHIS 2 Verification factor(VF): | G65: =IF(ISERROR(G61/G63),"-",G61/G63) -> - | H65: =IF(ISERROR(H61/H63),"-",H61/H63) -> - | I65: =IF(ISERROR(I61/I63),"-",I61/I63) -> - | J65: =IF(ISERROR(AVERAGE(G65:I65)),"-",AVERAGE(G65:I65)) -> -
B66: Reasons for discrepancy (use code below - mark all that apply)
B67: Other reason (specify)
A68: 5. | B68: Select indicator type: | D68: =IF(Indicators!$R$25=0,"-",Indicators!$R$25) -> HMIS
B69: Select indicator: | D69: =IF(Indicators!$S$25=0,"-",Indicators!$S$25) -> Live births | G69: ="quality target: >="&TEXT(100%-Indicators!$V$25,"0%")&", <="&TEXT(100%+Indicators!$V$25,"0%") -> quality target: >=75%, <=125%
B70: Source document re-count | J70: =IF(ISERROR(SUM(G70:I70)),"-",SUM(G70:I70)) -> 0
B71: HMIS monthly report value | J71: =IF(ISERROR(SUM(G71:I71)),"-",SUM(G71:I71)) -> 0
B72: DHIS2 monthly value | J72: =IF(ISERROR(SUM(G72:I72)),"-",SUM(G72:I72)) -> 0
B73: Monthly Report Verification factor(VF): | G73: =IF(ISERROR(G70/G71),"-",G70/G71) -> - | H73: =IF(ISERROR(H70/H71),"-",H70/H71) -> - | I73: =IF(ISERROR(I70/I71),"-",I70/I71) -> - | J73: =IF(ISERROR(AVERAGE(G73:I73)),"-",AVERAGE(G73:I73)) -> -
B74: DHIS 2 Verification factor(VF): | G74: =IF(ISERROR(G70/G72),"-",G70/G72) -> - | H74: =IF(ISERROR(H70/H72),"-",H70/H72) -> - | I74: =IF(ISERROR(I70/I72),"-",I70/I72) -> - | J74: =IF(ISERROR(AVERAGE(G74:I74)),"-",AVERAGE(G74:I74)) -> -
B75: Reasons for discrepancy (use code below - mark all that apply)
B76: Other reason (specify)
A77: Reasons for discrepancy:
A78: a) no discrepancy, b) arithmetic errors, c) transcription errors, d) some documents were missing when the report was prepared, e) some documents are now missing, f) other (specify)
A79: III. Cross Checks | K79: Comments
A80: ="A — "&Indicators!R31&" : "&Indicators!S31&" (quality target = "&TEXT(100%-Indicators!$V$31,"0%")&")" -> A — Malaria case register : Laboratory register (quality target = 90%)
A81: ="Randomly select 10 patients who have been treated in the period at the facility from the "&Indicators!R31&"." -> Randomly select 10 patients who have been treated in the period at the facility from the Malaria case register.
A82: ="1. Number of cases sampled from the "&Indicators!R31&"." -> 1. Number of cases sampled from the Malaria case register.
A83: ="2. How many of the patients selected had a corresponding entry with matching information for the patients in the "&Indicators!S31&"?" -> 2. How many of the patients selected had a corresponding entry with matching information for the patients in the Laboratory register?
A84: =Indicators!S31&" reliability rate:" -> Laboratory register reliability rate: | J84: =IF(ISERROR(J83/J82),"-",J83/J82) -> -
A85: ="B — "&Indicators!R34&" : "&Indicators!S34&" (quality target = "&TEXT(100%-Indicators!$V$34,"0%")&")" -> B — Immunization register : Vaccine stock registry (quality target = 90%)
A86: ="Randomly select 10 cases who have been treated in the period at the facility from the "&Indicators!R34&"." -> Randomly select 10 cases who have been treated in the period at the facility from the Immunization register.
A87: ="1. Number of cases sampled from the "&Indicators!R34&"." -> 1. Number of cases sampled from the Immunization register.
A88: ="2. How many of the patients selected had a corresponding entry with matching information for the patients in the "&Indicators!S34&"?" -> 2. How many of the patients selected had a corresponding entry with matching information for the patients in the Vaccine stock registry?
A89: =Indicators!S34&" reliability rate:" -> Vaccine stock registry reliability rate: | J89: =IF(ISERROR(J88/J87),"-",J88/J87) -> -
A90: ="C — "&Indicators!R37&" : "&Indicators!S37&" (quality target: >="&TEXT(100%-Indicators!$V$38,"0%")&", <="&TEXT(100%+Indicators!$V$38,"0%")&")" -> C — ANC Register : Vaccine stock management log (quality target: >=90%, <=110%)
A91: Number of units (e.g. doses of medication/vaccine, other commodities) in stock at the site at the beginning of the reporting period (initial in stock) | I91: a.
A92: Number of units received by the site during the reporting period | G92: b. | I92: b.
A93: Number of units in stock at the site at the end of the reporting period (closing in stock) | G93: c. | I93: c.
A94: Number of units used (e.g. given to patients) by the site during the reporting period | G94: d. | I94: d.
A95: Verification ratio: (d/[a+b-c]): | J95: =IF(ISERROR(J94/(J91+J92-J93)),"-",J94/(J91+J92-J93)) -> -
A96: Reasons for discrepancy (enter code at right):
A97: a) no discrepancy, b) arithmetic errors, c) transcription errors, d) drugs stock management forms not up to date, e) some documents are missing, f) stock out of treatment drugs,
A98: g) other (specify)
A99: ="IV. Consistency Checks - Consistency of data elements over time Quality target = >="&TEXT(100%-Indicators!$V$42,"0%")&", <="&TEXT(100%+Indicators!$V$42,"0%")&")" -> IV. Consistency Checks - Consistency of data elements over time Quality target = >=80%, <=120%) | F99: Program Area -> | H99: =Indicators!$B$42 -> Malaria
A100: IV.a: Annual consistency - select the indicator on the Indicators tab. | F100: Indicator -> | H100: =Indicators!$E$42 -> Number of confirmed malaria cases reported
A101: 1. What is the current month value
A102: 2. What was the value of the indicator for the current month one year ago
A103: Consistency ratio: Divide the value of the current month by the value from the same month last year. If the value is more than 20% different (i.e. <0.8 or >1.2) this could indicate a data quality problem. | J103: =IF(ISERROR(J101/J102),"-",J101/J102) -> -
A104: IV.b Month-to-month consistency:
A105: Enter values for the selected indicator for the current month, and for the three preceding months. Calculate consistency: Current month/average of Month1-Month3. If the value is more than 20% different (i.e. <0.8 or >1.2) this could indicate a data quality problem. | F105: Month 1 | G105: Month 2 | H105: Month 3 | I105: Last month | J105: Consistency
E106: month | F106: =IF(ISERROR(EDATE($J$7,-4)),"-",EDATE($J$7,-4)) -> - | G106: =IF(ISERROR(EDATE($J$7,-3)),"-",EDATE($J$7,-3)) -> - | H106: =IF(ISERROR(EDATE($J$7,-3)),"-",EDATE($J$7,-2)) -> - | I106: =IF(ISERROR(EDATE($J$7,-3)),"-",EDATE($J$7,-1)) -> - | J106: ratio
E107: value | J107: =IF(ISERROR(I107/AVERAGE(F107:H107)),"-",I107/AVERAGE(F107:H107)) -> -
A108: Reasons for discrepancy (enter code at right):
A109: a) no discrepancy, b) arithmetic errors, c) transcription errors, d) vaccine stock management forms not up to date, e) some documents are missing, f) vaccine / drugs stock out,
A110: g) other (specify)
A111: V. System Assessment - Respond Yes or No for the following questions. | J111: Y/N
A112: V.1 | B112: Is there a designated person to enter data and compile reports?
A113: V.2 | B113: Is there a designated person to review the quality of compiled data prior to submission to the next level?
A114: V.3 | B114: Does the health facility have written guidelines on data collection and reporting for HMIS?
A115: V.4 | B115: Does the health facility have a reserve stock of blank registers or reporting forms?
A116: V.5 | B116: Has this health facility experienced any stock out of registers or reporting forms (since last visit)?
A117: V.6 | B117: Is a standardized OPD register being used to record information on patients seeking treatment (not improvised forms)?
A118: V.7 | B118: Can a patient's diagnosis and treatment history be easily found in the facility records?
A119: V.8 | B119: Are data archives properly maintained with historical patient level (registers) and aggregate (monthly report) results?
A120: V.9 | B120: Does the facility maintain accurate demographic information for the catchment area (that is, a record current population and the number of births and deaths)?
A121: V.10 | B121: Does the facility have established targets to monitor progress towards goals and objectives for prevention and treatment?
A122: V.11 | B122: Does the facility have an up-to-date display (for example, a chart on the wall) of the number of cases diagnosed and treated by reporting period for the year?
A123: V.12 | B123: Is there a chart of disease incidence by month displayed at the facility?
A124: Data Quality Improvement Plan for the Health Facility
A125: Please list the primary gaps or weaknesses in the data management system at the facility. What are the threats , or potential threats, to data quality ? For each item cited, please include action points that the facility can implement to strengthen the data management at the facility. Please be realistic in your recommendations. Also include the responsible staff and the date by which the intervention should be completed.
B126: Identified Weaknesses | E126: Description of Action Point | H126: Responsible(s) | J126: Time Line | K126: Comments
A127: 1
A128: 2
A129: 3
A130: 4
A132: HMIS Health Facility Supervision Data Quality Dashboard

Sheet Health Facility 8 (hidden)
A1: National Health Management Information System (HMIS) | H1: WHO - 2020 | M1: Go back to facility information tab
A2: Routine Supervision Data Quality Checklist | M2: Go to Dashboard
A3: Routine Supervision Data Quality Checklist | M3: Go to Dashboard
A4: Routine Supervision Data Quality Checklist | M4: Go to Dashboard
A5: Routine Supervision Data Quality Checklist | M5: Go to Dashboard
A6: Routine Supervision Data Quality Checklist | M6: Go to Dashboard
A7: Health facility name: | D7: =IF('Facility Information'!D21=0,"-",'Facility Information'!D21) -> - | G7: Date of Supervision: | J7: =IF('Facility Information'!J21=0,"-",'Facility Information'!J21) -> - | M7: Go to indicators
A8: Facility type: | D8: =IF('Facility Information'!H21=0,"-",'Facility Information'!H21) -> - | G8: Reporting period(s) verified (months): | J8: =IF(ISERROR(TEXT(EDATE(J7,-3),"mmm-yy")&", "&TEXT(EDATE(J7,-2),"mmm-yy")&", "&TEXT(EDATE(J7,-1),"mmm-yy")),"-",TEXT(EDATE(J7,-3),"mmm-yy")&", "&TEXT(EDATE(J7,-2),"mmm-yy")&", "&TEXT(EDATE(J7,-1),"mmm-yy")) -> -
A9: Town/Village: | D9: =IF('Facility Information'!E21=0,"-",'Facility Information'!E21) -> - | G9: Supervison team lead: | J9: =IF('Facility Information'!K21=0,"-",'Facility Information'!K21) -> - | AO9: Reporting performance & Readiness to provide quality data | AZ9: ="Reasons for discrepancy, by indicator" -> Reasons for discrepancy, by indicator
A10: Region: | D10: =IF('Facility Information'!G21=0,"-",'Facility Information'!G21) -> - | G10: Contact phone: | J10: =IF('Facility Information'!L21=0,"-",'Facility Information'!L21) -> - | AN10: Results | AR10: Source documents | AZ10: by comparison | BH10: by indicator
A11: District: | D11: =IF('Facility Information'!F21=0,"-",'Facility Information'!F21) -> - | G11: Contact email: | J11: =IF('Facility Information'!M21=0,"-",'Facility Information'!M21) -> - | AO11: Completeness of Monthly report | AP11: % Cases with missing data | AQ11: Timeliness of reporting | AR11: =AR10&" available" -> Source documents available | AS11: =AR10&" Up-to-date" -> Source documents Up-to-date | AT11: =AR10&" standard issue" -> Source documents standard issue | AU11: System Assessment (% readiness) | BA11: A | BB11: B | BC11: C | BD11: D | BE11: E | BF11: F | BI11: No discrepancy | BJ11: Arithematic errors | BK11: Transcription errors | BL11: Some documents were missing when the report was prepared | BM11: Some documents are now missing | BN11: Other
A12: I. Completeness & Timeliness | K12: Please provide a comment on the results | AO12: =J15 -> - | AP12: =E26 -> - | AQ12: =J17 -> 0 | AR12: =H27 -> - | AS12: =I27 -> - | AT12: =J27 -> - | AU12: =COUNTIF(J112:J123,"Yes")/COUNTA(J112:J123) ->  | AZ12: 1.1 | BA12: =IF(ISERROR(IF(SEARCH("A",$G$39)>0,1,0))," ",IF(SEARCH("A",$G$39)>0,1,0)) ->  | BB12: =IF(ISERROR(IF(SEARCH("B",$G$39)>0,1,0))," ",IF(SEARCH("B",$G$39)>0,1,0)) ->  | BC12: =IF(ISERROR(IF(SEARCH("C",$G$39)>0,1,0))," ",IF(SEARCH("C",$G$39)>0,1,0)) ->  | BD12: =IF(ISERROR(IF(SEARCH("D",$G$39)>0,1,0))," ",IF(SEARCH("D",$G$39)>0,1,0)) ->  | BE12: =IF(ISERROR(IF(SEARCH("E",$G$39)>0,1,0))," ",IF(SEARCH("E",$G$39)>0,1,0)) ->  | BF12: =IF(ISERROR(IF(SEARCH("F",$G$39)>0,1,0))," ",IF(SEARCH("F",$G$39)>0,1,0)) ->  | BH12: =AO14 -> ANC 1st Visit | BI12: =SUM(BA12:BA14) -> 0 | BJ12: 0 | BK12: 0 | BL12: 0 | BM12: 0 | BN12: 0
A13: A. Completeness of HMIS Monthly Report | H13: Expected Cells | I13: Completed Cells | J13: Percent Complete | AN13: Verification factors | AP13: VF Monthly report | AQ13: VF HMIS | AZ13: 1.2 | BA13: =IF(ISERROR(IF(SEARCH("A",$H$39)>0,1,0))," ",IF(SEARCH("A",$H$39)>0,1,0)) ->  | BB13: =IF(ISERROR(IF(SEARCH("B",$H$39)>0,1,0))," ",IF(SEARCH("B",$H$39)>0,1,0)) ->  | BC13: =IF(ISERROR(IF(SEARCH("C",$H$39)>0,1,0))," ",IF(SEARCH("C",$H$39)>0,1,0)) ->  | BD13: =IF(ISERROR(IF(SEARCH("D",$H$39)>0,1,0))," ",IF(SEARCH("D",$H$39)>0,1,0)) ->  | BE13: =IF(ISERROR(IF(SEARCH("E",$H$39)>0,1,0))," ",IF(SEARCH("E",$H$39)>0,1,0)) ->  | BF13: =IF(ISERROR(IF(SEARCH("F",$H$39)>0,1,0))," ",IF(SEARCH("F",$H$39)>0,1,0)) ->  | BH13: =AO15 -> Outpatient visits | BI13: =SUM(BA15:BA17) -> 0 | BJ13: =SUM(BB15:BB17) -> 0 | BK13: 0 | BL13: 0 | BM13: 0 | BN13: 0
A14: Select the most recent completed and submitted monthly HMIS facility report. Calculate the number of cells expected to be complete on the monthly report (exclude cells for services not offered by the facility). Count the number of cells that are complete (blank, not zero) and calculate the percentage completeness for the monthly report. | AN14: indicator | AO14: =D33 -> ANC 1st Visit | AP14: =J37 -> - | AQ14: =J38 -> - | AZ14: 1.3 | BA14: =IF(ISERROR(IF(SEARCH("A",$I$39)>0,1,0))," ",IF(SEARCH("A",$I$39)>0,1,0)) ->  | BB14: =IF(ISERROR(IF(SEARCH("B",$I$39)>0,1,0))," ",IF(SEARCH("B",$I$39)>0,1,0)) ->  | BC14: =IF(ISERROR(IF(SEARCH("C",$I$39)>0,1,0))," ",IF(SEARCH("C",$I$39)>0,1,0)) ->  | BD14: =IF(ISERROR(IF(SEARCH("D",$I$39)>0,1,0))," ",IF(SEARCH("D",$I$39)>0,1,0)) ->  | BE14: =IF(ISERROR(IF(SEARCH("E",$I$39)>0,1,0))," ",IF(SEARCH("E",$I$39)>0,1,0)) ->  | BF14: =IF(ISERROR(IF(SEARCH("F",$I$39)>0,1,0))," ",IF(SEARCH("F",$I$39)>0,1,0)) ->  | BH14: =AO16 -> Number of confirmed malaria cases reported | BI14: =SUM(BA18:BA20) -> 0 | BJ14: 0 | BK14: 0 | BL14: 0 | BM14: 0 | BN14: 0
J15: =IF(ISERROR(I15/H15),"-",I15/H15) -> - | AO15: =D42 -> Outpatient visits | AP15: =J46 -> - | AQ15: =J47 -> - | AZ15: 2.1 | BA15: =IF(ISERROR(IF(SEARCH("A",$G$48)>0,1,0))," ",IF(SEARCH("A",$G$48)>0,1,0)) ->  | BB15: =IF(ISERROR(IF(SEARCH("B",$G$48)>0,1,0))," ",IF(SEARCH("B",$G$48)>0,1,0)) ->  | BC15: =IF(ISERROR(IF(SEARCH("C",$G$48)>0,1,0))," ",IF(SEARCH("C",$G$48)>0,1,0)) ->  | BD15: =IF(ISERROR(IF(SEARCH("D",$G$48)>0,1,0))," ",IF(SEARCH("D",$G$48)>0,1,0)) ->  | BE15: =IF(ISERROR(IF(SEARCH("E",$G$48)>0,1,0))," ",IF(SEARCH("E",$G$48)>0,1,0)) ->  | BF15: =IF(ISERROR(IF(SEARCH("F",$G$48)>0,1,0))," ",IF(SEARCH("F",$G$48)>0,1,0)) ->  | BH15: =AO17 -> 3rd dose DPT-containing vaccine | BI15: =SUM(BA21:BA23) -> 0 | BJ15: 0 | BK15: 0 | BL15: 0 | BM15: 0 | BN15: 0
A16: B. Timeliness of Submission of Monthly Report | F16: Monthly report: | G16: =IF(ISERROR(EDATE($J$7,-3)),"-",EDATE($J$7,-3)) -> - | H16: =IF(ISERROR(EDATE($J$7,-3)),"-",EDATE($J$7,-2)) -> - | I16: =IF(ISERROR(EDATE($J$7,-3)),"-",EDATE($J$7,-1)) -> - | AO16: =D51 -> Number of confirmed malaria cases reported | AP16: =J55 -> - | AQ16: =J56 -> - | AZ16: 2.2 | BA16: =IF(ISERROR(IF(SEARCH("A",$H$48)>0,1,0))," ",IF(SEARCH("A",$H$48)>0,1,0)) ->  | BB16: =IF(ISERROR(IF(SEARCH("B",$H$48)>0,1,0))," ",IF(SEARCH("B",$H$48)>0,1,0)) ->  | BC16: =IF(ISERROR(IF(SEARCH("C",$H$48)>0,1,0))," ",IF(SEARCH("C",$H$48)>0,1,0)) ->  | BD16: =IF(ISERROR(IF(SEARCH("D",$H$48)>0,1,0))," ",IF(SEARCH("D",$H$48)>0,1,0)) ->  | BE16: =IF(ISERROR(IF(SEARCH("E",$H$48)>0,1,0))," ",IF(SEARCH("E",$H$48)>0,1,0)) ->  | BF16: =IF(ISERROR(IF(SEARCH("F",$H$48)>0,1,0))," ",IF(SEARCH("F",$H$48)>0,1,0)) ->  | BH16: =AO18 -> Live births | BI16: =SUM(BA24:BA26) -> 0 | BJ16: 0 | BK16: 0 | BL16: 0 | BM16: 0 | BN16: 0
A17: Review the monthly reports from the past three months at the facility and in the HMIS database. Determine if the reports were submitted by the deadline of reporting | F17: Submitted by the deadline? (Y/N) | J17: =COUNTIF(G17:I17,"Yes")/3 -> 0 | AO17: =D60 -> 3rd dose DPT-containing vaccine | AP17: =J64 -> - | AQ17: =J65 -> - | AZ17: 2.3 | BA17: =IF(ISERROR(IF(SEARCH("A",$I$48)>0,1,0))," ",IF(SEARCH("A",$I$48)>0,1,0)) ->  | BB17: =IF(ISERROR(IF(SEARCH("B",$I$48)>0,1,0))," ",IF(SEARCH("B",$I$48)>0,1,0)) ->  | BC17: =IF(ISERROR(IF(SEARCH("C",$I$48)>0,1,0))," ",IF(SEARCH("C",$I$48)>0,1,0)) ->  | BD17: =IF(ISERROR(IF(SEARCH("D",$I$48)>0,1,0))," ",IF(SEARCH("D",$I$48)>0,1,0)) ->  | BE17: =IF(ISERROR(IF(SEARCH("E",$I$48)>0,1,0))," ",IF(SEARCH("E",$I$48)>0,1,0)) ->  | BF17: =IF(ISERROR(IF(SEARCH("F",$I$48)>0,1,0))," ",IF(SEARCH("F",$I$48)>0,1,0)) ->  | BI17: =SUM(BI12:BI16) -> 0 | BJ17: 0 | BK17: 0 | BL17: 0 | BM17: 0 | BN17: 0
A18: C. Data Element Completeness: Missing data: ask to see the Outpatient Department (OPD) register. Count the number of clients in the quarter (month 1 to month 3) with missing information for each of the following columns in the unit malaria case register. | F18: D. Source Document Completeness: Review the following data sources and determine if they are available, up-to-date (values up to the current day/period) and standard (the form prepared and distributed by the program). (Y/N) | AO18: =D69 -> Live births | AP18: =J73 -> - | AQ18: =J74 -> - | AZ18: 3.1 | BA18: =IF(ISERROR(IF(SEARCH("A",$G$57)>0,1,0))," ",IF(SEARCH("A",$G$57)>0,1,0)) ->  | BB18: =IF(ISERROR(IF(SEARCH("B",$G$57)>0,1,0))," ",IF(SEARCH("B",$G$57)>0,1,0)) ->  | BC18: =IF(ISERROR(IF(SEARCH("C",$G$57)>0,1,0))," ",IF(SEARCH("C",$G$57)>0,1,0)) ->  | BD18: =IF(ISERROR(IF(SEARCH("D",$G$57)>0,1,0))," ",IF(SEARCH("D",$G$57)>0,1,0)) ->  | BE18: =IF(ISERROR(IF(SEARCH("E",$G$57)>0,1,0))," ",IF(SEARCH("E",$G$57)>0,1,0)) ->  | BF18: =IF(ISERROR(IF(SEARCH("F",$G$57)>0,1,0))," ",IF(SEARCH("F",$G$57)>0,1,0)) -> 
A19: =Indicators!R47&" Data elements" -> DE_HMIS Data elements | D19: Number of cases (rows) with missing data | % | F19: =Indicators!S47&" Source Documents:" -> DS_HMIS Source Documents: | H19: Available | I19: Up-to-date | J19: Standard form | K19: Comments | AZ19: 3.2 | BA19: =IF(ISERROR(IF(SEARCH("A",$H$57)>0,1,0))," ",IF(SEARCH("A",$H$57)>0,1,0)) ->  | BB19: =IF(ISERROR(IF(SEARCH("B",$H$57)>0,1,0))," ",IF(SEARCH("B",$H$57)>0,1,0)) ->  | BC19: =IF(ISERROR(IF(SEARCH("C",$H$57)>0,1,0))," ",IF(SEARCH("C",$H$57)>0,1,0)) ->  | BD19: =IF(ISERROR(IF(SEARCH("D",$H$57)>0,1,0))," ",IF(SEARCH("D",$H$57)>0,1,0)) ->  | BE19: =IF(ISERROR(IF(SEARCH("E",$H$57)>0,1,0))," ",IF(SEARCH("E",$H$57)>0,1,0)) ->  | BF19: =IF(ISERROR(IF(SEARCH("F",$H$57)>0,1,0))," ",IF(SEARCH("F",$H$57)>0,1,0)) -> 
A20: 1. | B20: =Indicators!R49 -> Unique ID | E20: =IF(D20="","-",IF(ISERROR(D20/$D$27),"-",D20/$D$27)) -> - | F20: =Indicators!S49 -> OPD register | AN20: Cross checks | AZ20: 3.3 | BA20: =IF(ISERROR(IF(SEARCH("A",$I$57)>0,1,0))," ",IF(SEARCH("A",$I$57)>0,1,0)) ->  | BB20: =IF(ISERROR(IF(SEARCH("B",$I$57)>0,1,0))," ",IF(SEARCH("B",$I$57)>0,1,0)) ->  | BC20: =IF(ISERROR(IF(SEARCH("C",$I$57)>0,1,0))," ",IF(SEARCH("C",$I$57)>0,1,0)) ->  | BD20: =IF(ISERROR(IF(SEARCH("D",$I$57)>0,1,0))," ",IF(SEARCH("D",$I$57)>0,1,0)) ->  | BE20: =IF(ISERROR(IF(SEARCH("E",$I$57)>0,1,0))," ",IF(SEARCH("E",$I$57)>0,1,0)) ->  | BF20: =IF(ISERROR(IF(SEARCH("F",$I$57)>0,1,0))," ",IF(SEARCH("F",$I$57)>0,1,0)) -> 
A21: 2. | B21: =Indicators!R51 -> Visit date | E21: - | F21: =Indicators!S51 -> OPD register | AO21: =A80 -> A — Malaria case register : Laboratory register (quality target = 90%) | AP21: =J84 -> - | AR21: =AN20&" 1 & 2" -> Cross checks 1 & 2 | AZ21: 4.1 | BA21: =IF(ISERROR(IF(SEARCH("A",$G$66)>0,1,0))," ",IF(SEARCH("A",$G$66)>0,1,0)) ->  | BB21: =IF(ISERROR(IF(SEARCH("B",$G$66)>0,1,0))," ",IF(SEARCH("B",$G$66)>0,1,0)) ->  | BC21: =IF(ISERROR(IF(SEARCH("C",$G$66)>0,1,0))," ",IF(SEARCH("C",$G$66)>0,1,0)) ->  | BD21: =IF(ISERROR(IF(SEARCH("D",$G$66)>0,1,0))," ",IF(SEARCH("D",$G$66)>0,1,0)) ->  | BE21: =IF(ISERROR(IF(SEARCH("E",$G$66)>0,1,0))," ",IF(SEARCH("E",$G$66)>0,1,0)) ->  | BF21: =IF(ISERROR(IF(SEARCH("F",$G$66)>0,1,0))," ",IF(SEARCH("F",$G$66)>0,1,0)) -> 
A22: 3. | B22: =Indicators!R53 -> Client name | E22: - | F22: =Indicators!S53 -> OPD register | AO22: =A85 -> B — Immunization register : Vaccine stock registry (quality target = 90%) | AP22: =J89 -> - | AZ22: 4.2 | BA22: =IF(ISERROR(IF(SEARCH("A",$H$66)>0,1,0))," ",IF(SEARCH("A",$H$66)>0,1,0)) ->  | BB22: =IF(ISERROR(IF(SEARCH("B",$H$66)>0,1,0))," ",IF(SEARCH("B",$H$66)>0,1,0)) ->  | BC22: =IF(ISERROR(IF(SEARCH("C",$H$66)>0,1,0))," ",IF(SEARCH("C",$H$66)>0,1,0)) ->  | BD22: =IF(ISERROR(IF(SEARCH("D",$H$66)>0,1,0))," ",IF(SEARCH("D",$H$66)>0,1,0)) ->  | BE22: =IF(ISERROR(IF(SEARCH("E",$H$66)>0,1,0))," ",IF(SEARCH("E",$H$66)>0,1,0)) ->  | BF22: =IF(ISERROR(IF(SEARCH("F",$H$66)>0,1,0))," ",IF(SEARCH("F",$H$66)>0,1,0)) -> 
A23: 4. | B23: =Indicators!R55 -> Age | E23: - | F23: =Indicators!S55 -> OPD register | AO23: =A90 -> C — ANC Register : Vaccine stock management log (quality target: >=90%, <=110%) | AP23: =J95 -> - | AR23: ="Cross check 3" -> Cross check 3 | AZ23: 4.3 | BA23: =IF(ISERROR(IF(SEARCH("A",$I$66)>0,1,0))," ",IF(SEARCH("A",$I$66)>0,1,0)) ->  | BB23: =IF(ISERROR(IF(SEARCH("B",$I$66)>0,1,0))," ",IF(SEARCH("B",$I$66)>0,1,0)) ->  | BC23: =IF(ISERROR(IF(SEARCH("C",$I$66)>0,1,0))," ",IF(SEARCH("C",$I$66)>0,1,0)) ->  | BD23: =IF(ISERROR(IF(SEARCH("D",$I$66)>0,1,0))," ",IF(SEARCH("D",$I$66)>0,1,0)) ->  | BE23: =IF(ISERROR(IF(SEARCH("E",$I$66)>0,1,0))," ",IF(SEARCH("E",$I$66)>0,1,0)) ->  | BF23: =IF(ISERROR(IF(SEARCH("F",$I$66)>0,1,0))," ",IF(SEARCH("F",$I$66)>0,1,0)) -> 
A24: 5. | B24: =Indicators!R57 -> Diagnosis (any type) | E24: - | F24: =Indicators!S57 -> OPD register | AZ24: 5.1 | BA24: =IF(ISERROR(IF(SEARCH("A",$G$75)>0,1,0))," ",IF(SEARCH("A",$G$75)>0,1,0)) ->  | BB24: =IF(ISERROR(IF(SEARCH("B",$G$75)>0,1,0))," ",IF(SEARCH("B",$G$75)>0,1,0)) ->  | BC24: =IF(ISERROR(IF(SEARCH("C",$G$75)>0,1,0))," ",IF(SEARCH("C",$G$75)>0,1,0)) ->  | BD24: =IF(ISERROR(IF(SEARCH("D",$G$75)>0,1,0))," ",IF(SEARCH("D",$G$75)>0,1,0)) ->  | BE24: =IF(ISERROR(IF(SEARCH("E",$G$75)>0,1,0))," ",IF(SEARCH("E",$G$75)>0,1,0)) ->  | BF24: =IF(ISERROR(IF(SEARCH("F",$G$75)>0,1,0))," ",IF(SEARCH("F",$G$75)>0,1,0)) -> 
A25: 6. | B25: =Indicators!R59 -> Treatment given | E25: - | F25: =Indicators!S59 -> OPD register | AN25: ="Consistency over time: "&H99&": "&H100 -> Consistency over time: Malaria: Number of confirmed malaria cases reported | AZ25: 5.2 | BA25: =IF(ISERROR(IF(SEARCH("A",$H$75)>0,1,0))," ",IF(SEARCH("A",$H$75)>0,1,0)) ->  | BB25: =IF(ISERROR(IF(SEARCH("B",$H$75)>0,1,0))," ",IF(SEARCH("B",$H$75)>0,1,0)) ->  | BC25: =IF(ISERROR(IF(SEARCH("C",$H$75)>0,1,0))," ",IF(SEARCH("C",$H$75)>0,1,0)) ->  | BD25: =IF(ISERROR(IF(SEARCH("D",$H$75)>0,1,0))," ",IF(SEARCH("D",$H$75)>0,1,0)) ->  | BE25: =IF(ISERROR(IF(SEARCH("E",$H$75)>0,1,0))," ",IF(SEARCH("E",$H$75)>0,1,0)) ->  | BF25: =IF(ISERROR(IF(SEARCH("F",$H$75)>0,1,0))," ",IF(SEARCH("F",$H$75)>0,1,0)) -> 
A26: 7. | B26: Number of entries missing data in at least 1 of the 6 columns listed above | E26: - | F26: =Indicators!S61 -> OPD register | AN26: =F106 -> - | AO26: - | AP26: - | AQ26: - | AZ26: 5.3 | BA26: =IF(ISERROR(IF(SEARCH("A",$I$75)>0,1,0))," ",IF(SEARCH("A",$I$75)>0,1,0)) ->  | BB26: =IF(ISERROR(IF(SEARCH("B",$I$75)>0,1,0))," ",IF(SEARCH("B",$I$75)>0,1,0)) ->  | BC26: =IF(ISERROR(IF(SEARCH("C",$I$75)>0,1,0))," ",IF(SEARCH("C",$I$75)>0,1,0)) ->  | BD26: =IF(ISERROR(IF(SEARCH("D",$I$75)>0,1,0))," ",IF(SEARCH("D",$I$75)>0,1,0)) ->  | BE26: =IF(ISERROR(IF(SEARCH("E",$I$75)>0,1,0))," ",IF(SEARCH("E",$I$75)>0,1,0)) ->  | BF26: =IF(ISERROR(IF(SEARCH("F",$I$75)>0,1,0))," ",IF(SEARCH("F",$I$75)>0,1,0)) -> 
A27: 8. | B27: Total number of entries for the period | F27: % Complete | H27: =IF(ISERROR(COUNTIF(H20:H26,"Yes")/COUNTA(H20:H26)),"-",COUNTIF(H20:H26,"Yes")/COUNTA(H20:H26)) -> - | I27: =IF(ISERROR(COUNTIF(I20:I26,"Yes")/COUNTA(I20:I26)),"-",COUNTIF(I20:I26,"Yes")/COUNTA(I20:I26)) -> - | J27: =IF(ISERROR(COUNTIF(J20:J26,"Yes")/COUNTA(J20:J26)),"-",COUNTIF(J20:J26,"Yes")/COUNTA(J20:J26)) -> - | AN27: 0 | AO27: 0 | AP27: 0 | AQ27: 0 | BA27: =SUM(BA12:BA26) -> 0 | BB27: 0 | BC27: 0 | BD27: 0 | BE27: 0 | BF27: 0
A28: II. Data Accuracy
A29: Recount value of indicators from the malaria case register and compare the value to the one reported by the facility for the selected months
B30: ="Indicators" -> Indicators | G30: Month 1 | H30: Month 2 | I30: Month 3 | J30: 3-month total
G31: =IF(ISERROR(EDATE($J$7,-3)),"-",EDATE($J$7,-3)) -> - | H31: =IF(ISERROR(EDATE($J$7,-3)),"-",EDATE($J$7,-2)) -> - | I31: =IF(ISERROR(EDATE($J$7,-3)),"-",EDATE($J$7,-1)) -> -
A32: 1. | B32: Select indicator type: | D32: =IF(Indicators!$R$13=0,"-",Indicators!$R$13) -> Maternal_Health
B33: Select indicator: | D33: =IF(Indicators!$S$13=0,"-",Indicators!$S$13) -> ANC 1st Visit | G33: ="quality target: >="&TEXT(100%-Indicators!$V$13,"0%")&", <="&TEXT(100%+Indicators!$V$13,"0%") -> quality target: >=90%, <=110%
B34: Source document re-count | J34: =IF(ISERROR(SUM(G34:I34)),"-",SUM(G34:I34)) -> 0
B35: HMIS monthly report value | J35: =IF(ISERROR(SUM(G35:I35)),"-",SUM(G35:I35)) -> 0
B36: DHIS2 monthly value | J36: =IF(ISERROR(SUM(G36:I36)),"-",SUM(G36:I36)) -> 0
B37: Monthly Report Verification factor(VF): | G37: =IF(ISERROR(G34/G35),"-",G34/G35) -> - | H37: =IF(ISERROR(H34/H35),"-",H34/H35) -> - | I37: =IF(ISERROR(I34/I35),"-",I34/I35) -> - | J37: =IF(ISERROR(AVERAGE(G37:I37)),"-",AVERAGE(G37:I37)) -> -
B38: DHIS 2 Verification factor(VF): | G38: =IF(ISERROR(G34/G36),"-",G34/G36) -> - | H38: =IF(ISERROR(H34/H36),"-",H34/H36) -> - | I38: =IF(ISERROR(I34/I36),"-",I34/I36) -> - | J38: =IF(ISERROR(AVERAGE(G38:I38)),"-",AVERAGE(G38:I38)) -> -
B39: Reasons for discrepancy (use code below - mark all that apply)
B40: Other reason (specify)
A41: 2. | B41: Select indicator type: | D41: =IF(Indicators!$R$16=0,"-",Indicators!$R$16) -> HMIS
B42: Select indicator: | D42: =IF(Indicators!$S$16=0,"-",Indicators!$S$16) -> Outpatient visits | G42: ="quality target: >="&TEXT(100%-Indicators!$V$16,"0%")&", <="&TEXT(100%+Indicators!$V$16,"0%") -> quality target: >=90%, <=110%
B43: Source document re-count | J43: =IF(ISERROR(SUM(G43:I43)),"-",SUM(G43:I43)) -> 0
B44: HMIS monthly report value | J44: =IF(ISERROR(SUM(G44:I44)),"-",SUM(G44:I44)) -> 0
B45: DHIS2 monthly value | J45: =IF(ISERROR(SUM(G45:I45)),"-",SUM(G45:I45)) -> 0
B46: Monthly Report Verification factor(VF): | G46: =IF(ISERROR(G43/G44),"-",G43/G44) -> - | H46: =IF(ISERROR(H43/H44),"-",H43/H44) -> - | I46: =IF(ISERROR(I43/I44),"-",I43/I44) -> - | J46: =IF(ISERROR(AVERAGE(G46:I46)),"-",AVERAGE(G46:I46)) -> -
B47: DHIS 2 Verification factor(VF): | G47: =IF(ISERROR(G43/G45),"-",G43/G45) -> - | H47: =IF(ISERROR(H43/H45),"-",H43/H45) -> - | I47: =IF(ISERROR(I43/I45),"-",I43/I45) -> - | J47: =IF(ISERROR(AVERAGE(G47:I47)),"-",AVERAGE(G47:I47)) -> -
B48: Reasons for discrepancy (use code below - mark all that apply)
B49: Other reason (specify)
A50: 3. | B50: Select indicator type: | D50: =IF(Indicators!$R$19=0,"-",Indicators!$R$19) -> Malaria
B51: Select indicator: | D51: =IF(Indicators!$S$19=0,"-",Indicators!$S$19) -> Number of confirmed malaria cases reported | G51: ="quality target: >="&TEXT(100%-Indicators!$V$19,"0%")&", <="&TEXT(100%+Indicators!$V$19,"0%") -> quality target: >=85%, <=115%
B52: Source document re-count | J52: =IF(ISERROR(SUM(G52:I52)),"-",SUM(G52:I52)) -> 0
B53: HMIS monthly report value | J53: =IF(ISERROR(SUM(G53:I53)),"-",SUM(G53:I53)) -> 0
B54: DHIS2 monthly value | J54: =IF(ISERROR(SUM(G54:I54)),"-",SUM(G54:I54)) -> 0
B55: Monthly Report Verification factor(VF): | G55: =IF(ISERROR(G52/G53),"-",G52/G53) -> - | H55: =IF(ISERROR(H52/H53),"-",H52/H53) -> - | I55: =IF(ISERROR(I52/I53),"-",I52/I53) -> - | J55: =IF(ISERROR(AVERAGE(G55:I55)),"-",AVERAGE(G55:I55)) -> -
B56: DHIS 2 Verification factor(VF): | G56: =IF(ISERROR(G52/G54),"-",G52/G54) -> - | H56: =IF(ISERROR(H52/H54),"-",H52/H54) -> - | I56: =IF(ISERROR(I52/I54),"-",I52/I54) -> - | J56: =IF(ISERROR(AVERAGE(G56:I56)),"-",AVERAGE(G56:I56)) -> -
B57: Reasons for discrepancy (use code below - mark all that apply)
B58: Other reason (specify)
A59: 4. | B59: Select indicator type: | D59: =IF(Indicators!$R$22=0,"-",Indicators!$R$22) -> Immunization
B60: Select indicator: | D60: =IF(Indicators!$S$22=0,"-",Indicators!$S$22) -> 3rd dose DPT-containing vaccine | G60: ="quality target: >="&TEXT(100%-Indicators!$V$22,"0%")&", <="&TEXT(100%+Indicators!$V$22,"0%") -> quality target: >=80%, <=120%
B61: Source document re-count | J61: =IF(ISERROR(SUM(G61:I61)),"-",SUM(G61:I61)) -> 0
B62: HMIS monthly report value | J62: =IF(ISERROR(SUM(G62:I62)),"-",SUM(G62:I62)) -> 0
B63: DHIS2 monthly value | J63: =IF(ISERROR(SUM(G63:I63)),"-",SUM(G63:I63)) -> 0
B64: Monthly Report Verification factor(VF): | G64: =IF(ISERROR(G61/G62),"-",G61/G62) -> - | H64: =IF(ISERROR(H61/H62),"-",H61/H62) -> - | I64: =IF(ISERROR(I61/I62),"-",I61/I62) -> - | J64: =IF(ISERROR(AVERAGE(G64:I64)),"-",AVERAGE(G64:I64)) -> -
B65: DHIS 2 Verification factor(VF): | G65: =IF(ISERROR(G61/G63),"-",G61/G63) -> - | H65: =IF(ISERROR(H61/H63),"-",H61/H63) -> - | I65: =IF(ISERROR(I61/I63),"-",I61/I63) -> - | J65: =IF(ISERROR(AVERAGE(G65:I65)),"-",AVERAGE(G65:I65)) -> -
B66: Reasons for discrepancy (use code below - mark all that apply)
B67: Other reason (specify)
A68: 5. | B68: Select indicator type: | D68: =IF(Indicators!$R$25=0,"-",Indicators!$R$25) -> HMIS
B69: Select indicator: | D69: =IF(Indicators!$S$25=0,"-",Indicators!$S$25) -> Live births | G69: ="quality target: >="&TEXT(100%-Indicators!$V$25,"0%")&", <="&TEXT(100%+Indicators!$V$25,"0%") -> quality target: >=75%, <=125%
B70: Source document re-count | J70: =IF(ISERROR(SUM(G70:I70)),"-",SUM(G70:I70)) -> 0
B71: HMIS monthly report value | J71: =IF(ISERROR(SUM(G71:I71)),"-",SUM(G71:I71)) -> 0
B72: DHIS2 monthly value | J72: =IF(ISERROR(SUM(G72:I72)),"-",SUM(G72:I72)) -> 0
B73: Monthly Report Verification factor(VF): | G73: =IF(ISERROR(G70/G71),"-",G70/G71) -> - | H73: =IF(ISERROR(H70/H71),"-",H70/H71) -> - | I73: =IF(ISERROR(I70/I71),"-",I70/I71) -> - | J73: =IF(ISERROR(AVERAGE(G73:I73)),"-",AVERAGE(G73:I73)) -> -
B74: DHIS 2 Verification factor(VF): | G74: =IF(ISERROR(G70/G72),"-",G70/G72) -> - | H74: =IF(ISERROR(H70/H72),"-",H70/H72) -> - | I74: =IF(ISERROR(I70/I72),"-",I70/I72) -> - | J74: =IF(ISERROR(AVERAGE(G74:I74)),"-",AVERAGE(G74:I74)) -> -
B75: Reasons for discrepancy (use code below - mark all that apply)
B76: Other reason (specify)
A77: Reasons for discrepancy:
A78: a) no discrepancy, b) arithmetic errors, c) transcription errors, d) some documents were missing when the report was prepared, e) some documents are now missing, f) other (specify)
A79: III. Cross Checks | K79: Comments
A80: ="A — "&Indicators!R31&" : "&Indicators!S31&" (quality target = "&TEXT(100%-Indicators!$V$31,"0%")&")" -> A — Malaria case register : Laboratory register (quality target = 90%)
A81: ="Randomly select 10 patients who have been treated in the period at the facility from the "&Indicators!R31&"." -> Randomly select 10 patients who have been treated in the period at the facility from the Malaria case register.
A82: ="1. Number of cases sampled from the "&Indicators!R31&"." -> 1. Number of cases sampled from the Malaria case register.
A83: ="2. How many of the patients selected had a corresponding entry with matching information for the patients in the "&Indicators!S31&"?" -> 2. How many of the patients selected had a corresponding entry with matching information for the patients in the Laboratory register?
A84: =Indicators!S31&" reliability rate:" -> Laboratory register reliability rate: | J84: =IF(ISERROR(J83/J82),"-",J83/J82) -> -
A85: ="B — "&Indicators!R34&" : "&Indicators!S34&" (quality target = "&TEXT(100%-Indicators!$V$34,"0%")&")" -> B — Immunization register : Vaccine stock registry (quality target = 90%)
A86: ="Randomly select 10 cases who have been treated in the period at the facility from the "&Indicators!R34&"." -> Randomly select 10 cases who have been treated in the period at the facility from the Immunization register.
A87: ="1. Number of cases sampled from the "&Indicators!R34&"." -> 1. Number of cases sampled from the Immunization register.
A88: ="2. How many of the patients selected had a corresponding entry with matching information for the patients in the "&Indicators!S34&"?" -> 2. How many of the patients selected had a corresponding entry with matching information for the patients in the Vaccine stock registry?
A89: =Indicators!S34&" reliability rate:" -> Vaccine stock registry reliability rate: | J89: =IF(ISERROR(J88/J87),"-",J88/J87) -> -
A90: ="C — "&Indicators!R37&" : "&Indicators!S37&" (quality target: >="&TEXT(100%-Indicators!$V$38,"0%")&", <="&TEXT(100%+Indicators!$V$38,"0%")&")" -> C — ANC Register : Vaccine stock management log (quality target: >=90%, <=110%)
A91: Number of units (e.g. doses of medication/vaccine, other commodities) in stock at the site at the beginning of the reporting period (initial in stock) | I91: a.
A92: Number of units received by the site during the reporting period | G92: b. | I92: b.
A93: Number of units in stock at the site at the end of the reporting period (closing in stock) | G93: c. | I93: c.
A94: Number of units used (e.g. given to patients) by the site during the reporting period | G94: d. | I94: d.
A95: Verification ratio: (d/[a+b-c]): | J95: =IF(ISERROR(J94/(J91+J92-J93)),"-",J94/(J91+J92-J93)) -> -
A96: Reasons for discrepancy (enter code at right):
A97: a) no discrepancy, b) arithmetic errors, c) transcription errors, d) drugs stock management forms not up to date, e) some documents are missing, f) stock out of treatment drugs,
A98: g) other (specify)
A99: ="IV. Consistency Checks - Consistency of data elements over time Quality target = >="&TEXT(100%-Indicators!$V$42,"0%")&", <="&TEXT(100%+Indicators!$V$42,"0%")&")" -> IV. Consistency Checks - Consistency of data elements over time Quality target = >=80%, <=120%) | F99: Program Area -> | H99: =Indicators!$B$42 -> Malaria
A100: IV.a: Annual consistency - select the indicator on the Indicators tab. | F100: Indicator -> | H100: =Indicators!$E$42 -> Number of confirmed malaria cases reported
A101: 1. What is the current month value
A102: 2. What was the value of the indicator for the current month one year ago
A103: Consistency ratio: Divide the value of the current month by the value from the same month last year. If the value is more than 20% different (i.e. <0.8 or >1.2) this could indicate a data quality problem. | J103: =IF(ISERROR(J101/J102),"-",J101/J102) -> -
A104: IV.b Month-to-month consistency:
A105: Enter values for the selected indicator for the current month, and for the three preceding months. Calculate consistency: Current month/average of Month1-Month3. If the value is more than 20% different (i.e. <0.8 or >1.2) this could indicate a data quality problem. | F105: Month 1 | G105: Month 2 | H105: Month 3 | I105: Last month | J105: Consistency
E106: month | F106: =IF(ISERROR(EDATE($J$7,-4)),"-",EDATE($J$7,-4)) -> - | G106: =IF(ISERROR(EDATE($J$7,-3)),"-",EDATE($J$7,-3)) -> - | H106: =IF(ISERROR(EDATE($J$7,-3)),"-",EDATE($J$7,-2)) -> - | I106: =IF(ISERROR(EDATE($J$7,-3)),"-",EDATE($J$7,-1)) -> - | J106: ratio
E107: value | J107: =IF(ISERROR(I107/AVERAGE(F107:H107)),"-",I107/AVERAGE(F107:H107)) -> -
A108: Reasons for discrepancy (enter code at right):
A109: a) no discrepancy, b) arithmetic errors, c) transcription errors, d) vaccine stock management forms not up to date, e) some documents are missing, f) vaccine / drugs stock out,
A110: g) other (specify)
A111: V. System Assessment - Respond Yes or No for the following questions. | J111: Y/N
A112: V.1 | B112: Is there a designated person to enter data and compile reports?
A113: V.2 | B113: Is there a designated person to review the quality of compiled data prior to submission to the next level?
A114: V.3 | B114: Does the health facility have written guidelines on data collection and reporting for HMIS?
A115: V.4 | B115: Does the health facility have a reserve stock of blank registers or reporting forms?
A116: V.5 | B116: Has this health facility experienced any stock out of registers or reporting forms (since last visit)?
A117: V.6 | B117: Is a standardized OPD register being used to record information on patients seeking treatment (not improvised forms)?
A118: V.7 | B118: Can a patient's diagnosis and treatment history be easily found in the facility records?
A119: V.8 | B119: Are data archives properly maintained with historical patient level (registers) and aggregate (monthly report) results?
A120: V.9 | B120: Does the facility maintain accurate demographic information for the catchment area (that is, a record current population and the number of births and deaths)?
A121: V.10 | B121: Does the facility have established targets to monitor progress towards goals and objectives for prevention and treatment?
A122: V.11 | B122: Does the facility have an up-to-date display (for example, a chart on the wall) of the number of cases diagnosed and treated by reporting period for the year?
A123: V.12 | B123: Is there a chart of disease incidence by month displayed at the facility?
A124: Data Quality Improvement Plan for the Health Facility
A125: Please list the primary gaps or weaknesses in the data management system at the facility. What are the threats , or potential threats, to data quality ? For each item cited, please include action points that the facility can implement to strengthen the data management at the facility. Please be realistic in your recommendations. Also include the responsible staff and the date by which the intervention should be completed.
B126: Identified Weaknesses | E126: Description of Action Point | H126: Responsible(s) | J126: Time Line | K126: Comments
A127: 1
A128: 2
A129: 3
A130: 4
A132: HMIS Health Facility Supervision Data Quality Dashboard

Sheet Health Facility 9 (hidden)
A1: National Health Management Information System (HMIS) | H1: WHO - 2020 | M1: Go back to facility information tab
A2: Routine Supervision Data Quality Checklist | M2: Go to Dashboard
A3: Routine Supervision Data Quality Checklist | M3: Go to Dashboard
A4: Routine Supervision Data Quality Checklist | M4: Go to Dashboard
A5: Routine Supervision Data Quality Checklist | M5: Go to Dashboard
A6: Routine Supervision Data Quality Checklist | M6: Go to Dashboard
A7: Health facility name: | D7: =IF('Facility Information'!D22=0,"-",'Facility Information'!D22) -> - | G7: Date of Supervision: | J7: =IF('Facility Information'!J22=0,"-",'Facility Information'!J22) -> - | M7: Go to indicators
A8: Facility type: | D8: =IF('Facility Information'!H22=0,"-",'Facility Information'!H22) -> - | G8: Reporting period(s) verified (months): | J8: =IF(ISERROR(TEXT(EDATE(J7,-3),"mmm-yy")&", "&TEXT(EDATE(J7,-2),"mmm-yy")&", "&TEXT(EDATE(J7,-1),"mmm-yy")),"-",TEXT(EDATE(J7,-3),"mmm-yy")&", "&TEXT(EDATE(J7,-2),"mmm-yy")&", "&TEXT(EDATE(J7,-1),"mmm-yy")) -> -
A9: Town/Village: | D9: =IF('Facility Information'!E22=0,"-",'Facility Information'!E22) -> - | G9: Supervison team lead: | J9: =IF('Facility Information'!K22=0,"-",'Facility Information'!K22) -> - | AO9: Reporting performance & Readiness to provide quality data | AZ9: ="Reasons for discrepancy, by indicator" -> Reasons for discrepancy, by indicator
A10: Region: | D10: =IF('Facility Information'!G22=0,"-",'Facility Information'!G22) -> - | G10: Contact phone: | J10: =IF('Facility Information'!L22=0,"-",'Facility Information'!L22) -> - | AN10: Results | AR10: Source documents | AZ10: by comparison | BH10: by indicator
A11: District: | D11: =IF('Facility Information'!F22=0,"-",'Facility Information'!F22) -> - | G11: Contact email: | J11: =IF('Facility Information'!M22=0,"-",'Facility Information'!M22) -> - | AO11: Completeness of Monthly report | AP11: % Cases with missing data | AQ11: Timeliness of reporting | AR11: =AR10&" available" -> Source documents available | AS11: =AR10&" Up-to-date" -> Source documents Up-to-date | AT11: =AR10&" standard issue" -> Source documents standard issue | AU11: System Assessment (% readiness) | BA11: A | BB11: B | BC11: C | BD11: D | BE11: E | BF11: F | BI11: No discrepancy | BJ11: Arithematic errors | BK11: Transcription errors | BL11: Some documents were missing when the report was prepared | BM11: Some documents are now missing | BN11: Other
A12: I. Completeness & Timeliness | K12: Please provide a comment on the results | AO12: =J15 -> - | AP12: =E26 -> - | AQ12: =J17 -> 0 | AR12: =H27 -> - | AS12: =I27 -> - | AT12: =J27 -> - | AU12: =COUNTIF(J112:J123,"Yes")/COUNTA(J112:J123) ->  | AZ12: 1.1 | BA12: =IF(ISERROR(IF(SEARCH("A",$G$39)>0,1,0))," ",IF(SEARCH("A",$G$39)>0,1,0)) ->  | BB12: =IF(ISERROR(IF(SEARCH("B",$G$39)>0,1,0))," ",IF(SEARCH("B",$G$39)>0,1,0)) ->  | BC12: =IF(ISERROR(IF(SEARCH("C",$G$39)>0,1,0))," ",IF(SEARCH("C",$G$39)>0,1,0)) ->  | BD12: =IF(ISERROR(IF(SEARCH("D",$G$39)>0,1,0))," ",IF(SEARCH("D",$G$39)>0,1,0)) ->  | BE12: =IF(ISERROR(IF(SEARCH("E",$G$39)>0,1,0))," ",IF(SEARCH("E",$G$39)>0,1,0)) ->  | BF12: =IF(ISERROR(IF(SEARCH("F",$G$39)>0,1,0))," ",IF(SEARCH("F",$G$39)>0,1,0)) ->  | BH12: =AO14 -> ANC 1st Visit | BI12: =SUM(BA12:BA14) -> 0 | BJ12: 0 | BK12: 0 | BL12: 0 | BM12: 0 | BN12: 0
A13: A. Completeness of HMIS Monthly Report | H13: Expected Cells | I13: Completed Cells | J13: Percent Complete | AN13: Verification factors | AP13: VF Monthly report | AQ13: VF HMIS | AZ13: 1.2 | BA13: =IF(ISERROR(IF(SEARCH("A",$H$39)>0,1,0))," ",IF(SEARCH("A",$H$39)>0,1,0)) ->  | BB13: =IF(ISERROR(IF(SEARCH("B",$H$39)>0,1,0))," ",IF(SEARCH("B",$H$39)>0,1,0)) ->  | BC13: =IF(ISERROR(IF(SEARCH("C",$H$39)>0,1,0))," ",IF(SEARCH("C",$H$39)>0,1,0)) ->  | BD13: =IF(ISERROR(IF(SEARCH("D",$H$39)>0,1,0))," ",IF(SEARCH("D",$H$39)>0,1,0)) ->  | BE13: =IF(ISERROR(IF(SEARCH("E",$H$39)>0,1,0))," ",IF(SEARCH("E",$H$39)>0,1,0)) ->  | BF13: =IF(ISERROR(IF(SEARCH("F",$H$39)>0,1,0))," ",IF(SEARCH("F",$H$39)>0,1,0)) ->  | BH13: =AO15 -> Outpatient visits | BI13: =SUM(BA15:BA17) -> 0 | BJ13: =SUM(BB15:BB17) -> 0 | BK13: 0 | BL13: 0 | BM13: 0 | BN13: 0
A14: Select the most recent completed and submitted monthly HMIS facility report. Calculate the number of cells expected to be complete on the monthly report (exclude cells for services not offered by the facility). Count the number of cells that are complete (blank, not zero) and calculate the percentage completeness for the monthly report. | AN14: indicator | AO14: =D33 -> ANC 1st Visit | AP14: =J37 -> - | AQ14: =J38 -> - | AZ14: 1.3 | BA14: =IF(ISERROR(IF(SEARCH("A",$I$39)>0,1,0))," ",IF(SEARCH("A",$I$39)>0,1,0)) ->  | BB14: =IF(ISERROR(IF(SEARCH("B",$I$39)>0,1,0))," ",IF(SEARCH("B",$I$39)>0,1,0)) ->  | BC14: =IF(ISERROR(IF(SEARCH("C",$I$39)>0,1,0))," ",IF(SEARCH("C",$I$39)>0,1,0)) ->  | BD14: =IF(ISERROR(IF(SEARCH("D",$I$39)>0,1,0))," ",IF(SEARCH("D",$I$39)>0,1,0)) ->  | BE14: =IF(ISERROR(IF(SEARCH("E",$I$39)>0,1,0))," ",IF(SEARCH("E",$I$39)>0,1,0)) ->  | BF14: =IF(ISERROR(IF(SEARCH("F",$I$39)>0,1,0))," ",IF(SEARCH("F",$I$39)>0,1,0)) ->  | BH14: =AO16 -> Number of confirmed malaria cases reported | BI14: =SUM(BA18:BA20) -> 0 | BJ14: 0 | BK14: 0 | BL14: 0 | BM14: 0 | BN14: 0
J15: =IF(ISERROR(I15/H15),"-",I15/H15) -> - | AO15: =D42 -> Outpatient visits | AP15: =J46 -> - | AQ15: =J47 -> - | AZ15: 2.1 | BA15: =IF(ISERROR(IF(SEARCH("A",$G$48)>0,1,0))," ",IF(SEARCH("A",$G$48)>0,1,0)) ->  | BB15: =IF(ISERROR(IF(SEARCH("B",$G$48)>0,1,0))," ",IF(SEARCH("B",$G$48)>0,1,0)) ->  | BC15: =IF(ISERROR(IF(SEARCH("C",$G$48)>0,1,0))," ",IF(SEARCH("C",$G$48)>0,1,0)) ->  | BD15: =IF(ISERROR(IF(SEARCH("D",$G$48)>0,1,0))," ",IF(SEARCH("D",$G$48)>0,1,0)) ->  | BE15: =IF(ISERROR(IF(SEARCH("E",$G$48)>0,1,0))," ",IF(SEARCH("E",$G$48)>0,1,0)) ->  | BF15: =IF(ISERROR(IF(SEARCH("F",$G$48)>0,1,0))," ",IF(SEARCH("F",$G$48)>0,1,0)) ->  | BH15: =AO17 -> 3rd dose DPT-containing vaccine | BI15: =SUM(BA21:BA23) -> 0 | BJ15: 0 | BK15: 0 | BL15: 0 | BM15: 0 | BN15: 0
A16: B. Timeliness of Submission of Monthly Report | F16: Monthly report: | G16: =IF(ISERROR(EDATE($J$7,-3)),"-",EDATE($J$7,-3)) -> - | H16: =IF(ISERROR(EDATE($J$7,-3)),"-",EDATE($J$7,-2)) -> - | I16: =IF(ISERROR(EDATE($J$7,-3)),"-",EDATE($J$7,-1)) -> - | AO16: =D51 -> Number of confirmed malaria cases reported | AP16: =J55 -> - | AQ16: =J56 -> - | AZ16: 2.2 | BA16: =IF(ISERROR(IF(SEARCH("A",$H$48)>0,1,0))," ",IF(SEARCH("A",$H$48)>0,1,0)) ->  | BB16: =IF(ISERROR(IF(SEARCH("B",$H$48)>0,1,0))," ",IF(SEARCH("B",$H$48)>0,1,0)) ->  | BC16: =IF(ISERROR(IF(SEARCH("C",$H$48)>0,1,0))," ",IF(SEARCH("C",$H$48)>0,1,0)) ->  | BD16: =IF(ISERROR(IF(SEARCH("D",$H$48)>0,1,0))," ",IF(SEARCH("D",$H$48)>0,1,0)) ->  | BE16: =IF(ISERROR(IF(SEARCH("E",$H$48)>0,1,0))," ",IF(SEARCH("E",$H$48)>0,1,0)) ->  | BF16: =IF(ISERROR(IF(SEARCH("F",$H$48)>0,1,0))," ",IF(SEARCH("F",$H$48)>0,1,0)) ->  | BH16: =AO18 -> Live births | BI16: =SUM(BA24:BA26) -> 0 | BJ16: 0 | BK16: 0 | BL16: 0 | BM16: 0 | BN16: 0
A17: Review the monthly reports from the past three months at the facility and in the HMIS database. Determine if the reports were submitted by the deadline of reporting | F17: Submitted by the deadline? (Y/N) | J17: =COUNTIF(G17:I17,"Yes")/3 -> 0 | AO17: =D60 -> 3rd dose DPT-containing vaccine | AP17: =J64 -> - | AQ17: =J65 -> - | AZ17: 2.3 | BA17: =IF(ISERROR(IF(SEARCH("A",$I$48)>0,1,0))," ",IF(SEARCH("A",$I$48)>0,1,0)) ->  | BB17: =IF(ISERROR(IF(SEARCH("B",$I$48)>0,1,0))," ",IF(SEARCH("B",$I$48)>0,1,0)) ->  | BC17: =IF(ISERROR(IF(SEARCH("C",$I$48)>0,1,0))," ",IF(SEARCH("C",$I$48)>0,1,0)) ->  | BD17: =IF(ISERROR(IF(SEARCH("D",$I$48)>0,1,0))," ",IF(SEARCH("D",$I$48)>0,1,0)) ->  | BE17: =IF(ISERROR(IF(SEARCH("E",$I$48)>0,1,0))," ",IF(SEARCH("E",$I$48)>0,1,0)) ->  | BF17: =IF(ISERROR(IF(SEARCH("F",$I$48)>0,1,0))," ",IF(SEARCH("F",$I$48)>0,1,0)) ->  | BI17: =SUM(BI12:BI16) -> 0 | BJ17: 0 | BK17: 0 | BL17: 0 | BM17: 0 | BN17: 0
A18: C. Data Element Completeness: Missing data: ask to see the Outpatient Department (OPD) register. Count the number of clients in the quarter (month 1 to month 3) with missing information for each of the following columns in the unit malaria case register. | F18: D. Source Document Completeness: Review the following data sources and determine if they are available, up-to-date (values up to the current day/period) and standard (the form prepared and distributed by the program). (Y/N) | AO18: =D69 -> Live births | AP18: =J73 -> - | AQ18: =J74 -> - | AZ18: 3.1 | BA18: =IF(ISERROR(IF(SEARCH("A",$G$57)>0,1,0))," ",IF(SEARCH("A",$G$57)>0,1,0)) ->  | BB18: =IF(ISERROR(IF(SEARCH("B",$G$57)>0,1,0))," ",IF(SEARCH("B",$G$57)>0,1,0)) ->  | BC18: =IF(ISERROR(IF(SEARCH("C",$G$57)>0,1,0))," ",IF(SEARCH("C",$G$57)>0,1,0)) ->  | BD18: =IF(ISERROR(IF(SEARCH("D",$G$57)>0,1,0))," ",IF(SEARCH("D",$G$57)>0,1,0)) ->  | BE18: =IF(ISERROR(IF(SEARCH("E",$G$57)>0,1,0))," ",IF(SEARCH("E",$G$57)>0,1,0)) ->  | BF18: =IF(ISERROR(IF(SEARCH("F",$G$57)>0,1,0))," ",IF(SEARCH("F",$G$57)>0,1,0)) -> 
A19: =Indicators!R47&" Data elements" -> DE_HMIS Data elements | D19: Number of cases (rows) with missing data | % | F19: =Indicators!S47&" Source Documents:" -> DS_HMIS Source Documents: | H19: Available | I19: Up-to-date | J19: Standard form | K19: Comments | AZ19: 3.2 | BA19: =IF(ISERROR(IF(SEARCH("A",$H$57)>0,1,0))," ",IF(SEARCH("A",$H$57)>0,1,0)) ->  | BB19: =IF(ISERROR(IF(SEARCH("B",$H$57)>0,1,0))," ",IF(SEARCH("B",$H$57)>0,1,0)) ->  | BC19: =IF(ISERROR(IF(SEARCH("C",$H$57)>0,1,0))," ",IF(SEARCH("C",$H$57)>0,1,0)) ->  | BD19: =IF(ISERROR(IF(SEARCH("D",$H$57)>0,1,0))," ",IF(SEARCH("D",$H$57)>0,1,0)) ->  | BE19: =IF(ISERROR(IF(SEARCH("E",$H$57)>0,1,0))," ",IF(SEARCH("E",$H$57)>0,1,0)) ->  | BF19: =IF(ISERROR(IF(SEARCH("F",$H$57)>0,1,0))," ",IF(SEARCH("F",$H$57)>0,1,0)) -> 
A20: 1. | B20: =Indicators!R49 -> Unique ID | E20: =IF(D20="","-",IF(ISERROR(D20/$D$27),"-",D20/$D$27)) -> - | F20: =Indicators!S49 -> OPD register | AN20: Cross checks | AZ20: 3.3 | BA20: =IF(ISERROR(IF(SEARCH("A",$I$57)>0,1,0))," ",IF(SEARCH("A",$I$57)>0,1,0)) ->  | BB20: =IF(ISERROR(IF(SEARCH("B",$I$57)>0,1,0))," ",IF(SEARCH("B",$I$57)>0,1,0)) ->  | BC20: =IF(ISERROR(IF(SEARCH("C",$I$57)>0,1,0))," ",IF(SEARCH("C",$I$57)>0,1,0)) ->  | BD20: =IF(ISERROR(IF(SEARCH("D",$I$57)>0,1,0))," ",IF(SEARCH("D",$I$57)>0,1,0)) ->  | BE20: =IF(ISERROR(IF(SEARCH("E",$I$57)>0,1,0))," ",IF(SEARCH("E",$I$57)>0,1,0)) ->  | BF20: =IF(ISERROR(IF(SEARCH("F",$I$57)>0,1,0))," ",IF(SEARCH("F",$I$57)>0,1,0)) -> 
A21: 2. | B21: =Indicators!R51 -> Visit date | E21: - | F21: =Indicators!S51 -> OPD register | AO21: =A80 -> A — Malaria case register : Laboratory register (quality target = 90%) | AP21: =J84 -> - | AR21: =AN20&" 1 & 2" -> Cross checks 1 & 2 | AZ21: 4.1 | BA21: =IF(ISERROR(IF(SEARCH("A",$G$66)>0,1,0))," ",IF(SEARCH("A",$G$66)>0,1,0)) ->  | BB21: =IF(ISERROR(IF(SEARCH("B",$G$66)>0,1,0))," ",IF(SEARCH("B",$G$66)>0,1,0)) ->  | BC21: =IF(ISERROR(IF(SEARCH("C",$G$66)>0,1,0))," ",IF(SEARCH("C",$G$66)>0,1,0)) ->  | BD21: =IF(ISERROR(IF(SEARCH("D",$G$66)>0,1,0))," ",IF(SEARCH("D",$G$66)>0,1,0)) ->  | BE21: =IF(ISERROR(IF(SEARCH("E",$G$66)>0,1,0))," ",IF(SEARCH("E",$G$66)>0,1,0)) ->  | BF21: =IF(ISERROR(IF(SEARCH("F",$G$66)>0,1,0))," ",IF(SEARCH("F",$G$66)>0,1,0)) -> 
A22: 3. | B22: =Indicators!R53 -> Client name | E22: - | F22: =Indicators!S53 -> OPD register | AO22: =A85 -> B — Immunization register : Vaccine stock registry (quality target = 90%) | AP22: =J89 -> - | AZ22: 4.2 | BA22: =IF(ISERROR(IF(SEARCH("A",$H$66)>0,1,0))," ",IF(SEARCH("A",$H$66)>0,1,0)) ->  | BB22: =IF(ISERROR(IF(SEARCH("B",$H$66)>0,1,0))," ",IF(SEARCH("B",$H$66)>0,1,0)) ->  | BC22: =IF(ISERROR(IF(SEARCH("C",$H$66)>0,1,0))," ",IF(SEARCH("C",$H$66)>0,1,0)) ->  | BD22: =IF(ISERROR(IF(SEARCH("D",$H$66)>0,1,0))," ",IF(SEARCH("D",$H$66)>0,1,0)) ->  | BE22: =IF(ISERROR(IF(SEARCH("E",$H$66)>0,1,0))," ",IF(SEARCH("E",$H$66)>0,1,0)) ->  | BF22: =IF(ISERROR(IF(SEARCH("F",$H$66)>0,1,0))," ",IF(SEARCH("F",$H$66)>0,1,0)) -> 
A23: 4. | B23: =Indicators!R55 -> Age | E23: - | F23: =Indicators!S55 -> OPD register | AO23: =A90 -> C — ANC Register : Vaccine stock management log (quality target: >=90%, <=110%) | AP23: =J95 -> - | AR23: ="Cross check 3" -> Cross check 3 | AZ23: 4.3 | BA23: =IF(ISERROR(IF(SEARCH("A",$I$66)>0,1,0))," ",IF(SEARCH("A",$I$66)>0,1,0)) ->  | BB23: =IF(ISERROR(IF(SEARCH("B",$I$66)>0,1,0))," ",IF(SEARCH("B",$I$66)>0,1,0)) ->  | BC23: =IF(ISERROR(IF(SEARCH("C",$I$66)>0,1,0))," ",IF(SEARCH("C",$I$66)>0,1,0)) ->  | BD23: =IF(ISERROR(IF(SEARCH("D",$I$66)>0,1,0))," ",IF(SEARCH("D",$I$66)>0,1,0)) ->  | BE23: =IF(ISERROR(IF(SEARCH("E",$I$66)>0,1,0))," ",IF(SEARCH("E",$I$66)>0,1,0)) ->  | BF23: =IF(ISERROR(IF(SEARCH("F",$I$66)>0,1,0))," ",IF(SEARCH("F",$I$66)>0,1,0)) -> 
A24: 5. | B24: =Indicators!R57 -> Diagnosis (any type) | E24: - | F24: =Indicators!S57 -> OPD register | AZ24: 5.1 | BA24: =IF(ISERROR(IF(SEARCH("A",$G$75)>0,1,0))," ",IF(SEARCH("A",$G$75)>0,1,0)) ->  | BB24: =IF(ISERROR(IF(SEARCH("B",$G$75)>0,1,0))," ",IF(SEARCH("B",$G$75)>0,1,0)) ->  | BC24: =IF(ISERROR(IF(SEARCH("C",$G$75)>0,1,0))," ",IF(SEARCH("C",$G$75)>0,1,0)) ->  | BD24: =IF(ISERROR(IF(SEARCH("D",$G$75)>0,1,0))," ",IF(SEARCH("D",$G$75)>0,1,0)) ->  | BE24: =IF(ISERROR(IF(SEARCH("E",$G$75)>0,1,0))," ",IF(SEARCH("E",$G$75)>0,1,0)) ->  | BF24: =IF(ISERROR(IF(SEARCH("F",$G$75)>0,1,0))," ",IF(SEARCH("F",$G$75)>0,1,0)) -> 
A25: 6. | B25: =Indicators!R59 -> Treatment given | E25: - | F25: =Indicators!S59 -> OPD register | AN25: ="Consistency over time: "&H99&": "&H100 -> Consistency over time: Malaria: Number of confirmed malaria cases reported | AZ25: 5.2 | BA25: =IF(ISERROR(IF(SEARCH("A",$H$75)>0,1,0))," ",IF(SEARCH("A",$H$75)>0,1,0)) ->  | BB25: =IF(ISERROR(IF(SEARCH("B",$H$75)>0,1,0))," ",IF(SEARCH("B",$H$75)>0,1,0)) ->  | BC25: =IF(ISERROR(IF(SEARCH("C",$H$75)>0,1,0))," ",IF(SEARCH("C",$H$75)>0,1,0)) ->  | BD25: =IF(ISERROR(IF(SEARCH("D",$H$75)>0,1,0))," ",IF(SEARCH("D",$H$75)>0,1,0)) ->  | BE25: =IF(ISERROR(IF(SEARCH("E",$H$75)>0,1,0))," ",IF(SEARCH("E",$H$75)>0,1,0)) ->  | BF25: =IF(ISERROR(IF(SEARCH("F",$H$75)>0,1,0))," ",IF(SEARCH("F",$H$75)>0,1,0)) -> 
A26: 7. | B26: Number of entries missing data in at least 1 of the 6 columns listed above | E26: - | F26: =Indicators!S61 -> OPD register | AN26: =F106 -> - | AO26: - | AP26: - | AQ26: - | AZ26: 5.3 | BA26: =IF(ISERROR(IF(SEARCH("A",$I$75)>0,1,0))," ",IF(SEARCH("A",$I$75)>0,1,0)) ->  | BB26: =IF(ISERROR(IF(SEARCH("B",$I$75)>0,1,0))," ",IF(SEARCH("B",$I$75)>0,1,0)) ->  | BC26: =IF(ISERROR(IF(SEARCH("C",$I$75)>0,1,0))," ",IF(SEARCH("C",$I$75)>0,1,0)) ->  | BD26: =IF(ISERROR(IF(SEARCH("D",$I$75)>0,1,0))," ",IF(SEARCH("D",$I$75)>0,1,0)) ->  | BE26: =IF(ISERROR(IF(SEARCH("E",$I$75)>0,1,0))," ",IF(SEARCH("E",$I$75)>0,1,0)) ->  | BF26: =IF(ISERROR(IF(SEARCH("F",$I$75)>0,1,0))," ",IF(SEARCH("F",$I$75)>0,1,0)) -> 
A27: 8. | B27: Total number of entries for the period | F27: % Complete | H27: =IF(ISERROR(COUNTIF(H20:H26,"Yes")/COUNTA(H20:H26)),"-",COUNTIF(H20:H26,"Yes")/COUNTA(H20:H26)) -> - | I27: =IF(ISERROR(COUNTIF(I20:I26,"Yes")/COUNTA(I20:I26)),"-",COUNTIF(I20:I26,"Yes")/COUNTA(I20:I26)) -> - | J27: =IF(ISERROR(COUNTIF(J20:J26,"Yes")/COUNTA(J20:J26)),"-",COUNTIF(J20:J26,"Yes")/COUNTA(J20:J26)) -> - | AN27: 0 | AO27: 0 | AP27: 0 | AQ27: 0 | BA27: =SUM(BA12:BA26) -> 0 | BB27: 0 | BC27: 0 | BD27: 0 | BE27: 0 | BF27: 0
A28: II. Data Accuracy
A29: Recount value of indicators from the malaria case register and compare the value to the one reported by the facility for the selected months
B30: ="Indicators" -> Indicators | G30: Month 1 | H30: Month 2 | I30: Month 3 | J30: 3-month total
G31: =IF(ISERROR(EDATE($J$7,-3)),"-",EDATE($J$7,-3)) -> - | H31: =IF(ISERROR(EDATE($J$7,-3)),"-",EDATE($J$7,-2)) -> - | I31: =IF(ISERROR(EDATE($J$7,-3)),"-",EDATE($J$7,-1)) -> -
A32: 1. | B32: Select indicator type: | D32: =IF(Indicators!$R$13=0,"-",Indicators!$R$13) -> Maternal_Health
B33: Select indicator: | D33: =IF(Indicators!$S$13=0,"-",Indicators!$S$13) -> ANC 1st Visit | G33: ="quality target: >="&TEXT(100%-Indicators!$V$13,"0%")&", <="&TEXT(100%+Indicators!$V$13,"0%") -> quality target: >=90%, <=110%
B34: Source document re-count | J34: =IF(ISERROR(SUM(G34:I34)),"-",SUM(G34:I34)) -> 0
B35: HMIS monthly report value | J35: =IF(ISERROR(SUM(G35:I35)),"-",SUM(G35:I35)) -> 0
B36: DHIS2 monthly value | J36: =IF(ISERROR(SUM(G36:I36)),"-",SUM(G36:I36)) -> 0
B37: Monthly Report Verification factor(VF): | G37: =IF(ISERROR(G34/G35),"-",G34/G35) -> - | H37: =IF(ISERROR(H34/H35),"-",H34/H35) -> - | I37: =IF(ISERROR(I34/I35),"-",I34/I35) -> - | J37: =IF(ISERROR(AVERAGE(G37:I37)),"-",AVERAGE(G37:I37)) -> -
B38: DHIS 2 Verification factor(VF): | G38: =IF(ISERROR(G34/G36),"-",G34/G36) -> - | H38: =IF(ISERROR(H34/H36),"-",H34/H36) -> - | I38: =IF(ISERROR(I34/I36),"-",I34/I36) -> - | J38: =IF(ISERROR(AVERAGE(G38:I38)),"-",AVERAGE(G38:I38)) -> -
B39: Reasons for discrepancy (use code below - mark all that apply)
B40: Other reason (specify)
A41: 2. | B41: Select indicator type: | D41: =IF(Indicators!$R$16=0,"-",Indicators!$R$16) -> HMIS
B42: Select indicator: | D42: =IF(Indicators!$S$16=0,"-",Indicators!$S$16) -> Outpatient visits | G42: ="quality target: >="&TEXT(100%-Indicators!$V$16,"0%")&", <="&TEXT(100%+Indicators!$V$16,"0%") -> quality target: >=90%, <=110%
B43: Source document re-count | J43: =IF(ISERROR(SUM(G43:I43)),"-",SUM(G43:I43)) -> 0
B44: HMIS monthly report value | J44: =IF(ISERROR(SUM(G44:I44)),"-",SUM(G44:I44)) -> 0
B45: DHIS2 monthly value | J45: =IF(ISERROR(SUM(G45:I45)),"-",SUM(G45:I45)) -> 0
B46: Monthly Report Verification factor(VF): | G46: =IF(ISERROR(G43/G44),"-",G43/G44) -> - | H46: =IF(ISERROR(H43/H44),"-",H43/H44) -> - | I46: =IF(ISERROR(I43/I44),"-",I43/I44) -> - | J46: =IF(ISERROR(AVERAGE(G46:I46)),"-",AVERAGE(G46:I46)) -> -
B47: DHIS 2 Verification factor(VF): | G47: =IF(ISERROR(G43/G45),"-",G43/G45) -> - | H47: =IF(ISERROR(H43/H45),"-",H43/H45) -> - | I47: =IF(ISERROR(I43/I45),"-",I43/I45) -> - | J47: =IF(ISERROR(AVERAGE(G47:I47)),"-",AVERAGE(G47:I47)) -> -
B48: Reasons for discrepancy (use code below - mark all that apply)
B49: Other reason (specify)
A50: 3. | B50: Select indicator type: | D50: =IF(Indicators!$R$19=0,"-",Indicators!$R$19) -> Malaria
B51: Select indicator: | D51: =IF(Indicators!$S$19=0,"-",Indicators!$S$19) -> Number of confirmed malaria cases reported | G51: ="quality target: >="&TEXT(100%-Indicators!$V$19,"0%")&", <="&TEXT(100%+Indicators!$V$19,"0%") -> quality target: >=85%, <=115%
B52: Source document re-count | J52: =IF(ISERROR(SUM(G52:I52)),"-",SUM(G52:I52)) -> 0
B53: HMIS monthly report value | J53: =IF(ISERROR(SUM(G53:I53)),"-",SUM(G53:I53)) -> 0
B54: DHIS2 monthly value | J54: =IF(ISERROR(SUM(G54:I54)),"-",SUM(G54:I54)) -> 0
B55: Monthly Report Verification factor(VF): | G55: =IF(ISERROR(G52/G53),"-",G52/G53) -> - | H55: =IF(ISERROR(H52/H53),"-",H52/H53) -> - | I55: =IF(ISERROR(I52/I53),"-",I52/I53) -> - | J55: =IF(ISERROR(AVERAGE(G55:I55)),"-",AVERAGE(G55:I55)) -> -
B56: DHIS 2 Verification factor(VF): | G56: =IF(ISERROR(G52/G54),"-",G52/G54) -> - | H56: =IF(ISERROR(H52/H54),"-",H52/H54) -> - | I56: =IF(ISERROR(I52/I54),"-",I52/I54) -> - | J56: =IF(ISERROR(AVERAGE(G56:I56)),"-",AVERAGE(G56:I56)) -> -
B57: Reasons for discrepancy (use code below - mark all that apply)
B58: Other reason (specify)
A59: 4. | B59: Select indicator type: | D59: =IF(Indicators!$R$22=0,"-",Indicators!$R$22) -> Immunization
B60: Select indicator: | D60: =IF(Indicators!$S$22=0,"-",Indicators!$S$22) -> 3rd dose DPT-containing vaccine | G60: ="quality target: >="&TEXT(100%-Indicators!$V$22,"0%")&", <="&TEXT(100%+Indicators!$V$22,"0%") -> quality target: >=80%, <=120%
B61: Source document re-count | J61: =IF(ISERROR(SUM(G61:I61)),"-",SUM(G61:I61)) -> 0
B62: HMIS monthly report value | J62: =IF(ISERROR(SUM(G62:I62)),"-",SUM(G62:I62)) -> 0
B63: DHIS2 monthly value | J63: =IF(ISERROR(SUM(G63:I63)),"-",SUM(G63:I63)) -> 0
B64: Monthly Report Verification factor(VF): | G64: =IF(ISERROR(G61/G62),"-",G61/G62) -> - | H64: =IF(ISERROR(H61/H62),"-",H61/H62) -> - | I64: =IF(ISERROR(I61/I62),"-",I61/I62) -> - | J64: =IF(ISERROR(AVERAGE(G64:I64)),"-",AVERAGE(G64:I64)) -> -
B65: DHIS 2 Verification factor(VF): | G65: =IF(ISERROR(G61/G63),"-",G61/G63) -> - | H65: =IF(ISERROR(H61/H63),"-",H61/H63) -> - | I65: =IF(ISERROR(I61/I63),"-",I61/I63) -> - | J65: =IF(ISERROR(AVERAGE(G65:I65)),"-",AVERAGE(G65:I65)) -> -
B66: Reasons for discrepancy (use code below - mark all that apply)
B67: Other reason (specify)
A68: 5. | B68: Select indicator type: | D68: =IF(Indicators!$R$25=0,"-",Indicators!$R$25) -> HMIS
B69: Select indicator: | D69: =IF(Indicators!$S$25=0,"-",Indicators!$S$25) -> Live births | G69: ="quality target: >="&TEXT(100%-Indicators!$V$25,"0%")&", <="&TEXT(100%+Indicators!$V$25,"0%") -> quality target: >=75%, <=125%
B70: Source document re-count | J70: =IF(ISERROR(SUM(G70:I70)),"-",SUM(G70:I70)) -> 0
B71: HMIS monthly report value | J71: =IF(ISERROR(SUM(G71:I71)),"-",SUM(G71:I71)) -> 0
B72: DHIS2 monthly value | J72: =IF(ISERROR(SUM(G72:I72)),"-",SUM(G72:I72)) -> 0
B73: Monthly Report Verification factor(VF): | G73: =IF(ISERROR(G70/G71),"-",G70/G71) -> - | H73: =IF(ISERROR(H70/H71),"-",H70/H71) -> - | I73: =IF(ISERROR(I70/I71),"-",I70/I71) -> - | J73: =IF(ISERROR(AVERAGE(G73:I73)),"-",AVERAGE(G73:I73)) -> -
B74: DHIS 2 Verification factor(VF): | G74: =IF(ISERROR(G70/G72),"-",G70/G72) -> - | H74: =IF(ISERROR(H70/H72),"-",H70/H72) -> - | I74: =IF(ISERROR(I70/I72),"-",I70/I72) -> - | J74: =IF(ISERROR(AVERAGE(G74:I74)),"-",AVERAGE(G74:I74)) -> -
B75: Reasons for discrepancy (use code below - mark all that apply)
B76: Other reason (specify)
A77: Reasons for discrepancy:
A78: a) no discrepancy, b) arithmetic errors, c) transcription errors, d) some documents were missing when the report was prepared, e) some documents are now missing, f) other (specify)
A79: III. Cross Checks | K79: Comments
A80: ="A — "&Indicators!R31&" : "&Indicators!S31&" (quality target = "&TEXT(100%-Indicators!$V$31,"0%")&")" -> A — Malaria case register : Laboratory register (quality target = 90%)
A81: ="Randomly select 10 patients who have been treated in the period at the facility from the "&Indicators!R31&"." -> Randomly select 10 patients who have been treated in the period at the facility from the Malaria case register.
A82: ="1. Number of cases sampled from the "&Indicators!R31&"." -> 1. Number of cases sampled from the Malaria case register.
A83: ="2. How many of the patients selected had a corresponding entry with matching information for the patients in the "&Indicators!S31&"?" -> 2. How many of the patients selected had a corresponding entry with matching information for the patients in the Laboratory register?
A84: =Indicators!S31&" reliability rate:" -> Laboratory register reliability rate: | J84: =IF(ISERROR(J83/J82),"-",J83/J82) -> -
A85: ="B — "&Indicators!R34&" : "&Indicators!S34&" (quality target = "&TEXT(100%-Indicators!$V$34,"0%")&")" -> B — Immunization register : Vaccine stock registry (quality target = 90%)
A86: ="Randomly select 10 cases who have been treated in the period at the facility from the "&Indicators!R34&"." -> Randomly select 10 cases who have been treated in the period at the facility from the Immunization register.
A87: ="1. Number of cases sampled from the "&Indicators!R34&"." -> 1. Number of cases sampled from the Immunization register.
A88: ="2. How many of the patients selected had a corresponding entry with matching information for the patients in the "&Indicators!S34&"?" -> 2. How many of the patients selected had a corresponding entry with matching information for the patients in the Vaccine stock registry?
A89: =Indicators!S34&" reliability rate:" -> Vaccine stock registry reliability rate: | J89: =IF(ISERROR(J88/J87),"-",J88/J87) -> -
A90: ="C — "&Indicators!R37&" : "&Indicators!S37&" (quality target: >="&TEXT(100%-Indicators!$V$38,"0%")&", <="&TEXT(100%+Indicators!$V$38,"0%")&")" -> C — ANC Register : Vaccine stock management log (quality target: >=90%, <=110%)
A91: Number of units (e.g. doses of medication/vaccine, other commodities) in stock at the site at the beginning of the reporting period (initial in stock) | I91: a.
A92: Number of units received by the site during the reporting period | G92: b. | I92: b.
A93: Number of units in stock at the site at the end of the reporting period (closing in stock) | G93: c. | I93: c.
A94: Number of units used (e.g. given to patients) by the site during the reporting period | G94: d. | I94: d.
A95: Verification ratio: (d/[a+b-c]): | J95: =IF(ISERROR(J94/(J91+J92-J93)),"-",J94/(J91+J92-J93)) -> -
A96: Reasons for discrepancy (enter code at right):
A97: a) no discrepancy, b) arithmetic errors, c) transcription errors, d) drugs stock management forms not up to date, e) some documents are missing, f) stock out of treatment drugs,
A98: g) other (specify)
A99: ="IV. Consistency Checks - Consistency of data elements over time Quality target = >="&TEXT(100%-Indicators!$V$42,"0%")&", <="&TEXT(100%+Indicators!$V$42,"0%")&")" -> IV. Consistency Checks - Consistency of data elements over time Quality target = >=80%, <=120%) | F99: Program Area -> | H99: =Indicators!$B$42 -> Malaria
A100: IV.a: Annual consistency - select the indicator on the Indicators tab. | F100: Indicator -> | H100: =Indicators!$E$42 -> Number of confirmed malaria cases reported
A101: 1. What is the current month value
A102: 2. What was the value of the indicator for the current month one year ago
A103: Consistency ratio: Divide the value of the current month by the value from the same month last year. If the value is more than 20% different (i.e. <0.8 or >1.2) this could indicate a data quality problem. | J103: =IF(ISERROR(J101/J102),"-",J101/J102) -> -
A104: IV.b Month-to-month consistency:
A105: Enter values for the selected indicator for the current month, and for the three preceding months. Calculate consistency: Current month/average of Month1-Month3. If the value is more than 20% different (i.e. <0.8 or >1.2) this could indicate a data quality problem. | F105: Month 1 | G105: Month 2 | H105: Month 3 | I105: Last month | J105: Consistency
E106: month | F106: =IF(ISERROR(EDATE($J$7,-4)),"-",EDATE($J$7,-4)) -> - | G106: =IF(ISERROR(EDATE($J$7,-3)),"-",EDATE($J$7,-3)) -> - | H106: =IF(ISERROR(EDATE($J$7,-3)),"-",EDATE($J$7,-2)) -> - | I106: =IF(ISERROR(EDATE($J$7,-3)),"-",EDATE($J$7,-1)) -> - | J106: ratio
E107: value | J107: =IF(ISERROR(I107/AVERAGE(F107:H107)),"-",I107/AVERAGE(F107:H107)) -> -
A108: Reasons for discrepancy (enter code at right):
A109: a) no discrepancy, b) arithmetic errors, c) transcription errors, d) vaccine stock management forms not up to date, e) some documents are missing, f) vaccine / drugs stock out,
A110: g) other (specify)
A111: V. System Assessment - Respond Yes or No for the following questions. | J111: Y/N
A112: V.1 | B112: Is there a designated person to enter data and compile reports?
A113: V.2 | B113: Is there a designated person to review the quality of compiled data prior to submission to the next level?
A114: V.3 | B114: Does the health facility have written guidelines on data collection and reporting for HMIS?
A115: V.4 | B115: Does the health facility have a reserve stock of blank registers or reporting forms?
A116: V.5 | B116: Has this health facility experienced any stock out of registers or reporting forms (since last visit)?
A117: V.6 | B117: Is a standardized OPD register being used to record information on patients seeking treatment (not improvised forms)?
A118: V.7 | B118: Can a patient's diagnosis and treatment history be easily found in the facility records?
A119: V.8 | B119: Are data archives properly maintained with historical patient level (registers) and aggregate (monthly report) results?
A120: V.9 | B120: Does the facility maintain accurate demographic information for the catchment area (that is, a record current population and the number of births and deaths)?
A121: V.10 | B121: Does the facility have established targets to monitor progress towards goals and objectives for prevention and treatment?
A122: V.11 | B122: Does the facility have an up-to-date display (for example, a chart on the wall) of the number of cases diagnosed and treated by reporting period for the year?
A123: V.12 | B123: Is there a chart of disease incidence by month displayed at the facility?
A124: Data Quality Improvement Plan for the Health Facility
A125: Please list the primary gaps or weaknesses in the data management system at the facility. What are the threats , or potential threats, to data quality ? For each item cited, please include action points that the facility can implement to strengthen the data management at the facility. Please be realistic in your recommendations. Also include the responsible staff and the date by which the intervention should be completed.
B126: Identified Weaknesses | E126: Description of Action Point | H126: Responsible(s) | J126: Time Line | K126: Comments
A127: 1
A128: 2
A129: 3
A130: 4
A132: HMIS Health Facility Supervision Data Quality Dashboard

Sheet Health Facility 10 (hidden)
A1: National Health Management Information System (HMIS) | H1: WHO - 2020 | M1: Go back to facility information tab
A2: Routine Supervision Data Quality Checklist | M2: Go to Dashboard
A3: Routine Supervision Data Quality Checklist | M3: Go to Dashboard
A4: Routine Supervision Data Quality Checklist | M4: Go to Dashboard
A5: Routine Supervision Data Quality Checklist | M5: Go to Dashboard
A6: Routine Supervision Data Quality Checklist | M6: Go to Dashboard
A7: Health facility name: | D7: =IF('Facility Information'!D23=0,"-",'Facility Information'!D23) -> - | G7: Date of Supervision: | J7: =IF('Facility Information'!J23=0,"-",'Facility Information'!J23) -> - | M7: Go to indicators
